Inv Transaction,Supplier Name,Headserv Name,Stratdir Name,Account Description,Paid Date,Sum of Inv Amount
460476,Landona House Ltd T/A Beechcroft Care Home,Adult Social Care,Adults,Nursing Home Long Stay Fees,10-Aug,"9,529.82 "
460488,Ideal Carehomes Number One Limited,Adult Social Care,Adults,Nursing Home Long Stay Fees,13-Jul,"21,974.08 "
460488,NYMS SERVICES LTD TAS PENNINE CARE CENTRE,Adult Social Care,Adults,Nursing Home Long Stay Fees,13-Jul,"38,660.75 "
460489,DEVONSHIRE CARE LIMITED TAS CHARNLEY HOUSE,Adult Social Care,Adults,Nursing Home Long Stay Fees,21-Jul,"68,948.69 "
460489,Fairfield View Care Home T/A Fairfield View Ltd (In Administration) T/A Fairfield View,Adult Social Care,Adults,Nursing Home Long Stay Fees,21-Jul,"99,557.67 "
460489,The Lakes Care Centre T/A Blackcliffe Ltd (In Administration) T/A The Lakes Care Centre,Adult Social Care,Adults,Nursing Home Long Stay Fees,21-Jul,"82,836.97 "
460490,Advinia Care Homes Ltd,Adult Social Care,Adults,Nursing Home Long Stay Fees,26-Jul,"3,494.08 "
460490,ANCHOR HANOVER GROUP TAS HATTON GRANGE CARE HOME,Adult Social Care,Adults,Nursing Home Long Stay Fees,26-Jul,"71,506.38 "
460490,Annacliffe Care Home,Adult Social Care,Adults,Nursing Home Long Stay Fees,26-Jul,"6,168.57 "
460490,Appleton Manor T/A HC One Ltd,Adult Social Care,Adults,Nursing Home Long Stay Fees,26-Jul,"2,178.58 "
460490,ASHGROVE HOUSE CARE LTD,Adult Social Care,Adults,Nursing Home Long Stay Fees,26-Jul,"2,770.87 "
460490,AUDEN HOUSE RESIDENTIAL HOME,Adult Social Care,Adults,Nursing Home Long Stay Fees,26-Jul,"26,378.09 "
460490,Avery Homes Moston Ltd- Acacia Lodge,Adult Social Care,Adults,Nursing Home Long Stay Fees,26-Jul,"5,354.50 "
460490,Barchester Healthcare t/a Glenroyd Care Home,Adult Social Care,Adults,Nursing Home Long Stay Fees,26-Jul,"7,257.45 "
460490,Beeches t/a Meridian Healthcare LTD,Adult Social Care,Adults,Nursing Home Long Stay Fees,26-Jul,"73,949.66 "
460490,BELMONT PARKHILL LTD,Adult Social Care,Adults,Nursing Home Long Stay Fees,26-Jul,"56,368.23 "
460490,BROOKFIELD RESIDENTIAL CARE HOME,Adult Social Care,Adults,Nursing Home Long Stay Fees,26-Jul,"2,990.13 "
460490,BROWNLOW HOUSE RESIDENTIAL CARE,Adult Social Care,Adults,Nursing Home Long Stay Fees,26-Jul,"7,695.44 "
460490,CARE TECH - ALPHA HOUSE CARE HOME,Adult Social Care,Adults,Nursing Home Long Stay Fees,26-Jul,"34,246.78 "
460490,CARE UK LTD TAS RIVERSIDE CARE CENTRE,Adult Social Care,Adults,Nursing Home Long Stay Fees,26-Jul,"186,723.78 "
460490,Cartwright Care Balmoral Management Ltd,Adult Social Care,Adults,Nursing Home Long Stay Fees,26-Jul,"34,439.70 "
460490,Clarence House Care Home,Adult Social Care,Adults,Nursing Home Long Stay Fees,26-Jul,"12,710.49 "
460490,D R Price Associates Limited t/a Chataway Nursing Home,Adult Social Care,Adults,Nursing Home Long Stay Fees,26-Jul,"3,780.72 "
460490,Daisy Nook House t/a Meridian Healthcare LTD,Adult Social Care,Adults,Nursing Home Long Stay Fees,26-Jul,"55,588.03 "
460490,DEEPDENE CARE LIMITED,Adult Social Care,Adults,Nursing Home Long Stay Fees,26-Jul,"43,713.43 "
460490,DOMAIN CARE NORTH WEST LTD,Adult Social Care,Adults,Nursing Home Long Stay Fees,26-Jul,"8,836.20 "
460490,EAST CHESHIRE HOUSING CONSORTIUM TAS THE COURTYARD,Adult Social Care,Adults,Nursing Home Long Stay Fees,26-Jul,"3,438.61 "
460490,EHC MOSTON GRANGE LTD,Adult Social Care,Adults,Nursing Home Long Stay Fees,26-Jul,"100,508.15 "
460490,ELIZABETH HOUSE,Adult Social Care,Adults,Nursing Home Long Stay Fees,26-Jul,"12,064.41 "
460490,Elysium Healthcare,Adult Social Care,Adults,Nursing Home Long Stay Fees,26-Jul,"16,679.37 "
460490,Enabling Futures Ltd / The Coach House,Adult Social Care,Adults,Nursing Home Long Stay Fees,26-Jul,"3,334.92 "
460490,Equilibrium Healthcare Ltd tas Oakland House Nursing Home,Adult Social Care,Adults,Nursing Home Long Stay Fees,26-Jul,"70,843.14 "
460490,FERN BANK THERAPEUTIC COMMUNITY LTD,Adult Social Care,Adults,Nursing Home Long Stay Fees,26-Jul,"34,535.05 "
460490,FIELDER LODGE,Adult Social Care,Adults,Nursing Home Long Stay Fees,26-Jul,"4,597.57 "
460490,Fir Trees t/a Meridian Healthcare LTD,Adult Social Care,Adults,Nursing Home Long Stay Fees,26-Jul,"96,529.93 "
460490,Firs Hall Care Home Ltd,Adult Social Care,Adults,Nursing Home Long Stay Fees,21-Sep,"17,380.15 "
460490,FRANCIS HOUSE FAMILIES LTD,Adult Social Care,Adults,Nursing Home Long Stay Fees,26-Jul,"7,528.57 "
460490,Greatwood House t/a Meridian Healthcare LTD,Adult Social Care,Adults,Nursing Home Long Stay Fees,26-Jul,"115,839.44 "
460490,HC ONE OF A KIND - KINGS PARK,Adult Social Care,Adults,Nursing Home Long Stay Fees,26-Jul,"60,159.13 "
460490,HC-ONE LIMITED - BROOKDALE VIEW,Adult Social Care,Adults,Nursing Home Long Stay Fees,26-Jul,"3,192.96 "
460490,"HC-ONE LTD, Sunnyside Care Home",Adult Social Care,Adults,Nursing Home Long Stay Fees,26-Jul,"108,489.78 "
460490,HEATON LODGE,Adult Social Care,Adults,Nursing Home Long Stay Fees,26-Jul,"3,299.55 "
460490,Holme Lea t/a Meridian Healthcare LTD,Adult Social Care,Adults,Nursing Home Long Stay Fees,26-Jul,"113,224.07 "
460490,HURST HALL CARE HOME LTD,Adult Social Care,Adults,Nursing Home Long Stay Fees,26-Jul,"105,357.45 "
460490,Ideal Carehomes Number One Limited,Adult Social Care,Adults,Nursing Home Long Stay Fees,26-Jul,"8,918.30 "
460490,L & M HEALTHCARE,Adult Social Care,Adults,Nursing Home Long Stay Fees,26-Jul,"8,526.41 "
460490,LAUREL BANK RESIDENTIAL CARE HOME LTD,Adult Social Care,Adults,Nursing Home Long Stay Fees,26-Jul,"12,098.87 "
460490,LEONARD CHESHIRE DISABILITY,Adult Social Care,Adults,Nursing Home Long Stay Fees,26-Jul,"13,344.88 "
460490,LONGWOOD LODGE CARE LTD t/a Longwood Lodge Care Home,Adult Social Care,Adults,Nursing Home Long Stay Fees,26-Jul,"2,929.68 "
460490,MARPLE DALE HALL LTD,Adult Social Care,Adults,Nursing Home Long Stay Fees,26-Jul,"24,431.52 "
460490,Masterpalm Properties Ltd,Adult Social Care,Adults,Nursing Home Long Stay Fees,26-Jul,"6,331.13 "
460490,Maypole Health Care Ltd,Adult Social Care,Adults,Nursing Home Long Stay Fees,26-Jul,"12,556.95 "
460490,MBI SOCIAL CARE LTD TAS DOWNSHAW LODGE CARE HOME,Adult Social Care,Adults,Nursing Home Long Stay Fees,26-Jul,"80,752.62 "
460490,MERIDIAN HEALTH CARE LTD TAS GUIDE LANE,Adult Social Care,Adults,Nursing Home Long Stay Fees,26-Jul,"69,356.95 "
460490,Millbrook Care Home t/a Meridian Healthcare LTD,Adult Social Care,Adults,Nursing Home Long Stay Fees,26-Jul,"57,568.43 "
460490,MOSS COTTAGE NURSING HOME,Adult Social Care,Adults,Nursing Home Long Stay Fees,26-Jul,"80,304.68 "
460490,Next Chapter Healthcare Ltd,Adult Social Care,Adults,Nursing Home Long Stay Fees,26-Jul,"5,745.23 "
460490,NYMS SERVICES LTD TAS PENNINE CARE CENTRE,Adult Social Care,Adults,Nursing Home Long Stay Fees,26-Jul,"39,223.45 "
460490,OAKDENE CARE HOME T/A OAKDENE CARE HOME LTD,Adult Social Care,Adults,Nursing Home Long Stay Fees,26-Jul,"4,207.23 "
460490,OAKWOOD CARE CENTRE,Adult Social Care,Adults,Nursing Home Long Stay Fees,26-Jul,"37,567.02 "
460490,PARKVIEW CARE HOME,Adult Social Care,Adults,Nursing Home Long Stay Fees,26-Jul,"3,358.54 "
460490,PARTNERSHIP CARING LTD TAS FIRBANK HOUSE NURSING & RESIDENTIAL CARE HOME,Adult Social Care,Adults,Nursing Home Long Stay Fees,26-Jul,"106,327.19 "
460490,Pendlebury Care Homes Ltd tas Regency Hall Care Home,Adult Social Care,Adults,Nursing Home Long Stay Fees,26-Jul,"7,369.14 "
460490,POLEBANK HALL RESIDENTIAL CARE HOME LTD,Adult Social Care,Adults,Nursing Home Long Stay Fees,26-Jul,"21,911.43 "
460490,Postgrad Ltd - Treelands Care Home,Adult Social Care,Adults,Nursing Home Long Stay Fees,26-Jul,"4,288.27 "
460490,PROGRESS CARE & EDUCATION LTD,Adult Social Care,Adults,Nursing Home Long Stay Fees,26-Jul,"18,351.07 "
460490,ROEFIELD SPECIALIST CARE LIMITED t/a THISTLE MANOR,Adult Social Care,Adults,Nursing Home Long Stay Fees,26-Jul,"40,819.87 "
460490,Rose Keys (Lifeways),Adult Social Care,Adults,Nursing Home Long Stay Fees,26-Jul,"17,346.32 "
460490,ROYAL MASONIC BENEVOLENT INSTITUTION,Adult Social Care,Adults,Nursing Home Long Stay Fees,26-Jul,"3,308.90 "
460490,Sandon House t/a Meridian Healthcare LTD,Adult Social Care,Adults,Nursing Home Long Stay Fees,26-Jul,"102,035.53 "
460490,South Yorkshire Housing Association,Adult Social Care,Adults,Nursing Home Long Stay Fees,26-Jul,"3,863.13 "
460490,St Christopher�s Trust,Adult Social Care,Adults,Nursing Home Long Stay Fees,26-Jul,"4,366.17 "
460490,ST LAWRENCES LODGE,Adult Social Care,Adults,Nursing Home Long Stay Fees,26-Jul,"16,772.48 "
460490,STALEY HOUSE EPH,Adult Social Care,Adults,Nursing Home Long Stay Fees,26-Jul,"90,993.75 "
460490,Stamford Court Nursing t/a Meridian Healthcare LTD,Adult Social Care,Adults,Nursing Home Long Stay Fees,26-Jul,"95,918.87 "
460490,Sun Healthcare T/A Tapton Grove Care Home,Adult Social Care,Adults,Nursing Home Long Stay Fees,26-Jul,"5,131.96 "
460490,SUNNY BANK PRS LTD,Adult Social Care,Adults,Nursing Home Long Stay Fees,26-Jul,"3,555.74 "
460490,THE JOSEPH COX CHARITY,Adult Social Care,Adults,Nursing Home Long Stay Fees,26-Jul,"11,511.45 "
460490,THE LIGHT HOUSE (Bloomcare Group),Adult Social Care,Adults,Nursing Home Long Stay Fees,26-Jul,"42,001.42 "
460490,THE ROYAL ELMS CARE HOME,Adult Social Care,Adults,Nursing Home Long Stay Fees,26-Jul,"6,611.06 "
460490,THE SEYMOUR HOME LTD t/a Seymour Care Home,Adult Social Care,Adults,Nursing Home Long Stay Fees,26-Jul,"2,887.78 "
460490,The Sycamores t/a Meridian Health Care LTD,Adult Social Care,Adults,Nursing Home Long Stay Fees,26-Jul,"98,973.00 "
460490,THE VICARAGE RESIDENTIAL CARE HOME,Adult Social Care,Adults,Nursing Home Long Stay Fees,26-Jul,"27,452.76 "
460490,THORNCLIFFE GRANGE NURSING HOME,Adult Social Care,Adults,Nursing Home Long Stay Fees,26-Jul,"77,282.56 "
460490,TREETOPS,Adult Social Care,Adults,Nursing Home Long Stay Fees,26-Jul,"124,655.20 "
460490,Tulsi Homes Ltd T/A Clarkson House (new),Adult Social Care,Adults,Nursing Home Long Stay Fees,26-Jul,"42,674.44 "
460490,Wellington Healthcare (Arden) Ltd t/a Bloomcare,Adult Social Care,Adults,Nursing Home Long Stay Fees,26-Jul,"2,984.90 "
460490,Western Park Leicester Limited t/a Western Park Nursing Home,Adult Social Care,Adults,Nursing Home Long Stay Fees,26-Jul,"3,170.72 "
460490,WHITEFIELD HOUSE LTD,Adult Social Care,Adults,Nursing Home Long Stay Fees,26-Jul,"8,251.88 "
460490,Woodrow House ( Cygnet Healthcare),Adult Social Care,Adults,Nursing Home Long Stay Fees,26-Jul,"60,340.26 "
460490,Yew Trees t/a Meridian Healthcare LTD,Adult Social Care,Adults,Nursing Home Long Stay Fees,26-Jul,"81,083.34 "
460490,ZZ - PARCS HEALTHCARE LTD,Adult Social Care,Adults,Nursing Home Long Stay Fees,26-Jul,"6,473.57 "
460491,DEVONSHIRE CARE LIMITED TAS CHARNLEY HOUSE,Adult Social Care,Adults,Nursing Home Long Stay Fees,28-Jul,"2,730.64 "
460491,Fairfield View Care Home T/A Fairfield View Ltd (In Administration) T/A Fairfield View,Adult Social Care,Adults,Nursing Home Long Stay Fees,28-Jul,"2,552.00 "
460491,The Lakes Care Centre T/A Blackcliffe Ltd (In Administration) T/A The Lakes Care Centre,Adult Social Care,Adults,Nursing Home Long Stay Fees,28-Jul,"17,829.90 "
460491,THORNCLIFFE GRANGE NURSING HOME,Adult Social Care,Adults,Nursing Home Long Stay Fees,28-Jul,"48,447.17 "
460492,DEVONSHIRE CARE LIMITED TAS CHARNLEY HOUSE,Adult Social Care,Adults,Nursing Home Long Stay Fees,23-Aug,"54,905.39 "
460492,DIWALI LTD T/A DIWALI NIVAS,Adult Social Care,Adults,Nursing Home Long Stay Fees,23-Aug,"6,971.43 "
460492,Fairfield View Care Home T/A Fairfield View Ltd (In Administration) T/A Fairfield View,Adult Social Care,Adults,Nursing Home Long Stay Fees,23-Aug,"76,559.95 "
460492,The Lakes Care Centre T/A Blackcliffe Ltd (In Administration) T/A The Lakes Care Centre,Adult Social Care,Adults,Nursing Home Long Stay Fees,23-Aug,"121,463.34 "
460493,ABBOTSFORD CARE HOME,Adult Social Care,Adults,Nursing Home Long Stay Fees,29-Aug,"2,316.42 "
460493,Advinia Care Homes Ltd,Adult Social Care,Adults,Nursing Home Long Stay Fees,29-Aug,"4,105.24 "
460493,ANCHOR HANOVER GROUP TAS HATTON GRANGE CARE HOME,Adult Social Care,Adults,Nursing Home Long Stay Fees,29-Aug,"65,923.59 "
460493,Appleton Manor T/A HC One Ltd,Adult Social Care,Adults,Nursing Home Long Stay Fees,29-Aug,"3,565.00 "
460493,ARBOUR COURT,Adult Social Care,Adults,Nursing Home Long Stay Fees,29-Aug,"26,773.84 "
460493,ASHGROVE HOUSE CARE LTD,Adult Social Care,Adults,Nursing Home Long Stay Fees,29-Aug,"2,770.87 "
460493,AUDEN HOUSE RESIDENTIAL HOME,Adult Social Care,Adults,Nursing Home Long Stay Fees,29-Aug,"51,838.42 "
460493,Avery Homes Moston Ltd- Acacia Lodge,Adult Social Care,Adults,Nursing Home Long Stay Fees,29-Aug,"3,851.55 "
460493,Barchester Healthcare t/a Glenroyd Care Home,Adult Social Care,Adults,Nursing Home Long Stay Fees,29-Aug,"7,257.45 "
460493,Beeches t/a Meridian Healthcare LTD,Adult Social Care,Adults,Nursing Home Long Stay Fees,29-Aug,"79,703.51 "
460493,BELMONT PARKHILL LTD,Adult Social Care,Adults,Nursing Home Long Stay Fees,29-Aug,"75,677.75 "
460493,BOROUGH CARE LTD,Adult Social Care,Adults,Nursing Home Long Stay Fees,29-Aug,"79,069.85 "
460493,BOWERFIELD COURT,Adult Social Care,Adults,Nursing Home Long Stay Fees,29-Aug,"22,190.42 "
460493,BROOKFIELD RESIDENTIAL CARE HOME,Adult Social Care,Adults,Nursing Home Long Stay Fees,29-Aug,"2,990.13 "
460493,BROOKVALE,Adult Social Care,Adults,Nursing Home Long Stay Fees,29-Aug,"20,423.33 "
460493,BROUGHTON HOUSE HOME FOR  EX-SERVICE PERSONNEL,Adult Social Care,Adults,Nursing Home Long Stay Fees,29-Aug,"16,410.85 "
460493,BROWNLOW HOUSE RESIDENTIAL CARE,Adult Social Care,Adults,Nursing Home Long Stay Fees,29-Aug,"24,153.84 "
460493,CAPSTONE CARE LTD T/A WALSHAW HALL,Adult Social Care,Adults,Nursing Home Long Stay Fees,29-Aug,"6,357.22 "
460493,CARE TECH - ALPHA HOUSE CARE HOME,Adult Social Care,Adults,Nursing Home Long Stay Fees,29-Aug,"20,178.92 "
460493,CARE UK LTD TAS RIVERSIDE CARE CENTRE,Adult Social Care,Adults,Nursing Home Long Stay Fees,29-Aug,"190,236.20 "
460493,CARETECH COMMUNITY SERVICES LIMITED,Adult Social Care,Adults,Nursing Home Long Stay Fees,29-Aug,"273,699.06 "
460493,Cartwright Care Balmoral Management Ltd,Adult Social Care,Adults,Nursing Home Long Stay Fees,29-Aug,"38,479.86 "
460493,Clarence House Care Home,Adult Social Care,Adults,Nursing Home Long Stay Fees,29-Aug,"12,710.49 "
460493,Cygnet Healthcare t/a Broughton Lodge,Adult Social Care,Adults,Nursing Home Long Stay Fees,29-Aug,"52,866.16 "
460493,CYGNET LEARNING DISABILITIES LTD,Adult Social Care,Adults,Nursing Home Long Stay Fees,29-Aug,"22,968.79 "
460493,D R Price Associates Limited t/a Chataway Nursing Home,Adult Social Care,Adults,Nursing Home Long Stay Fees,29-Aug,"3,780.72 "
460493,Daisy Nook House t/a Meridian Healthcare LTD,Adult Social Care,Adults,Nursing Home Long Stay Fees,29-Aug,"74,549.27 "
460493,Dalesview Partnership Limited,Adult Social Care,Adults,Nursing Home Long Stay Fees,29-Aug,"17,649.81 "
460493,DEEPDENE CARE LIMITED,Adult Social Care,Adults,Nursing Home Long Stay Fees,29-Aug,"13,951.60 "
460493,DOMAIN CARE NORTH WEST LTD,Adult Social Care,Adults,Nursing Home Long Stay Fees,29-Aug,"8,836.20 "
460493,DOVES NEST LTD,Adult Social Care,Adults,Nursing Home Long Stay Fees,29-Aug,"33,627.51 "
460493,EACH STEP T/A PARK HOMES UK LTD,Adult Social Care,Adults,Nursing Home Long Stay Fees,29-Aug,"20,199.28 "
460493,EAST CHESHIRE HOUSING CONSORTIUM TAS THE COURTYARD,Adult Social Care,Adults,Nursing Home Long Stay Fees,29-Aug,"3,438.61 "
460493,EHC MOSTON GRANGE LTD,Adult Social Care,Adults,Nursing Home Long Stay Fees,29-Aug,"84,173.10 "
460493,ELIZABETH HOUSE,Adult Social Care,Adults,Nursing Home Long Stay Fees,29-Aug,"6,131.09 "
460493,Elysium Healthcare,Adult Social Care,Adults,Nursing Home Long Stay Fees,29-Aug,"19,302.67 "
460493,Equilibrium Healthcare Ltd tas Oakland House Nursing Home,Adult Social Care,Adults,Nursing Home Long Stay Fees,29-Aug,"36,002.24 "
460493,FERN BANK THERAPEUTIC COMMUNITY LTD,Adult Social Care,Adults,Nursing Home Long Stay Fees,29-Aug,"32,213.26 "
460493,FIELDER LODGE,Adult Social Care,Adults,Nursing Home Long Stay Fees,29-Aug,"4,597.57 "
460493,FINBROOK LTD t/a BERRYCROFT MANOR,Adult Social Care,Adults,Nursing Home Long Stay Fees,29-Aug,"6,488.39 "
460493,Fir Trees t/a Meridian Healthcare LTD,Adult Social Care,Adults,Nursing Home Long Stay Fees,29-Aug,"152,458.52 "
460493,Firs Hall Care Home Ltd,Adult Social Care,Adults,Nursing Home Long Stay Fees,21-Sep,"2,930.47 "
460493,FRANCIS HOUSE FAMILIES LTD,Adult Social Care,Adults,Nursing Home Long Stay Fees,29-Aug,"7,528.57 "
460493,Greatwood House t/a Meridian Healthcare LTD,Adult Social Care,Adults,Nursing Home Long Stay Fees,29-Aug,"137,897.36 "
460493,HC ONE OF A KIND - KINGS PARK,Adult Social Care,Adults,Nursing Home Long Stay Fees,29-Aug,"144,755.27 "
460493,HC-ONE LIMITED - BROOKDALE VIEW,Adult Social Care,Adults,Nursing Home Long Stay Fees,29-Aug,"6,615.67 "
460493,"HC-ONE LTD, Sunnyside Care Home",Adult Social Care,Adults,Nursing Home Long Stay Fees,29-Aug,"104,447.01 "
460493,HEATHCOTES M LTD,Adult Social Care,Adults,Nursing Home Long Stay Fees,29-Aug,"90,840.67 "
460493,HEATHCOTES THE ROOKERY,Adult Social Care,Adults,Nursing Home Long Stay Fees,29-Aug,"63,420.19 "
460493,HEATON LODGE,Adult Social Care,Adults,Nursing Home Long Stay Fees,29-Aug,"3,299.55 "
460493,HIGHFIELD HOUSE CARE HOME,Adult Social Care,Adults,Nursing Home Long Stay Fees,29-Aug,"6,652.50 "
460493,Holme Lea t/a Meridian Healthcare LTD,Adult Social Care,Adults,Nursing Home Long Stay Fees,29-Aug,"117,328.93 "
460493,HURST HALL CARE HOME LTD,Adult Social Care,Adults,Nursing Home Long Stay Fees,29-Aug,"139,375.18 "
460493,Ideal Carehomes Number One Limited,Adult Social Care,Adults,Nursing Home Long Stay Fees,29-Aug,"8,918.30 "
460493,JVT CARE HOMES LTD T/A WATFORD HOUSE CARE HOME,Adult Social Care,Adults,Nursing Home Long Stay Fees,29-Aug,"6,231.27 "
460493,L & M HEALTHCARE,Adult Social Care,Adults,Nursing Home Long Stay Fees,29-Aug,"4,333.09 "
460493,LAUREL BANK RESIDENTIAL CARE HOME LTD,Adult Social Care,Adults,Nursing Home Long Stay Fees,29-Aug,"11,096.29 "
460493,LONGWOOD LODGE CARE LTD t/a Longwood Lodge Care Home,Adult Social Care,Adults,Nursing Home Long Stay Fees,29-Aug,"2,929.67 "
460493,MARPLE DALE HALL LTD,Adult Social Care,Adults,Nursing Home Long Stay Fees,29-Aug,"31,032.68 "
460493,Masterpalm Properties Ltd,Adult Social Care,Adults,Nursing Home Long Stay Fees,29-Aug,"6,331.13 "
460493,Maypole Health Care Ltd,Adult Social Care,Adults,Nursing Home Long Stay Fees,29-Aug,"12,556.95 "
460493,MBI SOCIAL CARE LTD TAS DOWNSHAW LODGE CARE HOME,Adult Social Care,Adults,Nursing Home Long Stay Fees,29-Aug,"73,819.75 "
460493,MERIDIAN HEALTH CARE LTD TAS GUIDE LANE,Adult Social Care,Adults,Nursing Home Long Stay Fees,29-Aug,"112,537.54 "
460493,Millbrook Care Home t/a Meridian Healthcare LTD,Adult Social Care,Adults,Nursing Home Long Stay Fees,29-Aug,"67,499.23 "
460493,Minster Care Management -T/A REDHILL,Adult Social Care,Adults,Nursing Home Long Stay Fees,29-Aug,"19,253.74 "
460493,MOSS COTTAGE NURSING HOME,Adult Social Care,Adults,Nursing Home Long Stay Fees,29-Aug,"102,728.55 "
460493,Next Chapter Healthcare Ltd,Adult Social Care,Adults,Nursing Home Long Stay Fees,29-Aug,"5,745.23 "
460493,Northern Care Homes Limited t/a Stoneswood Care Home,Adult Social Care,Adults,Nursing Home Long Stay Fees,29-Aug,"12,739.29 "
460493,Northern Healthcare Limited tas Holland House/Montgomery House,Adult Social Care,Adults,Nursing Home Long Stay Fees,29-Aug,"22,903.19 "
460493,NYMS SERVICES LTD TAS PENNINE CARE CENTRE,Adult Social Care,Adults,Nursing Home Long Stay Fees,29-Aug,"46,691.31 "
460493,OAKDENE CARE HOME T/A OAKDENE CARE HOME LTD,Adult Social Care,Adults,Nursing Home Long Stay Fees,29-Aug,"4,207.23 "
460493,OAKWOOD CARE CENTRE,Adult Social Care,Adults,Nursing Home Long Stay Fees,29-Aug,"41,741.04 "
460493,PARKVIEW CARE HOME,Adult Social Care,Adults,Nursing Home Long Stay Fees,29-Aug,"3,358.54 "
460493,PARTNERSHIP CARING LTD TAS FIRBANK HOUSE NURSING & RESIDENTIAL CARE HOME,Adult Social Care,Adults,Nursing Home Long Stay Fees,29-Aug,"122,882.31 "
460493,Pendlebury Care Homes Ltd tas Regency Hall Care Home,Adult Social Care,Adults,Nursing Home Long Stay Fees,29-Aug,"19,648.12 "
460493,POLEBANK HALL RESIDENTIAL CARE HOME LTD,Adult Social Care,Adults,Nursing Home Long Stay Fees,29-Aug,"32,723.13 "
460493,PRIDELL CARE LTD,Adult Social Care,Adults,Nursing Home Long Stay Fees,29-Aug,"16,773.83 "
460493,PROGRESS CARE & EDUCATION LTD,Adult Social Care,Adults,Nursing Home Long Stay Fees,29-Aug,"18,351.07 "
460493,ROEFIELD SPECIALIST CARE LIMITED t/a THISTLE MANOR,Adult Social Care,Adults,Nursing Home Long Stay Fees,29-Aug,"44,965.42 "
460493,Rose Keys (Lifeways),Adult Social Care,Adults,Nursing Home Long Stay Fees,29-Aug,"17,346.32 "
460493,ROYAL MASONIC BENEVOLENT INSTITUTION,Adult Social Care,Adults,Nursing Home Long Stay Fees,29-Aug,"3,308.90 "
460493,SALUTEM LD BIDCO IV LIMITED T/A AMBITO CARE AND EDUCATION,Adult Social Care,Adults,Nursing Home Long Stay Fees,29-Aug,"22,229.66 "
460493,Sandon House t/a Meridian Healthcare LTD,Adult Social Care,Adults,Nursing Home Long Stay Fees,29-Aug,"102,124.19 "
460493,South Yorkshire Housing Association,Adult Social Care,Adults,Nursing Home Long Stay Fees,29-Aug,"3,863.13 "
460493,SPINAL UNIT ACTION GROUP,Adult Social Care,Adults,Nursing Home Long Stay Fees,29-Aug,"10,354.00 "
460493,St Christopher�s Trust,Adult Social Care,Adults,Nursing Home Long Stay Fees,29-Aug,"4,366.17 "
460493,ST GEORGE'S NURSING HOME (OLDHAM) LTD,Adult Social Care,Adults,Nursing Home Long Stay Fees,29-Aug,"104,257.68 "
460493,ST LAWRENCES LODGE,Adult Social Care,Adults,Nursing Home Long Stay Fees,29-Aug,"13,271.78 "
460493,STALEY HOUSE EPH,Adult Social Care,Adults,Nursing Home Long Stay Fees,29-Aug,"65,845.69 "
460493,Stamford Court Nursing t/a Meridian Healthcare LTD,Adult Social Care,Adults,Nursing Home Long Stay Fees,29-Aug,"157,191.20 "
460493,Sun Healthcare T/A Tapton Grove Care Home,Adult Social Care,Adults,Nursing Home Long Stay Fees,29-Aug,"5,131.96 "
460493,SUNNY BANK PRS LTD,Adult Social Care,Adults,Nursing Home Long Stay Fees,29-Aug,"3,555.74 "
460493,THE FIRS CARE HOME LTD,Adult Social Care,Adults,Nursing Home Long Stay Fees,29-Aug,"13,705.71 "
460493,THE JOSEPH COX CHARITY,Adult Social Care,Adults,Nursing Home Long Stay Fees,29-Aug,"11,511.45 "
460493,THE LIGHT HOUSE (Bloomcare Group),Adult Social Care,Adults,Nursing Home Long Stay Fees,29-Aug,"28,979.87 "
460493,THE ROYAL ELMS CARE HOME,Adult Social Care,Adults,Nursing Home Long Stay Fees,29-Aug,"5,906.20 "
460493,The Sycamores t/a Meridian Health Care LTD,Adult Social Care,Adults,Nursing Home Long Stay Fees,29-Aug,"123,406.00 "
460493,THE VICARAGE RESIDENTIAL CARE HOME,Adult Social Care,Adults,Nursing Home Long Stay Fees,29-Aug,"27,670.57 "
460493,THORNCLIFFE GRANGE NURSING HOME,Adult Social Care,Adults,Nursing Home Long Stay Fees,29-Aug,"92,287.79 "
460493,TRACS Limited,Adult Social Care,Adults,Nursing Home Long Stay Fees,29-Aug,"23,878.86 "
460493,TREETOPS,Adult Social Care,Adults,Nursing Home Long Stay Fees,29-Aug,"130,547.09 "
460493,Tulsi Homes Ltd T/A Clarkson House (new),Adult Social Care,Adults,Nursing Home Long Stay Fees,29-Aug,"49,684.16 "
460493,VOYAGE CARE LIMITED,Adult Social Care,Adults,Nursing Home Long Stay Fees,29-Aug,"70,938.18 "
460493,Wellington Healthcare (Arden) Ltd t/a Bloomcare,Adult Social Care,Adults,Nursing Home Long Stay Fees,29-Aug,"2,984.90 "
460493,Western Park Leicester Limited t/a Western Park Nursing Home,Adult Social Care,Adults,Nursing Home Long Stay Fees,29-Aug,"3,170.72 "
460493,Woodrow House ( Cygnet Healthcare),Adult Social Care,Adults,Nursing Home Long Stay Fees,29-Aug,"60,340.26 "
460493,Yew Trees t/a Meridian Healthcare LTD,Adult Social Care,Adults,Nursing Home Long Stay Fees,29-Aug,"166,316.29 "
460493,ZZ - PARCS HEALTHCARE LTD,Adult Social Care,Adults,Nursing Home Long Stay Fees,29-Aug,"4,770.00 "
460494,Redacted Supplier,Adult Social Care,Adults,Nursing Home Long Stay Fees,15-Sep,"4,656.43 "
460494,The Hennessy Partnership Ltd,Adult Social Care,Adults,Nursing Home Long Stay Fees,15-Sep,"50,404.57 "
460495,Fairfield View Care Home T/A Fairfield View Ltd (In Administration) T/A Fairfield View,Adult Social Care,Adults,Nursing Home Long Stay Fees,22-Sep,"65,000.00 "
460495,The Lakes Care Centre T/A Blackcliffe Ltd (In Administration) T/A The Lakes Care Centre,Adult Social Care,Adults,Nursing Home Long Stay Fees,22-Sep,"87,317.56 "
460496,Advinia Care Homes Ltd,Adult Social Care,Adults,Nursing Home Long Stay Fees,27-Sep,"3,076.29 "
460496,ANCHOR HANOVER GROUP TAS HATTON GRANGE CARE HOME,Adult Social Care,Adults,Nursing Home Long Stay Fees,27-Sep,"106,667.75 "
460496,Appleton Manor T/A HC One Ltd,Adult Social Care,Adults,Nursing Home Long Stay Fees,27-Sep,"3,450.00 "
460496,ARBOUR COURT,Adult Social Care,Adults,Nursing Home Long Stay Fees,27-Sep,"8,730.60 "
460496,ASHGROVE HOUSE CARE LTD,Adult Social Care,Adults,Nursing Home Long Stay Fees,27-Sep,"2,681.49 "
460496,AUDEN HOUSE RESIDENTIAL HOME,Adult Social Care,Adults,Nursing Home Long Stay Fees,27-Sep,"24,060.19 "
460496,Avery Homes Moston Ltd- Acacia Lodge,Adult Social Care,Adults,Nursing Home Long Stay Fees,27-Sep,"2,529.51 "
460496,Barchester Healthcare t/a Glenroyd Care Home,Adult Social Care,Adults,Nursing Home Long Stay Fees,27-Sep,"7,023.34 "
460496,Beeches t/a Meridian Healthcare LTD,Adult Social Care,Adults,Nursing Home Long Stay Fees,27-Sep,"72,150.15 "
460496,BELMONT PARKHILL LTD,Adult Social Care,Adults,Nursing Home Long Stay Fees,27-Sep,"69,241.28 "
460496,BOROUGH CARE LTD,Adult Social Care,Adults,Nursing Home Long Stay Fees,27-Sep,"7,692.00 "
460496,BROOKFIELD RESIDENTIAL CARE HOME,Adult Social Care,Adults,Nursing Home Long Stay Fees,27-Sep,"2,893.67 "
460496,BROOKVALE,Adult Social Care,Adults,Nursing Home Long Stay Fees,27-Sep,"9,882.25 "
460496,BROWNLOW HOUSE RESIDENTIAL CARE,Adult Social Care,Adults,Nursing Home Long Stay Fees,27-Sep,"10,232.90 "
460496,CAPSTONE CARE LTD T/A WALSHAW HALL,Adult Social Care,Adults,Nursing Home Long Stay Fees,27-Sep,"2,668.71 "
460496,CARE TECH - ALPHA HOUSE CARE HOME,Adult Social Care,Adults,Nursing Home Long Stay Fees,27-Sep,"19,527.99 "
460496,CARE UK LTD TAS RIVERSIDE CARE CENTRE,Adult Social Care,Adults,Nursing Home Long Stay Fees,27-Sep,"175,335.13 "
460496,CARETECH COMMUNITY SERVICES LIMITED,Adult Social Care,Adults,Nursing Home Long Stay Fees,27-Sep,"11,940.17 "
460496,Cartwright Care Balmoral Management Ltd,Adult Social Care,Adults,Nursing Home Long Stay Fees,27-Sep,"30,232.11 "
460496,Clarence House Care Home,Adult Social Care,Adults,Nursing Home Long Stay Fees,27-Sep,"12,300.47 "
460496,CYGNET LEARNING DISABILITIES LTD,Adult Social Care,Adults,Nursing Home Long Stay Fees,27-Sep,"11,113.93 "
460496,D R Price Associates Limited t/a Chataway Nursing Home,Adult Social Care,Adults,Nursing Home Long Stay Fees,27-Sep,"3,658.76 "
460496,Daisy Nook House t/a Meridian Healthcare LTD,Adult Social Care,Adults,Nursing Home Long Stay Fees,27-Sep,"77,337.58 "
460496,DEVONSHIRE CARE LIMITED TAS CHARNLEY HOUSE,Adult Social Care,Adults,Nursing Home Long Stay Fees,27-Sep,"82,406.87 "
460496,DOMAIN CARE NORTH WEST LTD,Adult Social Care,Adults,Nursing Home Long Stay Fees,27-Sep,"8,551.16 "
460496,EAST CHESHIRE HOUSING CONSORTIUM TAS THE COURTYARD,Adult Social Care,Adults,Nursing Home Long Stay Fees,27-Sep,"3,327.69 "
460496,EHC MOSTON GRANGE LTD,Adult Social Care,Adults,Nursing Home Long Stay Fees,27-Sep,"48,497.00 "
460496,ELIZABETH HOUSE,Adult Social Care,Adults,Nursing Home Long Stay Fees,27-Sep,"5,933.31 "
460496,Elysium Healthcare,Adult Social Care,Adults,Nursing Home Long Stay Fees,27-Sep,"16,655.70 "
460496,Equilibrium Healthcare Ltd tas Oakland House Nursing Home,Adult Social Care,Adults,Nursing Home Long Stay Fees,27-Sep,"34,840.88 "
460496,FIELDER LODGE,Adult Social Care,Adults,Nursing Home Long Stay Fees,27-Sep,"4,449.26 "
460496,FINBROOK LTD t/a BERRYCROFT MANOR,Adult Social Care,Adults,Nursing Home Long Stay Fees,27-Sep,"3,139.54 "
460496,Fir Trees t/a Meridian Healthcare LTD,Adult Social Care,Adults,Nursing Home Long Stay Fees,27-Sep,"83,382.15 "
460496,Firs Hall Care Home Ltd,Adult Social Care,Adults,Nursing Home Long Stay Fees,27-Sep,"2,835.94 "
460496,FRANCIS HOUSE FAMILIES LTD,Adult Social Care,Adults,Nursing Home Long Stay Fees,27-Sep,"7,285.71 "
460496,Greatwood House t/a Meridian Healthcare LTD,Adult Social Care,Adults,Nursing Home Long Stay Fees,27-Sep,"120,268.88 "
460496,HC One Ltd,Adult Social Care,Adults,Nursing Home Long Stay Fees,27-Sep,"13,895.72 "
460496,HC ONE OF A KIND - KINGS PARK,Adult Social Care,Adults,Nursing Home Long Stay Fees,27-Sep,"106,168.37 "
460496,HC-ONE LIMITED - BROOKDALE VIEW,Adult Social Care,Adults,Nursing Home Long Stay Fees,27-Sep,"3,450.25 "
460496,"HC-ONE LTD, Sunnyside Care Home",Adult Social Care,Adults,Nursing Home Long Stay Fees,27-Sep,"84,064.81 "
460496,HEATHCOTES M LTD,Adult Social Care,Adults,Nursing Home Long Stay Fees,27-Sep,"29,621.96 "
460496,HEATHCOTES THE ROOKERY,Adult Social Care,Adults,Nursing Home Long Stay Fees,27-Sep,"20,680.50 "
460496,HEATON LODGE,Adult Social Care,Adults,Nursing Home Long Stay Fees,27-Sep,"3,193.12 "
460496,HIGHFIELD HOUSE CARE HOME,Adult Social Care,Adults,Nursing Home Long Stay Fees,27-Sep,"2,862.86 "
460496,Holme Lea t/a Meridian Healthcare LTD,Adult Social Care,Adults,Nursing Home Long Stay Fees,27-Sep,"109,030.68 "
460496,HURST HALL CARE HOME LTD,Adult Social Care,Adults,Nursing Home Long Stay Fees,27-Sep,"111,667.40 "
460496,L & M HEALTHCARE,Adult Social Care,Adults,Nursing Home Long Stay Fees,27-Sep,"4,193.31 "
460496,LAUREL BANK RESIDENTIAL CARE HOME LTD,Adult Social Care,Adults,Nursing Home Long Stay Fees,27-Sep,"8,974.30 "
460496,LONGWOOD LODGE CARE LTD t/a Longwood Lodge Care Home,Adult Social Care,Adults,Nursing Home Long Stay Fees,27-Sep,"2,835.17 "
460496,Masterpalm Properties Ltd,Adult Social Care,Adults,Nursing Home Long Stay Fees,27-Sep,"6,126.90 "
460496,Maypole Health Care Ltd,Adult Social Care,Adults,Nursing Home Long Stay Fees,27-Sep,"12,151.89 "
460496,MBI SOCIAL CARE LTD TAS DOWNSHAW LODGE CARE HOME,Adult Social Care,Adults,Nursing Home Long Stay Fees,27-Sep,"78,266.39 "
460496,MENTAL HEALTHCARE UK LTD,Adult Social Care,Adults,Nursing Home Long Stay Fees,27-Sep,"103,564.41 "
460496,MERIDIAN HEALTH CARE LTD TAS GUIDE LANE,Adult Social Care,Adults,Nursing Home Long Stay Fees,27-Sep,"71,838.31 "
460496,Millbrook Care Home t/a Meridian Healthcare LTD,Adult Social Care,Adults,Nursing Home Long Stay Fees,27-Sep,"58,489.30 "
460496,Minster Care Management -T/A REDHILL,Adult Social Care,Adults,Nursing Home Long Stay Fees,27-Sep,"3,775.24 "
460496,MOSS COTTAGE NURSING HOME,Adult Social Care,Adults,Nursing Home Long Stay Fees,27-Sep,"72,466.73 "
460496,Next Chapter Healthcare Ltd,Adult Social Care,Adults,Nursing Home Long Stay Fees,27-Sep,"5,559.90 "
460496,Northern Healthcare Limited tas Holland House/Montgomery House,Adult Social Care,Adults,Nursing Home Long Stay Fees,27-Sep,"4,307.61 "
460496,NYMS SERVICES LTD TAS PENNINE CARE CENTRE,Adult Social Care,Adults,Nursing Home Long Stay Fees,27-Sep,"93,184.20 "
460496,OAKDENE CARE HOME T/A OAKDENE CARE HOME LTD,Adult Social Care,Adults,Nursing Home Long Stay Fees,27-Sep,"4,071.51 "
460496,OAKWOOD CARE CENTRE,Adult Social Care,Adults,Nursing Home Long Stay Fees,27-Sep,"38,716.91 "
460496,PARTNERSHIP CARING LTD TAS FIRBANK HOUSE NURSING & RESIDENTIAL CARE HOME,Adult Social Care,Adults,Nursing Home Long Stay Fees,27-Sep,"107,715.59 "
460496,Pendlebury Care Homes Ltd tas Regency Hall Care Home,Adult Social Care,Adults,Nursing Home Long Stay Fees,27-Sep,"11,219.54 "
460496,POLEBANK HALL RESIDENTIAL CARE HOME LTD,Adult Social Care,Adults,Nursing Home Long Stay Fees,27-Sep,"23,588.57 "
460496,PRIDELL CARE LTD,Adult Social Care,Adults,Nursing Home Long Stay Fees,27-Sep,"3,288.99 "
460496,PROGRESS CARE & EDUCATION LTD,Adult Social Care,Adults,Nursing Home Long Stay Fees,27-Sep,"17,759.10 "
460496,ROEFIELD SPECIALIST CARE LIMITED t/a THISTLE MANOR,Adult Social Care,Adults,Nursing Home Long Stay Fees,27-Sep,"39,503.11 "
460496,Rose Keys (Lifeways),Adult Social Care,Adults,Nursing Home Long Stay Fees,27-Sep,"16,786.76 "
460496,ROYAL MASONIC BENEVOLENT INSTITUTION,Adult Social Care,Adults,Nursing Home Long Stay Fees,27-Sep,"3,202.16 "
460496,Sandon House t/a Meridian Healthcare LTD,Adult Social Care,Adults,Nursing Home Long Stay Fees,27-Sep,"66,998.29 "
460496,SignHealth,Adult Social Care,Adults,Nursing Home Long Stay Fees,27-Sep,"43,306.69 "
460496,South Yorkshire Housing Association,Adult Social Care,Adults,Nursing Home Long Stay Fees,27-Sep,"3,738.51 "
460496,SPINAL UNIT ACTION GROUP,Adult Social Care,Adults,Nursing Home Long Stay Fees,27-Sep,"5,010.00 "
460496,St Christopher�s Trust,Adult Social Care,Adults,Nursing Home Long Stay Fees,27-Sep,"24,762.47 "
460496,ST GEORGE'S NURSING HOME (OLDHAM) LTD,Adult Social Care,Adults,Nursing Home Long Stay Fees,27-Sep,"39,099.57 "
460496,ST LAWRENCES LODGE,Adult Social Care,Adults,Nursing Home Long Stay Fees,27-Sep,"14,100.03 "
460496,STALEY HOUSE EPH,Adult Social Care,Adults,Nursing Home Long Stay Fees,27-Sep,"62,902.33 "
460496,Stamford Court Nursing t/a Meridian Healthcare LTD,Adult Social Care,Adults,Nursing Home Long Stay Fees,27-Sep,"94,575.16 "
460496,Sun Healthcare T/A Tapton Grove Care Home,Adult Social Care,Adults,Nursing Home Long Stay Fees,27-Sep,"4,966.41 "
460496,SUNNY BANK PRS LTD,Adult Social Care,Adults,Nursing Home Long Stay Fees,27-Sep,"3,441.04 "
460496,THE ROYAL ELMS CARE HOME,Adult Social Care,Adults,Nursing Home Long Stay Fees,27-Sep,"5,715.68 "
460496,The Sycamores t/a Meridian Health Care LTD,Adult Social Care,Adults,Nursing Home Long Stay Fees,27-Sep,"108,013.17 "
460496,THE VICARAGE RESIDENTIAL CARE HOME,Adult Social Care,Adults,Nursing Home Long Stay Fees,27-Sep,"26,152.56 "
460496,THORNCLIFFE GRANGE NURSING HOME,Adult Social Care,Adults,Nursing Home Long Stay Fees,27-Sep,"96,031.02 "
460496,TRACS Limited,Adult Social Care,Adults,Nursing Home Long Stay Fees,27-Sep,"11,554.29 "
460496,TREETOPS,Adult Social Care,Adults,Nursing Home Long Stay Fees,27-Sep,"97,186.28 "
460496,Tulsi Homes Ltd T/A Clarkson House (new),Adult Social Care,Adults,Nursing Home Long Stay Fees,27-Sep,"33,283.19 "
460496,VOYAGE CARE LIMITED,Adult Social Care,Adults,Nursing Home Long Stay Fees,27-Sep,"23,132.01 "
460496,Wellington Healthcare (Arden) Ltd t/a Bloomcare,Adult Social Care,Adults,Nursing Home Long Stay Fees,27-Sep,"2,888.61 "
460496,Western Park Leicester Limited t/a Western Park Nursing Home,Adult Social Care,Adults,Nursing Home Long Stay Fees,27-Sep,"3,068.44 "
460496,Woodrow House ( Cygnet Healthcare),Adult Social Care,Adults,Nursing Home Long Stay Fees,27-Sep,"58,393.80 "
460496,Yew Trees t/a Meridian Healthcare LTD,Adult Social Care,Adults,Nursing Home Long Stay Fees,27-Sep,"111,916.28 "
471016,AGGREGATE INDUSTRIES UK LIMITED,Operations and Neighbourhoods,Operations and Neighbourhoods,General Materials,04-Jul,"7,436.47 "
471016,ALTITUDE SERVICES,Operations and Neighbourhoods,Operations and Neighbourhoods,Sub-contractor Services,04-Jul,"1,680.53 "
471016,BRAMHALL SURFACING LTD,Operations and Neighbourhoods,Operations and Neighbourhoods,General Materials,04-Jul,"31,550.57 "
471016,BRAMHALL SURFACING LTD,Operations and Neighbourhoods,Operations and Neighbourhoods,Sub-contractor Services,04-Jul,"53,392.76 "
471016,COLAS LTD,Operations and Neighbourhoods,Operations and Neighbourhoods,General Materials,04-Jul,"2,763.84 "
471016,EAGLE CIVIL ENGINEERING LTD,Operations and Neighbourhoods,Operations and Neighbourhoods,General Materials,04-Jul,"13,069.49 "
471016,EAGLE CIVIL ENGINEERING LTD,Operations and Neighbourhoods,Operations and Neighbourhoods,Sub-contractor Services,04-Jul,"3,656.04 "
471016,FAIRWAY LANDSCAPES LTD,Operations and Neighbourhoods,Operations and Neighbourhoods,General Materials,04-Jul,"5,158.95 "
471016,FAIRWAY LANDSCAPES LTD,Operations and Neighbourhoods,Operations and Neighbourhoods,Sub-contractor Services,04-Jul,"10,680.00 "
471016,Holroyds Skip Hire Limited,Operations and Neighbourhoods,Operations and Neighbourhoods,General Materials,04-Jul,"4,000.00 "
471016,Holroyds Skip Hire Limited,Operations and Neighbourhoods,Operations and Neighbourhoods,Tipping Facility Fees,04-Jul,160.00 
471016,INSTARMAC GROUP PLC,Civil Engineers,Director of Place,Debits Goods Received,04-Jul,"3,137.12 "
471016,J9 LTD trading as BARRIERS DIRECT,Operations and Neighbourhoods,Operations and Neighbourhoods,General Materials,04-Jul,"1,346.50 "
471016,"Larsen Manufacturing Ltd, t/a Larsen Building Products",Operations and Neighbourhoods,Operations and Neighbourhoods,General Materials,04-Jul,"1,956.00 "
471016,TARMAC CENTRAL LIMITED,Operations and Neighbourhoods,Operations and Neighbourhoods,General Materials,04-Jul,"3,310.32 "
471016,TRAFFIC DIRECT LTD,Operations and Neighbourhoods,Operations and Neighbourhoods,Sub-contractor Services,04-Jul,"14,200.00 "
471016,TRAFFIC DIRECT LTD,(blank),(blank),General Materials,04-Jul,620.00 
471016,WOLSELEY UK LTD,Civil Engineers,Director of Place,Debits Goods Received,04-Jul,"3,042.75 "
471016,WOLSELEY UK LTD,Operations and Neighbourhoods,Operations and Neighbourhoods,General Materials,04-Jul,"1,297.01 "
471016,WOTMIX LIMITED,Operations and Neighbourhoods,Operations and Neighbourhoods,General Materials,04-Jul,"1,285.00 "
471017,ACORN LIGHTING SERVICES LTD,Operations and Neighbourhoods,Operations and Neighbourhoods,Sub-contractor Services,07-Jul,"13,640.00 "
471017,AGGREGATE INDUSTRIES UK LIMITED,Operations and Neighbourhoods,Operations and Neighbourhoods,General Materials,07-Jul,"9,725.03 "
471017,ARCO LIMITED,Civil Engineers,Director of Place,Debits Goods Received,07-Jul,755.44 
471017,ARCO LIMITED,Operations and Neighbourhoods,Operations and Neighbourhoods,General Materials,07-Jul,139.92 
471017,BRAMHALL SURFACING LTD,Operations and Neighbourhoods,Operations and Neighbourhoods,Sub-contractor Services,07-Jul,"23,847.82 "
471017,CASTINGS SERVICES LTD,Civil Engineers,Director of Place,Debits Goods Received,07-Jul,"3,600.00 "
471017,CHALLENGER SITE SERVICES LLP,Operations and Neighbourhoods,Operations and Neighbourhoods,General Materials,07-Jul,515.00 
471017,GARIC LTD,Operations and Neighbourhoods,Operations and Neighbourhoods,General Materials,07-Jul,"2,796.80 "
471017,North West Training Academy Ltd,Operations and Neighbourhoods,Operations and Neighbourhoods,Training Course Costs,07-Jul,"1,750.00 "
471017,Saint-Gobain Building Distribution Limited t/a Benchmark Building Supplies,Civil Engineers,Director of Place,Debits Goods Received,07-Jul,"1,404.00 "
471017,TARMAC CENTRAL LIMITED,Operations and Neighbourhoods,Operations and Neighbourhoods,General Materials,07-Jul,"4,663.03 "
471017,TRAFFIC DIRECT LTD,Operations and Neighbourhoods,Operations and Neighbourhoods,General Materials,07-Jul,"4,000.00 "
471017,TRAFFIC DIRECT LTD,Operations and Neighbourhoods,Operations and Neighbourhoods,Sub-contractor Services,07-Jul,502.50 
471017,TRAFFIC DIRECT LTD,(blank),(blank),General Materials,07-Jul,"1,860.00 "
471018,AGGREGATE INDUSTRIES UK LIMITED,Operations and Neighbourhoods,Operations and Neighbourhoods,General Materials,18-Jul,"1,296.05 "
471018,Cadent Gas Limited,Operations and Neighbourhoods,Operations and Neighbourhoods,Sub-contractor Services,18-Jul,"2,451.83 "
471018,TARMAC CENTRAL LIMITED,Operations and Neighbourhoods,Operations and Neighbourhoods,General Materials,18-Jul,"1,597.83 "
471018,TRAFFIC DIRECT LTD,Operations and Neighbourhoods,Operations and Neighbourhoods,General Materials,18-Jul,"5,171.50 "
471018,TRAFFIC DIRECT LTD,Operations and Neighbourhoods,Operations and Neighbourhoods,Sub-contractor Services,18-Jul,800.00 
471018,UBU ENVIRONMENTAL LTD,Operations and Neighbourhoods,Operations and Neighbourhoods,Sub-contractor Services,18-Jul,"10,732.50 "
471018,WOLSELEY UK LTD,Operations and Neighbourhoods,Operations and Neighbourhoods,General Materials,18-Jul,729.60 
471019,BRAMHALL SURFACING LTD,Operations and Neighbourhoods,Operations and Neighbourhoods,Sub-contractor Services,24-Jul,"21,768.65 "
471019,CHALLENGER SITE SERVICES LLP,Operations and Neighbourhoods,Operations and Neighbourhoods,General Materials,24-Jul,747.50 
471019,INSTARMAC GROUP PLC,Civil Engineers,Director of Place,Debits Goods Received,24-Jul,"2,389.36 "
471019,KEN TAYLOR SUPPLIES LTD,Operations and Neighbourhoods,Operations and Neighbourhoods,General Materials,24-Jul,"1,519.60 "
471019,MAIN STREET SIGNS LIMITED,Operations and Neighbourhoods,Operations and Neighbourhoods,General Materials,24-Jul,585.20 
471019,MULTEVO LIMITED,Operations and Neighbourhoods,Operations and Neighbourhoods,Sub-contractor Services,24-Jul,"1,392.60 "
471019,North West Training Academy Ltd,Operations and Neighbourhoods,Operations and Neighbourhoods,Training Course Costs,24-Jul,"2,050.00 "
471019,ROWAN ASHWORTH LIMITED,Operations and Neighbourhoods,Operations and Neighbourhoods,Tipping Facility Fees,24-Jul,"2,720.00 "
471019,TARMAC CENTRAL LIMITED,Operations and Neighbourhoods,Operations and Neighbourhoods,General Materials,24-Jul,"13,084.25 "
471019,UBU ENVIRONMENTAL LTD,Operations and Neighbourhoods,Operations and Neighbourhoods,Sub-contractor Services,24-Jul,"5,782.50 "
471019,WOTMIX LIMITED,Operations and Neighbourhoods,Operations and Neighbourhoods,General Materials,24-Jul,828.00 
471020,ABBEY INDUSTRIAL SOLUTIONS LTD,Operations and Neighbourhoods,Operations and Neighbourhoods,Sub-contractor Services,31-Jul,"1,660.04 "
471020,AGGREGATE INDUSTRIES UK LIMITED,Operations and Neighbourhoods,Operations and Neighbourhoods,General Materials,31-Jul,"3,247.32 "
471020,ALTITUDE SERVICES,Operations and Neighbourhoods,Operations and Neighbourhoods,General Materials,31-Jul,"2,573.87 "
471020,BRAMHALL SURFACING LTD,Operations and Neighbourhoods,Operations and Neighbourhoods,General Materials,31-Jul,"8,700.64 "
471020,BRAMHALL SURFACING LTD,Operations and Neighbourhoods,Operations and Neighbourhoods,Sub-contractor Services,31-Jul,"79,011.11 "
471020,EAGLE CIVIL ENGINEERING LTD,Operations and Neighbourhoods,Operations and Neighbourhoods,General Materials,31-Jul,"10,278.25 "
471020,EAGLE CIVIL ENGINEERING LTD,Operations and Neighbourhoods,Operations and Neighbourhoods,Sub-contractor Services,31-Jul,131.04 
471020,FAIRWAY LANDSCAPES LTD,Operations and Neighbourhoods,Operations and Neighbourhoods,Sub-contractor Services,31-Jul,"84,451.40 "
471020,MARCHINGTON STONE,Civil Engineers,Director of Place,Debits Goods Received,31-Jul,609.10 
471020,MARCHINGTON STONE,Operations and Neighbourhoods,Operations and Neighbourhoods,General Materials,31-Jul,394.97 
471020,NORTHWEST UTILITY SOLUTIONS LTD,Operations and Neighbourhoods,Operations and Neighbourhoods,General Materials,31-Jul,600.00 
471020,NORTHWEST UTILITY SOLUTIONS LTD,Operations and Neighbourhoods,Operations and Neighbourhoods,Sub-contractor Services,31-Jul,"35,550.00 "
471020,TARMAC CENTRAL LIMITED,Operations and Neighbourhoods,Operations and Neighbourhoods,General Materials,31-Jul,"9,878.69 "
471020,TRAFFIC DIRECT LTD,Operations and Neighbourhoods,Operations and Neighbourhoods,General Materials,31-Jul,"8,692.00 "
471020,WOTMIX LIMITED,Operations and Neighbourhoods,Operations and Neighbourhoods,General Materials,31-Jul,"1,239.00 "
471020,ZODION LTD,Operations and Neighbourhoods,Operations and Neighbourhoods,General Materials,31-Jul,"1,652.00 "
471021,AGGREGATE INDUSTRIES UK LIMITED,Operations and Neighbourhoods,Operations and Neighbourhoods,General Materials,07-Aug,"2,928.70 "
471021,ARMCON LTD,Civil Engineers,Director of Place,Debits Goods Received,07-Aug,719.50 
471021,BRAMHALL SURFACING LTD,Operations and Neighbourhoods,Operations and Neighbourhoods,Sub-contractor Services,07-Aug,"14,908.67 "
471021,CASTINGS SERVICES LTD,Operations and Neighbourhoods,Operations and Neighbourhoods,General Materials,07-Aug,"1,020.00 "
471021,ELECTRICITY NORTH WEST LTD,Operations and Neighbourhoods,Operations and Neighbourhoods,Sub-contractor Services,07-Aug,"1,302.47 "
471021,FAIRWAY LANDSCAPES LTD,Operations and Neighbourhoods,Operations and Neighbourhoods,Sub-contractor Services,07-Aug,"21,386.90 "
471021,GREENHAM TRADING LIMITED,Operations and Neighbourhoods,Operations and Neighbourhoods,General Materials,07-Aug,"1,610.98 "
471021,Keolis Amey Metrolink Ltd,Operations and Neighbourhoods,Operations and Neighbourhoods,Sub-contractor Services,07-Aug,990.00 
471021,North West Training Academy Ltd,Operations and Neighbourhoods,Operations and Neighbourhoods,Training Course Costs,07-Aug,600.00 
471021,NORTHWEST UTILITY SOLUTIONS LTD,Operations and Neighbourhoods,Operations and Neighbourhoods,Sub-contractor Services,07-Aug,"17,025.00 "
471021,Saint-Gobain Building Distribution Limited t/a Benchmark Building Supplies,Civil Engineers,Director of Place,Debits Goods Received,07-Aug,"1,824.95 "
471021,TARMAC CENTRAL LIMITED,Operations and Neighbourhoods,Operations and Neighbourhoods,General Materials,07-Aug,"4,311.28 "
471021,UBU ENVIRONMENTAL LTD,Operations and Neighbourhoods,Operations and Neighbourhoods,Sub-contractor Services,07-Aug,"2,677.50 "
471021,WOTMIX LIMITED,Operations and Neighbourhoods,Operations and Neighbourhoods,General Materials,07-Aug,626.00 
471022,ACORN LIGHTING SERVICES LTD,Operations and Neighbourhoods,Operations and Neighbourhoods,Sub-contractor Services,14-Aug,"12,030.00 "
471022,AGGREGATE INDUSTRIES UK LIMITED,Operations and Neighbourhoods,Operations and Neighbourhoods,General Materials,14-Aug,"7,142.09 "
471022,FAIRWAY LANDSCAPES LTD,Operations and Neighbourhoods,Operations and Neighbourhoods,Sub-contractor Services,14-Aug,"3,098.50 "
471022,MANCHESTER PLANT TRAINING LTD,Operations and Neighbourhoods,Operations and Neighbourhoods,Training Course Costs,14-Aug,"1,700.00 "
471022,Rexel,Civil Engineers,Director of Place,Debits Goods Received,14-Aug,"1,128.00 "
471022,ROWAN ASHWORTH LIMITED,Operations and Neighbourhoods,Operations and Neighbourhoods,Sub-contractor Services,14-Aug,"19,412.00 "
471022,ROWAN ASHWORTH LIMITED,Operations and Neighbourhoods,Operations and Neighbourhoods,Tipping Facility Fees,14-Aug,"3,120.00 "
471023,AGGREGATE INDUSTRIES UK LIMITED,Operations and Neighbourhoods,Operations and Neighbourhoods,General Materials,21-Aug,"8,633.07 "
471023,ARCO LIMITED,Civil Engineers,Director of Place,Debits Goods Received,21-Aug,326.48 
471023,ARCO LIMITED,Operations and Neighbourhoods,Operations and Neighbourhoods,General Materials,21-Aug,302.60 
471023,BRAMHALL SURFACING LTD,Operations and Neighbourhoods,Operations and Neighbourhoods,Sub-contractor Services,21-Aug,"37,900.00 "
471023,CASTINGS SERVICES LTD,Civil Engineers,Director of Place,Debits Goods Received,21-Aug,"1,573.00 "
471023,CASTINGS SERVICES LTD,Operations and Neighbourhoods,Operations and Neighbourhoods,General Materials,21-Aug,170.00 
471023,FURNITUBES INTERNATIONAL LIMITED,Operations and Neighbourhoods,Operations and Neighbourhoods,General Materials,21-Aug,"1,384.58 "
471023,J9 LTD trading as BARRIERS DIRECT,Engineers Client,Director of Place,General Materials,21-Aug,197.12 
471023,J9 LTD trading as BARRIERS DIRECT,Operations and Neighbourhoods,Operations and Neighbourhoods,General Materials,21-Aug,574.44 
471023,MARCHINGTON STONE,Operations and Neighbourhoods,Operations and Neighbourhoods,General Materials,21-Aug,"1,201.25 "
471023,MULTEVO LIMITED,Operations and Neighbourhoods,Operations and Neighbourhoods,General Materials,21-Aug,"1,185.00 "
471023,Origin Amenity Solutions Ltd,Civil Engineers,Director of Place,Debits Goods Received,21-Aug,662.56 
471023,ROWAN ASHWORTH LIMITED,Operations and Neighbourhoods,Operations and Neighbourhoods,Tipping Facility Fees,21-Aug,"1,920.00 "
471023,TARMAC CENTRAL LIMITED,Operations and Neighbourhoods,Operations and Neighbourhoods,General Materials,21-Aug,"3,506.37 "
471023,TRAFFIC DIRECT LTD,Operations and Neighbourhoods,Operations and Neighbourhoods,General Materials,21-Aug,"15,410.00 "
471023,TRAFFIC DIRECT LTD,Operations and Neighbourhoods,Operations and Neighbourhoods,Sub-contractor Services,21-Aug,400.00 
471023,UBU ENVIRONMENTAL LTD,Operations and Neighbourhoods,Operations and Neighbourhoods,Sub-contractor Services,21-Aug,"1,350.00 "
471023,WOLSELEY UK LTD,Civil Engineers,Director of Place,Debits Goods Received,21-Aug,"1,639.75 "
471023,WOLSELEY UK LTD,Operations and Neighbourhoods,Operations and Neighbourhoods,General Materials,21-Aug,786.01 
471024,ALTITUDE SERVICES,Operations and Neighbourhoods,Operations and Neighbourhoods,General Materials,30-Aug,"6,539.70 "
471024,ALTITUDE SERVICES,Operations and Neighbourhoods,Operations and Neighbourhoods,Sub-contractor Services,30-Aug,641.85 
471024,BRIDGE ELECTRICALSUPPLIES LTD,Civil Engineers,Director of Place,Debits Goods Received,30-Aug,"1,455.00 "
471024,DIAMOND DECORATORS UK LTD,Operations and Neighbourhoods,Operations and Neighbourhoods,Sub-contractor Services,30-Aug,"1,322.50 "
471024,ELECTRICITY NORTH WEST LTD,Operations and Neighbourhoods,Operations and Neighbourhoods,General Materials,30-Aug,501.36 
471024,ELECTRICITY NORTH WEST LTD,Operations and Neighbourhoods,Operations and Neighbourhoods,Sub-contractor Services,30-Aug,"1,834.67 "
471024,KEN TAYLOR SUPPLIES LTD,Operations and Neighbourhoods,Operations and Neighbourhoods,General Materials,30-Aug,"3,553.79 "
471024,T N ROBINSON LTD,Civil Engineers,Director of Place,Debits Goods Received,30-Aug,500.00 
471024,T N ROBINSON LTD,Operations and Neighbourhoods,Operations and Neighbourhoods,General Materials,30-Aug,24.50 
471024,TARMAC CENTRAL LIMITED,Operations and Neighbourhoods,Operations and Neighbourhoods,General Materials,30-Aug,"1,791.03 "
471024,TRANSPORT FOR GREATER MANCHESTER,Operations and Neighbourhoods,Operations and Neighbourhoods,Sub-contractor Services,30-Aug,650.00 
471024,WOTMIX LIMITED,Operations and Neighbourhoods,Operations and Neighbourhoods,General Materials,30-Aug,"1,385.00 "
471025,AGGREGATE INDUSTRIES UK LIMITED,Operations and Neighbourhoods,Operations and Neighbourhoods,General Materials,04-Sep,"7,504.13 "
471025,Elite Force Safety Ltd,Operations and Neighbourhoods,Operations and Neighbourhoods,General Materials,04-Sep,"2,795.00 "
471025,Holroyds Skip Hire Limited,Operations and Neighbourhoods,Operations and Neighbourhoods,General Materials,04-Sep,"4,000.00 "
471025,HSS HIRE SERVICE GROUP  PLC,Operations and Neighbourhoods,Operations and Neighbourhoods,General Materials,04-Sep,623.50 
471025,"Larsen Manufacturing Ltd, t/a Larsen Building Products",Operations and Neighbourhoods,Operations and Neighbourhoods,General Materials,04-Sep,"2,627.40 "
471025,MANCHESTER PLANT TRAINING LTD,Operations and Neighbourhoods,Operations and Neighbourhoods,Training Course Costs,04-Sep,"1,410.00 "
471025,REDDILIGHT LTD,Civil Engineers,Director of Place,Debits Goods Received,04-Sep,"4,420.00 "
471025,REDDILIGHT LTD,Operations and Neighbourhoods,Operations and Neighbourhoods,General Materials,04-Sep,170.00 
471025,TARMAC CENTRAL LIMITED,Operations and Neighbourhoods,Operations and Neighbourhoods,General Materials,04-Sep,"1,010.23 "
471025,Valmont Stainton LTD,Operations and Neighbourhoods,Operations and Neighbourhoods,General Materials,04-Sep,"7,323.85 "
471026,ABBEY INDUSTRIAL SOLUTIONS LTD,Operations and Neighbourhoods,Operations and Neighbourhoods,Sub-contractor Services,11-Sep,"1,156.17 "
471026,AGGREGATE INDUSTRIES UK LIMITED,Operations and Neighbourhoods,Operations and Neighbourhoods,General Materials,11-Sep,"1,089.32 "
471026,ALTITUDE SERVICES,Operations and Neighbourhoods,Operations and Neighbourhoods,General Materials,11-Sep,501.36 
471026,BRAMHALL SURFACING LTD,Operations and Neighbourhoods,Operations and Neighbourhoods,Sub-contractor Services,11-Sep,"118,195.77 "
471026,DIAMOND DECORATORS UK LTD,Operations and Neighbourhoods,Operations and Neighbourhoods,Sub-contractor Services,11-Sep,"1,550.00 "
471026,EAGLE CIVIL ENGINEERING LTD,Operations and Neighbourhoods,Operations and Neighbourhoods,General Materials,11-Sep,"19,701.28 "
471026,EAGLE CIVIL ENGINEERING LTD,Operations and Neighbourhoods,Operations and Neighbourhoods,Sub-contractor Services,11-Sep,131.04 
471026,FAIRWAY LANDSCAPES LTD,Operations and Neighbourhoods,Operations and Neighbourhoods,Sub-contractor Services,11-Sep,"18,173.80 "
471026,GARIC LTD,Operations and Neighbourhoods,Operations and Neighbourhoods,General Materials,11-Sep,"5,275.80 "
471026,Holroyds Skip Hire Limited,Operations and Neighbourhoods,Operations and Neighbourhoods,General Materials,11-Sep,"2,250.00 "
471026,KEN TAYLOR SUPPLIES LTD,Operations and Neighbourhoods,Operations and Neighbourhoods,General Materials,11-Sep,644.00 
471026,"Larsen Manufacturing Ltd, t/a Larsen Building Products",Operations and Neighbourhoods,Operations and Neighbourhoods,General Materials,11-Sep,"5,730.00 "
471026,NORTHWEST UTILITY SOLUTIONS LTD,Operations and Neighbourhoods,Operations and Neighbourhoods,Sub-contractor Services,11-Sep,"8,475.00 "
471026,PEVERALL BROS LTD T/A SURVEY EXPRESS SERVICES,Operations and Neighbourhoods,Operations and Neighbourhoods,General Materials,11-Sep,"1,449.00 "
471026,PG FABRICATIONS,Multiple Heads of Service,Multiple Strategic Directorates,Tax Retained Sub Contractors,11-Sep,-130.00 
471026,PG FABRICATIONS,Operations and Neighbourhoods,Operations and Neighbourhoods,Sub-contractor Services,11-Sep,"1,730.00 "
471026,Saint-Gobain Building Distribution Limited t/a Benchmark Building Supplies,Operations and Neighbourhoods,Operations and Neighbourhoods,General Materials,11-Sep,"1,097.26 "
471026,TARMAC CENTRAL LIMITED,Operations and Neighbourhoods,Operations and Neighbourhoods,General Materials,11-Sep,"3,708.35 "
471026,TRAFFIC DIRECT LTD,Operations and Neighbourhoods,Operations and Neighbourhoods,General Materials,11-Sep,"10,267.00 "
471026,TRAFFIC DIRECT LTD,Operations and Neighbourhoods,Operations and Neighbourhoods,Sub-contractor Services,11-Sep,"15,862.50 "
471026,UBU ENVIRONMENTAL LTD,Operations and Neighbourhoods,Operations and Neighbourhoods,Sub-contractor Services,11-Sep,"1,800.00 "
471026,WOLSELEY UK LTD,Operations and Neighbourhoods,Operations and Neighbourhoods,General Materials,11-Sep,"2,767.86 "
471027,ACORN LIGHTING SERVICES LTD,Operations and Neighbourhoods,Operations and Neighbourhoods,Sub-contractor Services,18-Sep,"11,000.00 "
471027,AGGREGATE INDUSTRIES UK LIMITED,Operations and Neighbourhoods,Operations and Neighbourhoods,General Materials,18-Sep,"14,243.37 "
471027,ALTITUDE SERVICES,Operations and Neighbourhoods,Operations and Neighbourhoods,General Materials,18-Sep,"25,154.34 "
471027,ALTITUDE SERVICES,Operations and Neighbourhoods,Operations and Neighbourhoods,Sub-contractor Services,18-Sep,"2,616.21 "
471027,BRAMHALL SURFACING LTD,Operations and Neighbourhoods,Operations and Neighbourhoods,Sub-contractor Services,18-Sep,"25,459.91 "
471027,CHALLENGER SITE SERVICES LLP,Operations and Neighbourhoods,Operations and Neighbourhoods,General Materials,18-Sep,700.00 
471027,DW WINDSOR LIMITED,Operations and Neighbourhoods,Operations and Neighbourhoods,General Materials,18-Sep,"5,183.64 "
471027,FAIRWAY LANDSCAPES LTD,Operations and Neighbourhoods,Operations and Neighbourhoods,General Materials,18-Sep,"2,485.80 "
471027,"Larsen Manufacturing Ltd, t/a Larsen Building Products",Operations and Neighbourhoods,Operations and Neighbourhoods,General Materials,18-Sep,"4,290.00 "
471027,LIMELIGHT SIGNS LIMITED,Civil Engineers,Director of Place,Debits Goods Received,18-Sep,281.10 
471027,LIMELIGHT SIGNS LIMITED,Engineers Client,Director of Place,General Materials,18-Sep,84.90 
471027,LIMELIGHT SIGNS LIMITED,Operations and Neighbourhoods,Operations and Neighbourhoods,General Materials,18-Sep,266.36 
471027,NORTHWEST UTILITY SOLUTIONS LTD,Multiple Heads of Service,Multiple Strategic Directorates,Tax Retained Sub Contractors,18-Sep,"-6,090.00 "
471027,NORTHWEST UTILITY SOLUTIONS LTD,Operations and Neighbourhoods,Operations and Neighbourhoods,Sub-contractor Services,18-Sep,"38,400.00 "
471027,pro garden projects,Operations and Neighbourhoods,Operations and Neighbourhoods,General Materials,18-Sep,500.00 
471027,TARMAC CENTRAL LIMITED,Operations and Neighbourhoods,Operations and Neighbourhoods,General Materials,18-Sep,"3,189.52 "
471027,TRANSPORT FOR GREATER MANCHESTER,Operations and Neighbourhoods,Operations and Neighbourhoods,Sub-contractor Services,18-Sep,926.23 
471027,UNITED UTILITIES WATER LTD,Operations and Neighbourhoods,Operations and Neighbourhoods,General Materials,18-Sep,"1,109.00 "
471027,WOLSELEY UK LTD,Civil Engineers,Director of Place,Debits Goods Received,18-Sep,"1,725.46 "
471027,WOLSELEY UK LTD,Operations and Neighbourhoods,Operations and Neighbourhoods,General Materials,18-Sep,"2,297.65 "
471028,AGGREGATE INDUSTRIES UK LIMITED,Operations and Neighbourhoods,Operations and Neighbourhoods,General Materials,25-Sep,"2,097.25 "
471028,ALTITUDE SERVICES,Operations and Neighbourhoods,Operations and Neighbourhoods,General Materials,25-Sep,"1,417.62 "
471028,ALTITUDE SERVICES,Operations and Neighbourhoods,Operations and Neighbourhoods,Sub-contractor Services,25-Sep,"1,280.09 "
471028,BLACHERE ILLUMINATION UK LTD,Operations and Neighbourhoods,Operations and Neighbourhoods,General Materials,25-Sep,"10,350.00 "
471028,BRAMHALL SURFACING LTD,Operations and Neighbourhoods,Operations and Neighbourhoods,Sub-contractor Services,25-Sep,"9,087.75 "
471028,BRIDGE ELECTRICALSUPPLIES LTD,Operations and Neighbourhoods,Operations and Neighbourhoods,General Materials,25-Sep,650.00 
471028,FAIRWAY LANDSCAPES LTD,Operations and Neighbourhoods,Operations and Neighbourhoods,Sub-contractor Services,25-Sep,"1,195.00 "
471028,Holroyds Skip Hire Limited,Operations and Neighbourhoods,Operations and Neighbourhoods,General Materials,25-Sep,"1,160.00 "
471028,JM VARDY ELECTRICAL LTD,Engineers Client,Director of Place,Street Lighting Works,25-Sep,"1,384.00 "
471028,North West Training Academy Ltd,Operations and Neighbourhoods,Operations and Neighbourhoods,Training Course Costs,25-Sep,"1,000.00 "
471028,NORTHWEST UTILITY SOLUTIONS LTD,Multiple Heads of Service,Multiple Strategic Directorates,Tax Retained Sub Contractors,25-Sep,"-1,695.00 "
471028,NORTHWEST UTILITY SOLUTIONS LTD,Operations and Neighbourhoods,Operations and Neighbourhoods,Sub-contractor Services,25-Sep,"17,625.00 "
471028,TRAFFIC DIRECT LTD,Engineers Client,Director of Place,General Materials,25-Sep,"1,080.00 "
471028,TRAFFIC DIRECT LTD,Operations and Neighbourhoods,Operations and Neighbourhoods,General Materials,25-Sep,960.00 
471028,TRAFFIC DIRECT LTD,Operations and Neighbourhoods,Operations and Neighbourhoods,Sub-contractor Services,25-Sep,"1,070.00 "
471028,UBU ENVIRONMENTAL LTD,Operations and Neighbourhoods,Operations and Neighbourhoods,Sub-contractor Services,25-Sep,"1,350.00 "
3250921,A & J MOTORSPARES,Operations and Neighbourhoods,Operations and Neighbourhoods,Consumable Materials,06-Jul,71.93 
3250921,A & J MOTORSPARES,Operations and Neighbourhoods,Operations and Neighbourhoods,General Materials,06-Jul,424.80 
3250921,A & J MOTORSPARES,Transport,Director of Place,Debits Goods Received,06-Jul,713.51 
3250921,AIRMATIC COMPRESSORS LIMITED,Operations and Neighbourhoods,Operations and Neighbourhoods,General Equipment Repair & Maintenance,06-Jul,734.47 
3250921,AUTOSMART INTERNATIONAL,Operations and Neighbourhoods,Operations and Neighbourhoods,General Equipment Repair & Maintenance,06-Jul,536.35 
3250921,DENNIS EAGLE LTD,Operations and Neighbourhoods,Operations and Neighbourhoods,General Materials,06-Jul,495.22 
3250921,DENNIS EAGLE LTD,Transport,Director of Place,Debits Goods Received,06-Jul,"1,199.31 "
3250921,F. R. SHARROCK LIMITED,Operations and Neighbourhoods,Operations and Neighbourhoods,General Materials,06-Jul,176.40 
3250921,F. R. SHARROCK LIMITED,Operations and Neighbourhoods,Operations and Neighbourhoods,Sub-contractor Services,06-Jul,"1,725.13 "
3250921,F. R. SHARROCK LIMITED,Transport,Director of Place,Debits Goods Received,06-Jul,546.12 
3250921,G B OILS TA CARLTON FUELS,Transport,Director of Place,Diesel Fuel,06-Jul,"22,930.31 "
3250921,GIBSONS GARDEN MACHINERY LIMITED,Operations and Neighbourhoods,Operations and Neighbourhoods,General Materials,06-Jul,"1,229.16 "
3250921,HTF TYRE SERVICES LTD,Operations and Neighbourhoods,Operations and Neighbourhoods,Tyre Costs,06-Jul,"3,675.22 "
3250921,INDUSTRIAL & HYDRAULIC SERVICES,Operations and Neighbourhoods,Operations and Neighbourhoods,Sub-contractor Services,06-Jul,"1,113.55 "
3250921,JOHNSTON SWEEPERS LTD,Operations and Neighbourhoods,Operations and Neighbourhoods,General Materials,06-Jul,953.70 
3250921,MILTON PUMP ENGINEERS LIMITED,Operations and Neighbourhoods,Operations and Neighbourhoods,Building Repairs,06-Jul,"6,500.00 "
3250921,MULTEVO LIMITED,Operations and Neighbourhoods,Operations and Neighbourhoods,General Materials,06-Jul,630.90 
3250921,Teletrac Navman (UK) LTD,Operations and Neighbourhoods,Operations and Neighbourhoods,General Equipment Repair & Maintenance,06-Jul,"5,385.33 "
3250921,TERBERG MATEC UK LTD,Transport,Director of Place,Debits Goods Received,06-Jul,802.80 
3250922,A & J MOTORSPARES,Operations and Neighbourhoods,Operations and Neighbourhoods,Consumable Materials,13-Jul,69.42 
3250922,A & J MOTORSPARES,Operations and Neighbourhoods,Operations and Neighbourhoods,General Equipment Purchase,13-Jul,160.00 
3250922,A & J MOTORSPARES,Operations and Neighbourhoods,Operations and Neighbourhoods,General Materials,13-Jul,"1,030.26 "
3250922,A & J MOTORSPARES,Transport,Director of Place,Debits Goods Received,13-Jul,82.52 
3250922,AEBI SCHMIDT UK LTD,Transport,Director of Place,Debits Goods Received,13-Jul,"1,491.27 "
3250922,DENNIS EAGLE LTD,Operations and Neighbourhoods,Operations and Neighbourhoods,General Materials,13-Jul,"1,398.18 "
3250922,DENNIS EAGLE LTD,Transport,Director of Place,Debits Goods Received,13-Jul,"1,656.29 "
3250922,G B OILS TA CARLTON FUELS,Transport,Director of Place,Diesel Fuel,13-Jul,"32,474.76 "
3250922,JOHNSONS APPARELMASTER LTD,Operations and Neighbourhoods,Operations and Neighbourhoods,Protective Clothing,13-Jul,840.24 
3250922,MOTUS COMMERCIALS OLDHAM,Operations and Neighbourhoods,Operations and Neighbourhoods,General Materials,13-Jul,"1,548.26 "
3250922,MOTUS COMMERCIALS OLDHAM,Transport,Director of Place,Debits Goods Received,13-Jul,70.00 
3250922,T & C MOTOR PANELS LIMITED,Operations and Neighbourhoods,Operations and Neighbourhoods,Sub-contractor Services,13-Jul,500.00 
3250922,T Cards Direct,Operations and Neighbourhoods,Operations and Neighbourhoods,General Equipment Purchase,13-Jul,612.00 
3250922,T H WHITE LIMITED t/a Palfinger UK,Operations and Neighbourhoods,Operations and Neighbourhoods,General Materials,13-Jul,"7,981.34 "
3250922,TERBERG MATEC UK LTD,Transport,Director of Place,Debits Goods Received,13-Jul,591.88 
3250922,TRUCTYRE ATS,Operations and Neighbourhoods,Operations and Neighbourhoods,Tyre Costs,13-Jul,"1,842.55 "
3250922,WASTE PARTS UK LTD,Operations and Neighbourhoods,Operations and Neighbourhoods,General Materials,13-Jul,175.56 
3250922,WASTE PARTS UK LTD,Transport,Director of Place,Debits Goods Received,13-Jul,"1,104.36 "
3250923,A & J MOTORSPARES,Operations and Neighbourhoods,Operations and Neighbourhoods,Consumable Materials,20-Jul,115.85 
3250923,A & J MOTORSPARES,Operations and Neighbourhoods,Operations and Neighbourhoods,General Materials,20-Jul,"1,260.37 "
3250923,A & J MOTORSPARES,Transport,Director of Place,Debits Goods Received,20-Jul,162.18 
3250923,AEBI SCHMIDT UK LTD,Operations and Neighbourhoods,Operations and Neighbourhoods,General Materials,20-Jul,"1,806.95 "
3250923,AEBI SCHMIDT UK LTD,Transport,Director of Place,Debits Goods Received,20-Jul,"1,499.78 "
3250923,ARNOLD PLANT HIRE LTD,Operations and Neighbourhoods,Operations and Neighbourhoods,Additional Hire,20-Jul,"1,012.00 "
3250923,ARNOLD PLANT HIRE LTD,Operations and Neighbourhoods,Operations and Neighbourhoods,Replacement Hire,20-Jul,270.00 
3250923,ARNOLD PLANT HIRE LTD,Operations and Neighbourhoods,Operations and Neighbourhoods,Workshop Recharges including Misuse & Damage Costs,20-Jul,30.00 
3250923,BALMERS GM LTD,Operations and Neighbourhoods,Operations and Neighbourhoods,Replacement Hire,20-Jul,"1,900.00 "
3250923,BALMERS GM LTD,Operations and Neighbourhoods,Operations and Neighbourhoods,Workshop Recharges including Misuse & Damage Costs,20-Jul,300.00 
3250923,Car Hire (Day of Swansea) Ltd t/a Days Rental,Operations and Neighbourhoods,Operations and Neighbourhoods,Additional Hire,20-Jul,"2,376.00 "
3250923,Car Hire (Day of Swansea) Ltd t/a Days Rental,Operations and Neighbourhoods,Operations and Neighbourhoods,Tyre Costs,20-Jul,285.27 
3250923,DENNIS EAGLE LTD,Operations and Neighbourhoods,Operations and Neighbourhoods,General Materials,20-Jul,828.40 
3250923,DENNIS EAGLE LTD,Transport,Director of Place,Debits Goods Received,20-Jul,"2,813.59 "
3250923,GARIC LTD,Operations and Neighbourhoods,Operations and Neighbourhoods,Additional Hire,20-Jul,"1,421.40 "
3250923,INDUSTRIAL & HYDRAULIC SERVICES,Operations and Neighbourhoods,Operations and Neighbourhoods,Sub-contractor Services,20-Jul,675.79 
3250923,JDS TRUCKS LIMITED,Operations and Neighbourhoods,Operations and Neighbourhoods,General Materials,20-Jul,"1,278.71 "
3250923,LEEDS COMMERCIAL LTD T/A LC VEHICLE HIRE,Operations and Neighbourhoods,Operations and Neighbourhoods,Additional Hire,20-Jul,"1,390.00 "
3250923,LEEDS COMMERCIAL LTD T/A LC VEHICLE HIRE,Operations and Neighbourhoods,Operations and Neighbourhoods,Workshop Recharges including Misuse & Damage Costs,20-Jul,34.20 
3250923,MOTUS COMMERCIALS OLDHAM,Operations and Neighbourhoods,Operations and Neighbourhoods,General Materials,20-Jul,"1,033.24 "
3250923,PETER DOUGLASS PLATFORMS,Operations and Neighbourhoods,Operations and Neighbourhoods,Additional Hire,20-Jul,"3,256.00 "
3250923,RIVERSIDE TRUCK RENTAL LIMITED,Operations and Neighbourhoods,Operations and Neighbourhoods,Additional Hire,20-Jul,"9,059.60 "
3250923,TERBERG MATEC UK LTD,Transport,Director of Place,Debits Goods Received,20-Jul,"5,191.68 "
3250924,AEBI SCHMIDT UK LTD,Operations and Neighbourhoods,Operations and Neighbourhoods,General Materials,27-Jul,"1,605.30 "
3250924,AEBI SCHMIDT UK LTD,Transport,Director of Place,Debits Goods Received,27-Jul,"9,681.07 "
3250924,DAWSONGROUP BUS AND COACH,Operations and Neighbourhoods,Operations and Neighbourhoods,Additional Hire,27-Jul,"2,064.00 "
3250924,DAWSONGROUP BUS AND COACH,Operations and Neighbourhoods,Operations and Neighbourhoods,Workshop Recharges including Misuse & Damage Costs,27-Jul,145.00 
3250924,DENNIS EAGLE LTD,Operations and Neighbourhoods,Operations and Neighbourhoods,General Materials,27-Jul,207.73 
3250924,DENNIS EAGLE LTD,Transport,Director of Place,Debits Goods Received,27-Jul,"1,978.83 "
3250924,HTF TYRE SERVICES LTD,Operations and Neighbourhoods,Operations and Neighbourhoods,Tyre Costs,27-Jul,"4,319.44 "
3250924,JOHNSTON SWEEPERS LTD,Operations and Neighbourhoods,Operations and Neighbourhoods,General Materials,27-Jul,"2,542.74 "
3250924,Popcorn Rocks Limited t/a Green Motion,Operations and Neighbourhoods,Operations and Neighbourhoods,Additional Hire,27-Jul,788.33 
3250924,TRISCAN SYSTEMS LIMITED,Operations and Neighbourhoods,Operations and Neighbourhoods,Computer Software,27-Jul,"1,767.31 "
3250925,A & J MOTORSPARES,Operations and Neighbourhoods,Operations and Neighbourhoods,General Equipment Repair & Maintenance,03-Aug,83.64 
3250925,A & J MOTORSPARES,Operations and Neighbourhoods,Operations and Neighbourhoods,General Materials,03-Aug,509.39 
3250925,A & J MOTORSPARES,Operations and Neighbourhoods,Operations and Neighbourhoods,Sub-contractor Services,03-Aug,120.00 
3250925,A & J MOTORSPARES,Transport,Director of Place,Debits Goods Received,03-Aug,777.12 
3250925,AEBI SCHMIDT UK LTD,Operations and Neighbourhoods,Operations and Neighbourhoods,General Materials,03-Aug,"1,622.23 "
3250925,AEBI SCHMIDT UK LTD,Transport,Director of Place,Debits Goods Received,03-Aug,28.96 
3250925,ARNOLD PLANT HIRE LTD,Operations and Neighbourhoods,Operations and Neighbourhoods,Additional Hire,03-Aug,966.00 
3250925,AUTOSMART INTERNATIONAL,Operations and Neighbourhoods,Operations and Neighbourhoods,Debits Goods Received,03-Aug,102.50 
3250925,AUTOSMART INTERNATIONAL,Operations and Neighbourhoods,Operations and Neighbourhoods,General Equipment Repair & Maintenance,03-Aug,399.03 
3250925,CALIBRATION &CONSULTANCYSERVICES (UK) LTD,Operations and Neighbourhoods,Operations and Neighbourhoods,General Equipment Purchase,03-Aug,322.03 
3250925,CALIBRATION &CONSULTANCYSERVICES (UK) LTD,Operations and Neighbourhoods,Operations and Neighbourhoods,General Equipment Repair & Maintenance,03-Aug,441.41 
3250925,Car Hire (Day of Swansea) Ltd t/a Days Rental,Operations and Neighbourhoods,Operations and Neighbourhoods,Additional Hire,03-Aug,"2,455.20 "
3250925,DENNIS EAGLE LTD,Operations and Neighbourhoods,Operations and Neighbourhoods,General Materials,03-Aug,"2,495.15 "
3250925,DENNIS EAGLE LTD,Transport,Director of Place,Debits Goods Received,03-Aug,"6,264.37 "
3250925,F. R. SHARROCK LIMITED,Transport,Director of Place,Debits Goods Received,03-Aug,"1,240.69 "
3250925,FUCHS LUBRICANTS UK PLC,Transport,Director of Place,Debits Goods Received,03-Aug,"1,463.70 "
3250925,G B OILS TA CARLTON FUELS,Transport,Director of Place,Diesel Fuel,03-Aug,"22,873.20 "
3250925,HGV DIRECT LTD,Transport,Director of Place,Debits Goods Received,03-Aug,"1,204.84 "
3250925,HTF TYRE SERVICES LTD,Operations and Neighbourhoods,Operations and Neighbourhoods,Tyre Costs,03-Aug,"1,257.56 "
3250925,LEEDS COMMERCIAL LTD T/A LC VEHICLE HIRE,Operations and Neighbourhoods,Operations and Neighbourhoods,Additional Hire,03-Aug,"2,880.00 "
3250925,MOTUS COMMERCIALS OLDHAM,Operations and Neighbourhoods,Operations and Neighbourhoods,General Materials,03-Aug,728.50 
3250925,PETER DOUGLASS PLATFORMS,Operations and Neighbourhoods,Operations and Neighbourhoods,Additional Hire,03-Aug,"3,108.00 "
3250925,Popcorn Rocks Limited t/a Green Motion,Operations and Neighbourhoods,Operations and Neighbourhoods,Additional Hire,03-Aug,"1,225.00 "
3250925,RIVERSIDE TRUCK RENTAL LIMITED,Operations and Neighbourhoods,Operations and Neighbourhoods,Additional Hire,03-Aug,"8,647.80 "
3250925,WASTE PARTS UK LTD,Operations and Neighbourhoods,Operations and Neighbourhoods,General Materials,03-Aug,804.97 
3250925,WASTE PARTS UK LTD,Transport,Director of Place,Debits Goods Received,03-Aug,385.34 
3250926,AEBI SCHMIDT UK LTD,Operations and Neighbourhoods,Operations and Neighbourhoods,General Materials,11-Aug,907.55 
3250926,DENNIS EAGLE LTD,Operations and Neighbourhoods,Operations and Neighbourhoods,General Materials,11-Aug,780.29 
3250926,DENNIS EAGLE LTD,Transport,Director of Place,Debits Goods Received,11-Aug,258.05 
3250926,G B OILS TA CARLTON FUELS,Transport,Director of Place,Diesel Fuel,11-Aug,"24,386.36 "
3250926,JOHNSONS APPARELMASTER LTD,Operations and Neighbourhoods,Operations and Neighbourhoods,Protective Clothing,11-Aug,904.32 
3250926,LPW EUROPE LTD,Operations and Neighbourhoods,Operations and Neighbourhoods,General Equipment Repair & Maintenance,11-Aug,630.00 
3250926,MOTUS COMMERCIALS OLDHAM,Operations and Neighbourhoods,Operations and Neighbourhoods,General Materials,11-Aug,"2,308.34 "
3250926,MOTUS COMMERCIALS OLDHAM,Transport,Director of Place,Debits Goods Received,11-Aug,441.20 
3250926,PEAK PARTS,Operations and Neighbourhoods,Operations and Neighbourhoods,Consumable Materials,11-Aug,875.60 
3250926,T & C MOTOR PANELS LIMITED,Operations and Neighbourhoods,Operations and Neighbourhoods,Sub-contractor Services,11-Aug,576.70 
3250926,TRUCTYRE ATS,Operations and Neighbourhoods,Operations and Neighbourhoods,Tyre Costs,11-Aug,532.80 
3250927,A & J MOTORSPARES,Operations and Neighbourhoods,Operations and Neighbourhoods,Consumable Materials,17-Aug,88.49 
3250927,A & J MOTORSPARES,Operations and Neighbourhoods,Operations and Neighbourhoods,General Materials,17-Aug,715.22 
3250927,A & J MOTORSPARES,Transport,Director of Place,Debits Goods Received,17-Aug,392.45 
3250927,AEBI SCHMIDT UK LTD,Operations and Neighbourhoods,Operations and Neighbourhoods,General Materials,17-Aug,"1,238.03 "
3250927,DAWSONGROUP BUS AND COACH,Operations and Neighbourhoods,Operations and Neighbourhoods,Sub-contractor Services,17-Aug,791.02 
3250927,EUROSAFE SOLUTIONS LTD,Operations and Neighbourhoods,Operations and Neighbourhoods,Training Course Costs,17-Aug,845.00 
3250927,G B OILS TA CARLTON FUELS,Transport,Director of Place,Diesel Fuel,17-Aug,"11,926.00 "
3250927,G B OILS TA CARLTON FUELS,Transport,Director of Place,Petrol Fuel,17-Aug,"2,938.25 "
3250927,INDUSTRIAL & HYDRAULIC SERVICES,Operations and Neighbourhoods,Operations and Neighbourhoods,Sub-contractor Services,17-Aug,"1,143.25 "
3250927,LEEDS COMMERCIAL LTD T/A LC VEHICLE HIRE,Operations and Neighbourhoods,Operations and Neighbourhoods,Additional Hire,17-Aug,732.00 
3250927,MOTUS COMMERCIALS OLDHAM,Operations and Neighbourhoods,Operations and Neighbourhoods,General Materials,17-Aug,"4,477.58 "
3250927,MOTUS COMMERCIALS OLDHAM,Transport,Director of Place,Debits Goods Received,17-Aug,164.70 
3250927,TERBERG MATEC UK LTD,Transport,Director of Place,Debits Goods Received,17-Aug,"1,418.61 "
3250927,TOLLAND PRECISION ENGINEERING LTD,Operations and Neighbourhoods,Operations and Neighbourhoods,General Materials,17-Aug,515.00 
3250927,TOLLAND PRECISION ENGINEERING LTD,Operations and Neighbourhoods,Operations and Neighbourhoods,Sub-contractor Services,17-Aug,336.00 
3250927,TOLLAND PRECISION ENGINEERING LTD,Transport,Director of Place,Debits Goods Received,17-Aug,354.00 
3250928,A & J MOTORSPARES,Operations and Neighbourhoods,Operations and Neighbourhoods,General Equipment Purchase,25-Aug,16.25 
3250928,A & J MOTORSPARES,Operations and Neighbourhoods,Operations and Neighbourhoods,General Materials,25-Aug,"1,713.95 "
3250928,A & J MOTORSPARES,Transport,Director of Place,Debits Goods Received,25-Aug,18.00 
3250928,AEBI SCHMIDT UK LTD,Operations and Neighbourhoods,Operations and Neighbourhoods,General Materials,25-Aug,735.87 
3250928,AEBI SCHMIDT UK LTD,Transport,Director of Place,Debits Goods Received,25-Aug,"2,725.31 "
3250928,BRENNTAG UK LIMITED,Transport,Director of Place,Fuel / Ad Blu,25-Aug,"2,075.00 "
3250928,DENNIS EAGLE LTD,Operations and Neighbourhoods,Operations and Neighbourhoods,General Materials,25-Aug,121.97 
3250928,DENNIS EAGLE LTD,Transport,Director of Place,Debits Goods Received,25-Aug,"5,578.01 "
3250928,G B OILS TA CARLTON FUELS,Transport,Director of Place,Diesel Fuel,25-Aug,"25,273.25 "
3250928,TRUCTYRE ATS,Operations and Neighbourhoods,Operations and Neighbourhoods,Tyre Costs,25-Aug,"1,867.27 "
3250928,WASTE PARTS UK LTD,Transport,Director of Place,Debits Goods Received,25-Aug,"1,536.18 "
3250929,A & J MOTORSPARES,Operations and Neighbourhoods,Operations and Neighbourhoods,General Materials,31-Aug,569.04 
3250929,AEBI SCHMIDT UK LTD,Operations and Neighbourhoods,Operations and Neighbourhoods,General Materials,31-Aug,491.18 
3250929,AEBI SCHMIDT UK LTD,Transport,Director of Place,Debits Goods Received,31-Aug,"1,828.85 "
3250929,DAWNSONGROUP ENVIROMENTAL MUNICIPAL CIVIL LIMITED T/A DAWSONGROUP EMC,Operations and Neighbourhoods,Operations and Neighbourhoods,Replacement Hire,31-Aug,"1,221.43 "
3250929,DAWNSONGROUP ENVIROMENTAL MUNICIPAL CIVIL LIMITED T/A DAWSONGROUP EMC,Operations and Neighbourhoods,Operations and Neighbourhoods,Workshop Recharges including Misuse & Damage Costs,31-Aug,144.00 
3250929,DENNIS EAGLE LTD,Operations and Neighbourhoods,Operations and Neighbourhoods,General Materials,31-Aug,786.97 
3250929,DENNIS EAGLE LTD,Transport,Director of Place,Debits Goods Received,31-Aug,"2,276.77 "
3250929,F. R. SHARROCK LIMITED,Operations and Neighbourhoods,Operations and Neighbourhoods,General Materials,31-Aug,109.57 
3250929,F. R. SHARROCK LIMITED,Transport,Director of Place,Debits Goods Received,31-Aug,395.73 
3250929,FUCHS LUBRICANTS UK PLC,Transport,Director of Place,Debits Goods Received,31-Aug,"5,796.45 "
3250929,HGV DIRECT LTD,Operations and Neighbourhoods,Operations and Neighbourhoods,General Equipment Purchase,31-Aug,"1,166.55 "
3250929,HGV DIRECT LTD,Operations and Neighbourhoods,Operations and Neighbourhoods,General Materials,31-Aug,18.55 
3250929,HGV DIRECT LTD,Transport,Director of Place,Debits Goods Received,31-Aug,472.38 
3250929,MOTUS COMMERCIALS OLDHAM,Operations and Neighbourhoods,Operations and Neighbourhoods,Consumable Materials,31-Aug,-239.28 
3250929,MOTUS COMMERCIALS OLDHAM,Operations and Neighbourhoods,Operations and Neighbourhoods,General Materials,31-Aug,"1,544.54 "
3250929,STOCKPORT TRUCK CENTRE LTD,Operations and Neighbourhoods,Operations and Neighbourhoods,Sub-contractor Services,31-Aug,643.17 
3250929,T & C MOTOR PANELS LIMITED,Operations and Neighbourhoods,Operations and Neighbourhoods,Sub-contractor Services,31-Aug,500.00 
3250930,A & J MOTORSPARES,Operations and Neighbourhoods,Operations and Neighbourhoods,General Materials,07-Sep,"1,103.94 "
3250930,A.R.B. SALES LTD,Operations and Neighbourhoods,Operations and Neighbourhoods,Sub-contractor Services,07-Sep,760.15 
3250930,AEBI SCHMIDT UK LTD,Operations and Neighbourhoods,Operations and Neighbourhoods,General Materials,07-Sep,915.32 
3250930,ARNOLD PLANT HIRE LTD,Operations and Neighbourhoods,Operations and Neighbourhoods,Additional Hire,07-Sep,"1,058.00 "
3250930,Car Hire (Day of Swansea) Ltd t/a Days Rental,Operations and Neighbourhoods,Operations and Neighbourhoods,Additional Hire,07-Sep,"3,035.88 "
3250930,Car Hire (Day of Swansea) Ltd t/a Days Rental,Operations and Neighbourhoods,Operations and Neighbourhoods,Tyre Costs,07-Sep,0.00 
3250930,DENNIS EAGLE LTD,Operations and Neighbourhoods,Operations and Neighbourhoods,General Materials,07-Sep,819.32 
3250930,LEEDS COMMERCIAL LTD T/A LC VEHICLE HIRE,Operations and Neighbourhoods,Operations and Neighbourhoods,Additional Hire,07-Sep,"2,070.00 "
3250930,PETER DOUGLASS PLATFORMS,Operations and Neighbourhoods,Operations and Neighbourhoods,Additional Hire,07-Sep,"3,680.00 "
3250930,RIVERSIDE TRUCK RENTAL LIMITED,Operations and Neighbourhoods,Operations and Neighbourhoods,Additional Hire,07-Sep,"11,631.40 "
3250930,RIVERSIDE TRUCK RENTAL LIMITED,Operations and Neighbourhoods,Operations and Neighbourhoods,Workshop Recharges including Misuse & Damage Costs,07-Sep,100.00 
3250930,TRUCTYRE ATS,Operations and Neighbourhoods,Operations and Neighbourhoods,Tyre Costs,07-Sep,935.86 
3250931,A & J MOTORSPARES,Operations and Neighbourhoods,Operations and Neighbourhoods,Consumable Materials,14-Sep,138.57 
3250931,A & J MOTORSPARES,Operations and Neighbourhoods,Operations and Neighbourhoods,General Materials,14-Sep,"2,653.16 "
3250931,A & J MOTORSPARES,Operations and Neighbourhoods,Operations and Neighbourhoods,Protective Clothing,14-Sep,24.90 
3250931,A & J MOTORSPARES,Transport,Director of Place,Debits Goods Received,14-Sep,454.58 
3250931,AEBI SCHMIDT UK LTD,Operations and Neighbourhoods,Operations and Neighbourhoods,General Materials,14-Sep,"5,041.07 "
3250931,AEBI SCHMIDT UK LTD,Transport,Director of Place,Debits Goods Received,14-Sep,"2,443.72 "
3250931,D & J MACHINERY SALES,Operations and Neighbourhoods,Operations and Neighbourhoods,General Materials,14-Sep,"1,763.16 "
3250931,DENNIS EAGLE LTD,Operations and Neighbourhoods,Operations and Neighbourhoods,General Materials,14-Sep,422.84 
3250931,DENNIS EAGLE LTD,Transport,Director of Place,Debits Goods Received,14-Sep,"4,513.75 "
3250931,F. R. SHARROCK LIMITED,Operations and Neighbourhoods,Operations and Neighbourhoods,General Materials,14-Sep,528.35 
3250931,G B OILS TA CARLTON FUELS,Transport,Director of Place,Diesel Fuel,14-Sep,"36,588.00 "
3250931,HI-WAY COMPONENTS,Operations and Neighbourhoods,Operations and Neighbourhoods,Consumable Materials,14-Sep,295.00 
3250931,HI-WAY COMPONENTS,Operations and Neighbourhoods,Operations and Neighbourhoods,General Materials,14-Sep,78.40 
3250931,HI-WAY COMPONENTS,Transport,Director of Place,Debits Goods Received,14-Sep,250.93 
3250931,HTF TYRE SERVICES LTD,Operations and Neighbourhoods,Operations and Neighbourhoods,Tyre Costs,14-Sep,"4,323.83 "
3250931,INDUSTRIAL & HYDRAULIC SERVICES,Operations and Neighbourhoods,Operations and Neighbourhoods,General Equipment Repair & Maintenance,14-Sep,276.59 
3250931,INDUSTRIAL & HYDRAULIC SERVICES,Operations and Neighbourhoods,Operations and Neighbourhoods,Sub-contractor Services,14-Sep,320.50 
3250931,JOHNSONS APPARELMASTER LTD,Operations and Neighbourhoods,Operations and Neighbourhoods,Protective Clothing,14-Sep,"1,090.35 "
3250931,JOHNSTON SWEEPERS LTD,Operations and Neighbourhoods,Operations and Neighbourhoods,General Materials,14-Sep,995.84 
3250931,MOTUS COMMERCIALS OLDHAM,Operations and Neighbourhoods,Operations and Neighbourhoods,General Materials,14-Sep,"1,009.48 "
3250931,TERBERG MATEC UK LTD,Transport,Director of Place,Debits Goods Received,14-Sep,670.12 
3250931,TRISCAN SYSTEMS LIMITED,Operations and Neighbourhoods,Operations and Neighbourhoods,Computer Hardware Maintenance Costs,14-Sep,"1,450.00 "
3250931,WASTE PARTS UK LTD,Transport,Director of Place,Debits Goods Received,14-Sep,"2,260.27 "
3250932,A & J MOTORSPARES,Operations and Neighbourhoods,Operations and Neighbourhoods,General Materials,22-Sep,684.96 
3250932,A & J MOTORSPARES,Transport,Director of Place,Debits Goods Received,22-Sep,47.80 
3250932,AUTOSMART INTERNATIONAL,Operations and Neighbourhoods,Operations and Neighbourhoods,Consumable Materials,22-Sep,332.93 
3250932,AUTOSMART INTERNATIONAL,Operations and Neighbourhoods,Operations and Neighbourhoods,General Equipment Repair & Maintenance,22-Sep,369.95 
3250932,DENNIS EAGLE LTD,Operations and Neighbourhoods,Operations and Neighbourhoods,General Materials,22-Sep,"2,864.23 "
3250932,DENNIS EAGLE LTD,Operations and Neighbourhoods,Operations and Neighbourhoods,Sub-contractor Services,22-Sep,765.01 
3250932,DENNIS EAGLE LTD,Transport,Director of Place,Debits Goods Received,22-Sep,-80.00 
3250932,EUROSAFE SOLUTIONS LTD,Operations and Neighbourhoods,Operations and Neighbourhoods,Training Course Costs,22-Sep,845.00 
3250932,MOTUS COMMERCIALS OLDHAM,Operations and Neighbourhoods,Operations and Neighbourhoods,General Materials,22-Sep,"1,433.22 "
3250932,TRUCTYRE ATS,Operations and Neighbourhoods,Operations and Neighbourhoods,General Materials,22-Sep,654.71 
3250932,TRUCTYRE ATS,Operations and Neighbourhoods,Operations and Neighbourhoods,Tyre Costs,22-Sep,"3,142.31 "
3250932,WHALE TANKERS LTD,Operations and Neighbourhoods,Operations and Neighbourhoods,General Materials,22-Sep,"1,195.95 "
3250933,A & J MOTORSPARES,Operations and Neighbourhoods,Operations and Neighbourhoods,General Materials,28-Sep,"1,504.51 "
3250933,G B OILS TA CARLTON FUELS,Transport,Director of Place,Diesel Fuel,28-Sep,"38,943.48 "
3250933,INDUSTRIAL & HYDRAULIC SERVICES,Operations and Neighbourhoods,Operations and Neighbourhoods,Sub-contractor Services,28-Sep,750.30 
3250933,MOTUS COMMERCIALS OLDHAM,Operations and Neighbourhoods,Operations and Neighbourhoods,General Materials,28-Sep,"2,790.12 "
3250933,TRUCTYRE ATS,Operations and Neighbourhoods,Operations and Neighbourhoods,Tyre Costs,28-Sep,866.80 
5467220,Stepping Stone Projects,(blank),(blank),Living With Formal Support,15-Aug,"4,908.48 "
5469509,Stepping Stone Projects,(blank),(blank),Living With Formal Support,15-Aug,"2,873.79 "
5471569,Redacted Supplier,(blank),(blank),Professional Entertainment Services,14-Aug,608.00 
5472459,Stepping Stone Projects,(blank),(blank),Living With Formal Support,15-Aug,"2,873.79 "
5476163,Dale Care and Support Ltd t/a Heritage Healthcare Rochdale,Adult Social Care,Adults,Residential Home Long Stay Fees,27-Jul,"5,564.00 "
5477037,Stepping Stone Projects,(blank),(blank),Living With Formal Support,15-Aug,"2,780.91 "
5479101,Outdoor and Cycle Concepts Ltd / Cotswold Outdoor,Operations and Neighbourhoods,Operations and Neighbourhoods,General Materials,30-Aug,995.63 
5479498,Stepping Stone Projects,(blank),(blank),Living With Formal Support,15-Aug,"2,873.79 "
5480414,Cheery Blossom Supported Living,(blank),(blank),Living With Formal Support,31-Jul,"10,050.00 "
5480422,Cheery Blossom Supported Living,(blank),(blank),Living With Formal Support,31-Jul,"9,380.00 "
5480451,Cheery Blossom Supported Living,(blank),(blank),Living With Formal Support,31-Jul,"7,390.00 "
5480454,Cheery Blossom Supported Living,(blank),(blank),Living With Formal Support,31-Jul,"5,695.00 "
5482611,Stepping Stone Projects,(blank),(blank),Living With Formal Support,15-Aug,"2,780.91 "
5488057,FRESH START INDEPENDENCE PROJECT LTD,Childrens Services,Children's Services,Living With Formal Support,31-Aug,"3,842.57 "
5488057,FRESH START INDEPENDENCE PROJECT LTD,(blank),(blank),Semi independent - Weekly Living Allowances,31-Aug,61.05 
5491245,Northern Community Pathways Limited,Childrens Services,Children's Services,Living With Formal Support,09-Aug,"2,574.68 "
5491245,Northern Community Pathways Limited,(blank),(blank),Semi independent - Weekly Living Allowances,09-Aug,244.20 
5495379,PENNINE CARE NHS TRUST,Population Health,Population Health,Professional Services,07-Jul,"9,026.92 "
5495425,OPUS ENERGY LTD,Place,Growth,Electricity,21-Jul,"2,561.11 "
5495795,St Peters Community Partnerships (Greenscape) T/A Leap Green Services,(blank),(blank),"Marketing, Publicity and Recruitment",05-Jul,500.00 
5495893,St Peters Community Partnerships (Greenscape) T/A Leap Green Services,Adult Social Care,Adults,Professional Services,05-Jul,"2,967.00 "
5495897,Cheshire West & Cheshire Council,Corporate Costs,Corporate Costs,Professional Services,13-Jul,"4,419.19 "
5496116,GREATER MANCHESTER COMBINED AUTHORITY,Operations and Neighbourhoods,Operations and Neighbourhoods,Passenger Transport Levy,11-Aug,"904,800.00 "
5496118,GREATER MANCHESTER COMBINED AUTHORITY,Operations and Neighbourhoods,Operations and Neighbourhoods,Passenger Transport Levy,12-Jul,"904,800.00 "
5496129,GREATER MANCHESTER COMBINED AUTHORITY,Operations and Neighbourhoods,Operations and Neighbourhoods,Passenger Transport Levy,13-Sep,"904,800.00 "
5496143,GREATER MANCHESTER COMBINED AUTHORITY,Operations and Neighbourhoods,Operations and Neighbourhoods,Passenger Transport Levy,12-Jul,"691,300.00 "
5496146,GREATER MANCHESTER COMBINED AUTHORITY,Operations and Neighbourhoods,Operations and Neighbourhoods,Passenger Transport Levy,13-Sep,"691,300.00 "
5496147,GREATER MANCHESTER COMBINED AUTHORITY,Operations and Neighbourhoods,Operations and Neighbourhoods,Passenger Transport Levy,11-Aug,"691,300.00 "
5496204,GREATER MANCHESTER COMBINED AUTHORITY,Operations and Neighbourhoods,Operations and Neighbourhoods,Waste Levy - Domestic Waste Disposal Costs,18-Jul,"1,293,000.00 "
5496206,GREATER MANCHESTER COMBINED AUTHORITY,Operations and Neighbourhoods,Operations and Neighbourhoods,Waste Levy - Domestic Waste Disposal Costs,17-Aug,"1,293,000.00 "
5496207,GREATER MANCHESTER COMBINED AUTHORITY,Operations and Neighbourhoods,Operations and Neighbourhoods,Waste Levy - Domestic Waste Disposal Costs,18-Sep,"1,293,000.00 "
5496508,LIQUIDLOGIC LTD,People and Workforce Development,Governance,Miscellaneous Expenses,06-Jul,"26,225.04 "
5497195,Anglian Water Business (National) t/a Wave Utilities,Place,Growth,Water (Metered and Rates),21-Jul,"2,788.28 "
5497506,Complex Care Professionals Ltd,Adult Social Care,Adults,Homecare Fees,13-Jul,"1,245.52 "
5497508,Complex Care Professionals Ltd,Adult Social Care,Adults,Homecare Fees,11-Jul,685.40 
5497511,Complex Care Professionals Ltd,Adult Social Care,Adults,Homecare Fees,11-Jul,"2,058.00 "
5497692,Stepping Stone Projects,Childrens Services,Children's Services,Living With Formal Support,15-Aug,681.42 
5497693,Stepping Stone Projects,Childrens Services,Children's Services,Living With Formal Support,12-Sep,873.25 
5497862,Redacted Supplier,Education,Children's Services,Professional Services,05-Jul,"1,650.00 "
5498005,Northern Community Pathways Limited,(blank),(blank),Living With Formal Support,09-Aug,"4,441.55 "
5498005,Northern Community Pathways Limited,(blank),(blank),Semi independent - Weekly Living Allowances,09-Aug,274.07 
5498631,SEASHELL TRUST,Childrens Services,Children's Services,Homecare Fees,11-Jul,"3,630.00 "
5498648,CREATIVE SUPPORT LTD,Adult Social Care,Adults,Homecare Fees,13-Jul,622.62 
5498934,Optima Health and Social Care Ltd,Childrens Services,Children's Services,Homecare Fees,11-Jul,688.00 
5499017,Redacted Supplier,Childrens Services,Children's Services,Childrens Homes Outside Local Authority Fees,10-Jul,"1,120.00 "
5499382,PARALLEL PARENTS,Childrens Services,Children's Services,Foster Carer Agency Fees,13-Jul,"3,862.27 "
5499649,INSPIRE COMMUNITY SERVICES LIMITED,(blank),(blank),Living With Formal Support,12-Sep,"4,362.12 "
5499649,INSPIRE COMMUNITY SERVICES LIMITED,(blank),(blank),Semi independent - Weekly Living Allowances,12-Sep,260.88 
5499824,Inicio Group Ltd,(blank),(blank),Living With Formal Support,17-Jul,"3,300.00 "
5500097,CARE NEEDS LTD,Adult Social Care,Adults,Homecare Fees,20-Jul,"4,930.00 "
5500446,"GROUNDWORK M/CR,SALFORD,STOCKPORT,TAMESIDE&TRAFFOD",Childrens Services,Children's Services,Professional Services,03-Jul,"6,217.50 "
5500573,CHILD ACTION NORTHWEST,Adult Social Care,Adults,Nursing Home Long Stay Fees,26-Jul,130.00 
5500573,CHILD ACTION NORTHWEST,Adult Social Care,Adults,Professional Services,26-Jul,"2,140.59 "
5500811,Inicio Group Ltd,(blank),(blank),Living With Formal Support,14-Jul,"4,291.07 "
5501131,Northern Community Pathways Limited,(blank),(blank),Living With Formal Support,25-Aug,"4,747.50 "
5501208,ACORN CARE & EDUCATION LTD (SALES),(blank),(blank),Homecare Fees,11-Jul,"22,050.00 "
5501221,Foster Careline Ltd,Childrens Services,Children's Services,Foster Carer Agency Fees,21-Jul,"4,064.61 "
5501570,OCTAGON CARE LTD,Childrens Services,Children's Services,Childrens Homes Outside Local Authority Fees,26-Jul,"44,071.43 "
5501685,Paramount Children's Services,Childrens Services,Children's Services,Childrens Homes Outside Local Authority Fees,06-Jul,"28,763.57 "
5501756,NATIONAL FOSTERING AGENCY LTD,Childrens Services,Children's Services,Foster Carer Agency Fees,02-Aug,"2,861.30 "
5501758,NATIONAL FOSTERING AGENCY LTD,Childrens Services,Children's Services,Foster Carer Agency Fees,29-Sep,"2,398.56 "
5501761,CAPSTONE FOSTER CARE,Childrens Services,Children's Services,Foster Carer Agency Fees,19-Jul,"3,732.99 "
5501782,NATIONAL FOSTERING AGENCY LTD,Childrens Services,Children's Services,Foster Carer Agency Fees,02-Aug,"3,813.00 "
5501795,ALPHA PLUS FOSTERING LIMITED,Childrens Services,Children's Services,Foster Carer Agency Fees,19-Jul,"3,679.19 "
5501798,ALPHA PLUS FOSTERING LIMITED,Childrens Services,Children's Services,Foster Carer Agency Fees,18-Jul,"3,882.87 "
5501801,ALPHA PLUS FOSTERING LIMITED,Childrens Services,Children's Services,Foster Carer Agency Fees,18-Jul,"3,010.56 "
5501834,Sandcastle Care LTD,Childrens Services,Children's Services,Childrens Homes Outside Local Authority Fees,19-Jul,"28,487.41 "
5501837,Sandcastle Care LTD,Childrens Services,Children's Services,Childrens Homes Outside Local Authority Fees,19-Jul,"1,875.60 "
5501840,Sandcastle Care LTD,Childrens Services,Children's Services,Childrens Homes Outside Local Authority Fees,18-Jul,"28,487.41 "
5501841,Sandcastle Care LTD,Childrens Services,Children's Services,Childrens Homes Outside Local Authority Fees,19-Jul,"1,875.60 "
5501852,CFS CARE LIMITED,Childrens Services,Children's Services,Living With Formal Support,01-Sep,366.86 
5501852,CFS CARE LIMITED,(blank),(blank),Living With Formal Support,01-Sep,"5,319.43 "
5501852,CFS CARE LIMITED,(blank),(blank),Semi independent - Weekly Living Allowances,01-Sep,336.00 
5501863,CAPSTONE FOSTER CARE,Childrens Services,Children's Services,Foster Carer Agency Fees,19-Jul,"7,033.55 "
5501864,CAPSTONE FOSTER CARE,Childrens Services,Children's Services,Foster Carer Agency Fees,19-Jul,"7,046.62 "
5501868,CAPSTONE FOSTER CARE,Childrens Services,Children's Services,Foster Carer Agency Fees,19-Jul,"4,015.44 "
5501917,Arlingclose Limited,Finance,Finance & IT,Professional Services,11-Aug,"15,000.00 "
5502038,Redacted Supplier,Education,Children's Services,Independent School Fees,10-Jul,"6,586.66 "
5502051,Olive Branch Fostering LTD,Childrens Services,Children's Services,Foster Carer Agency Fees,20-Jul,"3,981.02 "
5502052,Olive Branch Fostering LTD,Childrens Services,Children's Services,Foster Carer Agency Fees,20-Jul,"3,095.35 "
5502053,Olive Branch Fostering LTD,Childrens Services,Children's Services,Foster Carer Agency Fees,20-Jul,"3,064.40 "
5502057,Foster Careline Ltd,Childrens Services,Children's Services,Foster Carer Agency Fees,19-Jul,"4,200.10 "
5502058,Foster Careline Ltd,Childrens Services,Children's Services,Foster Carer Agency Fees,21-Jul,"3,461.62 "
5502059,Foster Careline Ltd,Childrens Services,Children's Services,Foster Carer Agency Fees,02-Aug,"7,676.35 "
5502107,SALISBURY SUPPORT 4 AUTISM,Adult Social Care,Adults,Homecare Fees,04-Aug,"13,918.87 "
5502140,Inicio Group Ltd,Childrens Services,Children's Services,Living With Formal Support,06-Jul,"4,810.11 "
5502143,Inicio Group Ltd,Childrens Services,Children's Services,Living With Formal Support,06-Jul,"3,535.71 "
5502143,Inicio Group Ltd,(blank),(blank),Semi independent - Weekly Living Allowances,06-Jul,510.00 
5502148,Inicio Group Ltd,(blank),(blank),Living With Formal Support,17-Jul,"3,535.71 "
5502178,ALPHA PLUS FOSTERING LIMITED,Childrens Services,Children's Services,Foster Carer Agency Fees,18-Jul,"3,618.56 "
5502228,North West Leaving Care,Childrens Services,Children's Services,Living With Formal Support,17-Jul,"3,107.14 "
5502233,EXPERIAN LTD,Hosted Services,Hosted Services,Professional Services,04-Aug,"10,215.00 "
5502238,Redacted Supplier,Childrens Services,Children's Services,Childrens Homes Outside Local Authority Fees,12-Jul,"14,357.10 "
5502308,Bright Opportunities,Adult Social Care,Adults,Day Care Fees,05-Jul,"1,845.00 "
5502332,RHOMBUS CARE GROUP LIMITED,Adult Social Care,Adults,Homecare Fees,05-Jul,"12,324.60 "
5502342,BY THE BRIDGE NORTH WEST LTD,Childrens Services,Children's Services,Foster Carer Agency Fees,05-Jul,"1,768.41 "
5502347,P MCGUINNESS & CO LTD,Place,Growth,Engineers Works,15-Aug,"1,364.00 "
5502358,P MCGUINNESS & CO LTD,Place,Growth,Engineers Works,15-Aug,763.00 
5502365,Footsteps Psychology,Education,Children's Services,Professional Services,04-Jul,"2,200.00 "
5502369,NEW BRIDGE HORIZONS,Adult Social Care,Adults,Nursing Home Long Stay Fees,03-Jul,"1,976.40 "
5502372,NEW BRIDGE HORIZONS,Adult Social Care,Adults,Day Care Fees,03-Jul,"1,115.57 "
5502373,NEW BRIDGE HORIZONS,Adult Social Care,Adults,Day Care Fees,03-Jul,"2,563.83 "
5502374,NEW BRIDGE HORIZONS,Adult Social Care,Adults,Day Care Fees,03-Jul,"2,051.06 "
5502377,IPL Plastics (UK) Ltd,Operations and Neighbourhoods,Operations and Neighbourhoods,Purchase Wheeled Bins,05-Jul,"15,456.00 "
5502379,Zeno Ltd,Adult Social Care,Adults,Homecare Fees,05-Jul,"11,523.88 "
5502382,N A Brown Ltd,Operations and Neighbourhoods,Operations and Neighbourhoods,General Equipment Repair & Maintenance,05-Jul,"2,191.24 "
5502384,Grace Live In Carers Ltd t/a Grace 24/7 Care,(blank),(blank),Living With Formal Support,05-Jul,"11,093.66 "
5502424,Great Minds Together Ltd,Childrens Services,Children's Services,Childrens Homes Outside Local Authority Fees,10-Jul,"96,225.00 "
5502438,Furniture Resource Centre Ltd,Operations and Neighbourhoods,Operations and Neighbourhoods,"Fixtures, Fittings & Furniture Purchase",05-Jul,997.89 
5502452,Furniture Resource Centre Ltd,Operations and Neighbourhoods,Operations and Neighbourhoods,"Fixtures, Fittings & Furniture Purchase",05-Jul,716.88 
5502459,Redacted Supplier,Population Health,Population Health,Professional Services,05-Jul,657.00 
5502474,ASKEWS  AND HOLTS LIBRARY SERVICES LTD,Operations and Neighbourhoods,Operations and Neighbourhoods,Purchase Books,05-Jul,"3,289.40 "
5502503,FOSTER TALK,Childrens Services,Children's Services,Foster Carer Agency Fees,05-Jul,677.95 
5502506,PROGRESSIVE CARE LTD,Childrens Services,Children's Services,Mother and Baby Assessment Placements,05-Jul,"11,846.43 "
5502507,PROGRESSIVE CARE LTD,Childrens Services,Children's Services,Mother and Baby Assessment Placements,05-Jul,"15,832.14 "
5502510,PROGRESSIVE CARE LTD,Childrens Services,Children's Services,Mother and Baby Assessment Placements,07-Jul,"18,799.28 "
5502516,EXCEPTIONAL CARE LTD,Childrens Services,Children's Services,Childrens Homes Outside Local Authority Fees,05-Jul,"26,505.00 "
5502521,Nestlings Care Ltd,Childrens Services,Children's Services,Childrens Homes Outside Local Authority Fees,06-Jul,"32,195.71 "
5502525,FOSTERING SOLUTIONS LTD,Childrens Services,Children's Services,Foster Carer Agency Fees,05-Jul,"3,264.11 "
5502528,FOSTERING SOLUTIONS LTD,Childrens Services,Children's Services,Foster Carer Agency Fees,05-Jul,"3,264.11 "
5502529,FOSTERING SOLUTIONS LTD,Childrens Services,Children's Services,Foster Carer Agency Fees,05-Jul,"3,639.00 "
5502531,FOSTERING SOLUTIONS LTD,Childrens Services,Children's Services,Foster Carer Agency Fees,05-Jul,"3,389.39 "
5502532,FOSTERING SOLUTIONS LTD,Childrens Services,Children's Services,Foster Carer Agency Fees,05-Jul,"3,389.39 "
5502533,FOSTERING SOLUTIONS LTD,Childrens Services,Children's Services,Foster Carer Agency Fees,05-Jul,"3,686.48 "
5502534,FOSTERING SOLUTIONS LTD,Childrens Services,Children's Services,Foster Carer Agency Fees,06-Jul,"3,626.06 "
5502536,INSPIRE COMMUNITY SERVICES LIMITED,Childrens Services,Children's Services,Living With Formal Support,12-Sep,"4,673.70 "
5502536,INSPIRE COMMUNITY SERVICES LIMITED,Childrens Services,Children's Services,Semi independent - Weekly Living Allowances,12-Sep,280.08 
5502538,INSPIRE COMMUNITY SERVICES LIMITED,Childrens Services,Children's Services,Living With Formal Support,12-Sep,"4,829.49 "
5502538,INSPIRE COMMUNITY SERVICES LIMITED,Childrens Services,Children's Services,Semi independent - Weekly Living Allowances,12-Sep,297.60 
5502542,Inicio Group Ltd,(blank),(blank),Living With Formal Support,21-Jul,"1,560.12 "
5502544,Inicio Group Ltd,(blank),(blank),Living With Formal Support,24-Jul,"6,998.58 "
5502549,Yvonne Luckin Limited,Education,Children's Services,Professional Services,05-Jul,"1,100.00 "
5502551,CFS CARE LIMITED,(blank),(blank),Living With Formal Support,05-Jul,"1,747.29 "
5502551,CFS CARE LIMITED,(blank),(blank),Semi independent - Weekly Living Allowances,05-Jul,67.20 
5502555,CITY CARE SOLUTIONS LTD,Adult Social Care,Adults,Homecare Fees,05-Jul,"4,510.35 "
5502557,Tutis Foster Care,Childrens Services,Children's Services,Foster Carer Agency Fees,17-Jul,"3,801.22 "
5502558,Tutis Foster Care,Childrens Services,Children's Services,Foster Carer Agency Fees,17-Jul,"3,725.58 "
5502559,FOSTERING PEOPLE LTD,Childrens Services,Children's Services,Foster Carer Agency Fees,05-Jul,"1,074.96 "
5502560,FOSTERING PEOPLE LTD,Childrens Services,Children's Services,Foster Carer Agency Fees,05-Jul,"1,140.56 "
5502563,NHS Greater Manchester Integrated Care,Contingency,Contingency,Contributions,05-Jul,"15,269.00 "
5502565,K P DODD CONSTRUCTION LTD,Housing,Director of Place,Minor Works - Building,05-Jul,"1,500.00 "
5502566,CITY LIFT SERVICES (NW) LTD,Adult Social Care,Adults,General Equipment Repair & Maintenance,05-Jul,"2,865.00 "
5502567,Redacted Supplier,Childrens Services,Children's Services,Childrens Homes Outside Local Authority Fees,12-Jul,"14,357.10 "
5502568,FOSTERING PEOPLE LTD,Childrens Services,Children's Services,Foster Carer Agency Fees,05-Jul,"1,948.22 "
5502570,FOSTERING PEOPLE LTD,Childrens Services,Children's Services,Foster Carer Agency Fees,06-Jul,"2,067.12 "
5502576,TRINITY COLLEGE LONDON,Education,Children's Services,Examination Fees,05-Jul,797.30 
5502577,TURNING POINT SERVICES LIMITED,Adult Social Care,Adults,Homecare Fees,05-Jul,"202,695.63 "
5502588,SafeLives,Population Health,Population Health,Professional Services,06-Jul,"1,500.00 "
5502599,THE FOSTER CARE CO-OPERATIVE LTD,Childrens Services,Children's Services,Foster Carer Agency Fees,06-Jul,"3,723.07 "
5502601,Redacted Supplier,Childrens Services,Children's Services,Childrens Homes Outside Local Authority Fees,06-Jul,"25,500.00 "
5502602,Redacted Supplier,Childrens Services,Children's Services,Childrens Homes Outside Local Authority Fees,06-Jul,850.00 
5502611,BOLINDA UK LIMITED,Operations and Neighbourhoods,Operations and Neighbourhoods,Digital Materials,06-Jul,"1,500.00 "
5502613,BOLINDA UK LIMITED,Operations and Neighbourhoods,Operations and Neighbourhoods,Digital Materials,06-Jul,"4,000.00 "
5502616,ULVERSCROFT LARGE PRINT  BOOKS LTD,Operations and Neighbourhoods,Operations and Neighbourhoods,Purchase Books,06-Jul,"1,180.35 "
5502624,Redacted Supplier,Adult Social Care,Adults,Day Care Fees,06-Jul,"2,491.65 "
5502628,BOLINDA UK LIMITED,Operations and Neighbourhoods,Operations and Neighbourhoods,Digital Materials,06-Jul,"2,500.00 "
5502630,Redacted Supplier,Childrens Services,Children's Services,Childrens Homes Outside Local Authority Fees,01-Aug,"24,000.00 "
5502631,THREE CIRCLES FOSTERING LTD,Childrens Services,Children's Services,Foster Carer Agency Fees,06-Jul,"5,546.79 "
5502632,THREE CIRCLES FOSTERING LTD,Childrens Services,Children's Services,Foster Carer Agency Fees,06-Jul,"5,301.00 "
5502633,THREE CIRCLES FOSTERING LTD,Childrens Services,Children's Services,Foster Carer Agency Fees,06-Jul,"3,534.00 "
5502634,BOLINDA UK LIMITED,Operations and Neighbourhoods,Operations and Neighbourhoods,Digital Materials,06-Jul,"5,780.00 "
5502635,THREE CIRCLES FOSTERING LTD,Childrens Services,Children's Services,Foster Carer Agency Fees,06-Jul,"3,463.32 "
5502636,THREE CIRCLES FOSTERING LTD,Childrens Services,Children's Services,Foster Carer Agency Fees,06-Jul,"3,405.17 "
5502637,BOLINDA UK LIMITED,Operations and Neighbourhoods,Operations and Neighbourhoods,Digital Materials,06-Jul,"17,340.00 "
5502639,DURHAM COUNTY COUNCIL,Childrens Services,Children's Services,Childrens Homes Outside Local Authority Fees,06-Jul,"42,780.00 "
5502640,THREE CIRCLES FOSTERING LTD,Childrens Services,Children's Services,Foster Carer Agency Fees,06-Jul,"3,452.18 "
5502641,THREE CIRCLES FOSTERING LTD,Childrens Services,Children's Services,Foster Carer Agency Fees,06-Jul,"3,677.57 "
5502643,KB Extruders Ltd,Operations and Neighbourhoods,Operations and Neighbourhoods,General Materials,06-Jul,"2,177.40 "
5502644,THREE CIRCLES FOSTERING LTD,Childrens Services,Children's Services,Foster Carer Agency Fees,06-Jul,"3,546.23 "
5502645,THREE CIRCLES FOSTERING LTD,Childrens Services,Children's Services,Foster Carer Agency Fees,06-Jul,"3,693.09 "
5502646,THREE CIRCLES FOSTERING LTD,Childrens Services,Children's Services,Foster Carer Agency Fees,06-Jul,"3,618.94 "
5502648,THREE CIRCLES FOSTERING LTD,Childrens Services,Children's Services,Foster Carer Agency Fees,06-Jul,"3,975.75 "
5502649,THREE CIRCLES FOSTERING LTD,Childrens Services,Children's Services,Foster Carer Agency Fees,06-Jul,"3,794.00 "
5502650,THREE CIRCLES FOSTERING LTD,Childrens Services,Children's Services,Foster Carer Agency Fees,06-Jul,"3,896.26 "
5502651,Vestacare (UK) Limited,Adult Social Care,Adults,Day Care Fees,06-Jul,"1,357.24 "
5502652,THREE CIRCLES FOSTERING LTD,Childrens Services,Children's Services,Foster Carer Agency Fees,06-Jul,"3,975.75 "
5502653,THREE CIRCLES FOSTERING LTD,Childrens Services,Children's Services,Foster Carer Agency Fees,06-Jul,"3,475.94 "
5502654,THREE CIRCLES FOSTERING LTD,Childrens Services,Children's Services,Foster Carer Agency Fees,06-Jul,"4,113.48 "
5502656,THREE CIRCLES FOSTERING LTD,Childrens Services,Children's Services,Foster Carer Agency Fees,06-Jul,"4,310.55 "
5502658,THREE CIRCLES FOSTERING LTD,Childrens Services,Children's Services,Foster Carer Agency Fees,06-Jul,"4,045.72 "
5502659,Vestacare (UK) Limited,Adult Social Care,Adults,Day Care Fees,12-Jul,"1,357.24 "
5502671,Millbrook Healthcare Ltd,Adult Social Care,Adults,Joint Loans Store Fee,12-Jul,"14,840.17 "
5502680,Millbrook Healthcare Ltd,Adult Social Care,Adults,Joint Loans Store Fee,12-Jul,"106,241.46 "
5502681,ANGLIA DNA SERVICES LTD,Childrens Services,Children's Services,Professional Medical Services,06-Jul,530.40 
5502684,ANGLIA DNA SERVICES LTD,Childrens Services,Children's Services,Professional Medical Services,06-Jul,501.21 
5502685,G4S CASH SOLUTIONS (UK) LIMITED,Finance,Finance & IT,Security Services,12-Jul,769.88 
5502686,Transunion Internal UK Limited,Hosted Services,Hosted Services,Professional Services,07-Jul,"16,800.00 "
5502689,YOUNG PEOPLE FIRST LIMITED,(blank),(blank),Living With Formal Support,06-Jul,"2,450.00 "
5502689,YOUNG PEOPLE FIRST LIMITED,(blank),(blank),Semi independent - Weekly Living Allowances,06-Jul,67.20 
5502690,YOUNG PEOPLE FIRST LIMITED,Childrens Services,Children's Services,Living With Formal Support,06-Jul,"1,368.08 "
5502690,YOUNG PEOPLE FIRST LIMITED,(blank),(blank),Semi independent - Weekly Living Allowances,06-Jul,67.20 
5502693,RedQuadrant Ltd,Hosted Services,Hosted Services,Professional Consultancy Services,06-Jul,"2,968.75 "
5502694,We Support LTD,Adult Social Care,Adults,Homecare Fees,06-Jul,"6,504.96 "
5502695,APS Group,Operations and Neighbourhoods,Operations and Neighbourhoods,Professional Medical Services,06-Jul,999.99 
5502696,Pre Paid Financial Services,Exchequer,Governance,Fees,06-Jul,"1,447.21 "
5502701,Furniture Resource Centre Ltd,Operations and Neighbourhoods,Operations and Neighbourhoods,"Fixtures, Fittings & Furniture Purchase",07-Jul,525.07 
5502723,Furniture Resource Centre Ltd,Operations and Neighbourhoods,Operations and Neighbourhoods,"Fixtures, Fittings & Furniture Purchase",07-Jul,"1,071.92 "
5502736,Compass Fostering North LTD,Childrens Services,Children's Services,Foster Carer Agency Fees,07-Jul,"3,465.60 "
5502745,Xoom X Ltd,Childrens Services,Children's Services,Transport Of Post 16 Pupils,25-Jul,"1,254.00 "
5502746,Compass Fostering North LTD,Childrens Services,Children's Services,Foster Carer Agency Fees,07-Jul,"3,483.90 "
5502750,Compass Fostering North LTD,Childrens Services,Children's Services,Foster Carer Agency Fees,07-Jul,"3,295.50 "
5502755,Compass Fostering North LTD,Childrens Services,Children's Services,Foster Carer Agency Fees,07-Jul,"3,339.90 "
5502767,Compass Fostering North LTD,Childrens Services,Children's Services,Foster Carer Agency Fees,07-Jul,"3,310.80 "
5502777,Tutis Foster Care,Childrens Services,Children's Services,Foster Carer Agency Fees,07-Jul,"1,427.40 "
5502778,Compass Fostering North LTD,Childrens Services,Children's Services,Foster Carer Agency Fees,07-Jul,"3,228.00 "
5502779,Tutis Foster Care,Childrens Services,Children's Services,Foster Carer Agency Fees,07-Jul,"1,446.63 "
5502780,Tutis Foster Care,Childrens Services,Children's Services,Foster Carer Agency Fees,07-Jul,"1,494.48 "
5502781,Compass Fostering North LTD,Childrens Services,Children's Services,Foster Carer Agency Fees,07-Jul,"3,564.60 "
5502784,Compass Fostering North LTD,Childrens Services,Children's Services,Foster Carer Agency Fees,07-Jul,"3,375.90 "
5502785,Compass Fostering North LTD,Childrens Services,Children's Services,Foster Carer Agency Fees,07-Jul,"3,297.30 "
5502790,Compass Fostering North LTD,Childrens Services,Children's Services,Foster Carer Agency Fees,07-Jul,"3,471.00 "
5502792,Compass Fostering North LTD,Childrens Services,Children's Services,Foster Carer Agency Fees,07-Jul,"3,800.70 "
5502800,CW Advisory Services LLP,Place,Growth,Miscellaneous Insurance,07-Jul,815.00 
5502803,JSA Psychotherapy LTD,Childrens Services,Children's Services,Professional Services,07-Jul,500.00 
5502804,THE ADOLESCENT & CHILDRENS TRUST,Childrens Services,Children's Services,Foster Carer Agency Fees,07-Jul,"2,946.24 "
5502805,FOSTERING LIMITED,Childrens Services,Children's Services,Foster Carer Agency Fees,07-Jul,"3,237.36 "
5502806,THE ADOLESCENT & CHILDRENS TRUST,Childrens Services,Children's Services,Foster Carer Agency Fees,07-Jul,"3,082.64 "
5502810,PETERS LIMITED (PETERS BOOKSELLING SERVICES),Education,Children's Services,Purchase Books,07-Jul,632.52 
5502811,THE ADOLESCENT & CHILDRENS TRUST,Childrens Services,Children's Services,Foster Carer Agency Fees,07-Jul,"3,082.64 "
5502821,ELECTORAL REFORM SERVICES,Governance,Governance,Printing And Stationery,07-Jul,692.81 
5502822,T21 NETWORK,Childrens Services,Children's Services,Community Based Activities,07-Jul,"1,755.00 "
5502823,Voiceability Advocacy,Adult Social Care,Adults,Nursing Home Long Stay Fees,07-Jul,"36,011.25 "
5502823,Voiceability Advocacy,Adult Social Care,Adults,Professional Services,07-Jul,"16,875.00 "
5502824,Brayford Estates Ltd T/A Homes For Students,Childrens Services,Children's Services,Other Accommodation Related Costs,07-Jul,"2,880.00 "
5502831,HARDSCAPE PRODUCTS LTD,Engineers Client,Director of Place,Highway Construction,07-Jul,"22,456.55 "
5502832,Imail Comms Limited,Exchequer,Governance,Printing And Stationery,07-Jul,925.13 
5502834,Christ Church CE Primary School,Education,Children's Services,Other Local Authorities Fees,07-Jul,"2,745.00 "
5502836,H JENKINSON & CO LTD,Place,Growth,"Fixtures, Fittings & Furniture Purchase",07-Jul,513.63 
5502840,FOSTERING LIMITED,Childrens Services,Children's Services,Foster Carer Agency Fees,07-Jul,"3,304.25 "
5502857,Compass Fostering North LTD,Childrens Services,Children's Services,Foster Carer Agency Fees,07-Jul,"3,713.40 "
5502858,Compass Fostering North LTD,Childrens Services,Children's Services,Foster Carer Agency Fees,07-Jul,"3,908.70 "
5502859,Compass Fostering North LTD,Childrens Services,Children's Services,Foster Carer Agency Fees,07-Jul,"3,900.60 "
5502860,Compass Fostering North LTD,Childrens Services,Children's Services,Foster Carer Agency Fees,07-Jul,"3,908.70 "
5502876,Northumbria Healthcare NHS Foundation Trust,(blank),(blank),Debits,07-Jul,"2,532.31 "
5502879,Xoom X Ltd,(blank),(blank),Hired Transport,07-Jul,520.60 
5502885,Currys Group Ltd T/A Currys Business,Housing,Director of Place,Minor Works - Building,07-Jul,"1,072.50 "
5502892,Imail Comms Limited,Exchequer,Governance,Printing And Stationery,07-Jul,"3,078.23 "
5502894,Orange Grove Fostercare LTD,Childrens Services,Children's Services,Foster Carer Agency Fees,07-Jul,"3,922.74 "
5502895,Orange Grove Fostercare LTD,Childrens Services,Children's Services,Foster Carer Agency Fees,07-Jul,"5,531.49 "
5502896,Northumbria Healthcare NHS Foundation Trust,(blank),(blank),Debits,07-Jul,"24,553.60 "
5502897,Orange Grove Fostercare LTD,Childrens Services,Children's Services,Foster Carer Agency Fees,07-Jul,"3,605.45 "
5502905,Orange Grove Fostercare LTD,Childrens Services,Children's Services,Foster Carer Agency Fees,07-Jul,"3,687.85 "
5502915,IDOX SOFTWARE LIMITED,Digital Tameside,Finance & IT,Professional Services,07-Jul,525.00 
5502916,IDOX SOFTWARE LIMITED,Digital Tameside,Finance & IT,Professional Services,07-Jul,525.00 
5502921,WILDE CONSULTING ENGINEERS,(blank),(blank),Engineers -External,06-Jul,832.12 
5502922,WILDE CONSULTING ENGINEERS,(blank),(blank),Engineers -External,06-Jul,635.63 
5502928,Valour Private Ltd t/a Valour Healthcare Services,Adult Social Care,Adults,Homecare Fees,07-Jul,"6,825.00 "
5502929,Redacted Supplier,Education,Children's Services,Independent School Fees,07-Jul,"17,031.33 "
5502932,K P DODD CONSTRUCTION LTD,Housing,Director of Place,Minor Works - Building,07-Jul,"1,500.00 "
5502947,PeopleScout Limited,Place,Growth,Project Expenditure Home Office,07-Jul,686.44 
5503012,Redacted Supplier,Education,Children's Services,Professional Services,07-Jul,"1,650.00 "
5503014,Redacted Supplier,Education,Children's Services,Professional Services,07-Jul,"1,650.00 "
5503022,PLATINUM STAIRLIFTS LIMITED,Housing,Director of Place,Mandatory Adaptations Grant (DFG),07-Jul,"3,872.25 "
5503031,Supporting Futures LTD,Childrens Services,Children's Services,Childrens Homes Outside Local Authority Fees,10-Jul,"23,764.20 "
5503032,Supporting Futures LTD,Childrens Services,Children's Services,Childrens Homes Outside Local Authority Fees,05-Sep,"22,683.92 "
5503033,Supporting Futures LTD,Childrens Services,Children's Services,Childrens Homes Outside Local Authority Fees,07-Jul,630.00 
5503034,Supporting Futures LTD,Childrens Services,Children's Services,Childrens Homes Outside Local Authority Fees,07-Jul,"24,556.34 "
5503036,icare community meals,Adult Social Care,Adults,Food & Refreshments,21-Jul,763.00 
5503048,Redacted Supplier,Education,Children's Services,Professional Services,07-Jul,"1,100.00 "
5503049,4WAY CONSULTING LTD,Operations and Neighbourhoods,Operations and Neighbourhoods,Engineers Recharge - Reactive Works (Internal),07-Jul,532.60 
5503051,KILLGERM CHEMICALS LTD,Operations and Neighbourhoods,Operations and Neighbourhoods,Pest Control Equipment,07-Jul,750.98 
5503052,Goofus Theatre CIC,Operations and Neighbourhoods,Operations and Neighbourhoods,Professional Entertainment Services,07-Jul,630.00 
5503054,Avoira Limited,Digital Tameside,Finance & IT,Telephone Equipment Repairs & Maintenance,07-Jul,164.00 
5503054,Avoira Limited,Digital Tameside,Finance & IT,Telephone Landline Costs,07-Jul,340.00 
5503055,Enable Access Ltd,Childrens Services,Children's Services,General Equipment Purchase,07-Jul,"1,058.80 "
5503059,BOOTS UK LTD,Population Health,Population Health,Local Enhanced Services,07-Jul,581.84 
5503081,Prospere Learning Trust,Education,Children's Services,Other Local Authorities Fees,12-Jul,"2,733.00 "
5503082,Prospere Learning Trust,Education,Children's Services,Other Local Authorities Fees,12-Jul,"6,643.34 "
5503083,Prospere Learning Trust,Education,Children's Services,Other Local Authorities Fees,12-Jul,"9,300.00 "
5503086,Constellia Public Ltd,Place,Growth,Professional Consultancy Services,12-Jul,"3,411.46 "
5503089,Redacted Supplier,Education,Children's Services,Independent School Fees,12-Jul,"30,899.96 "
5503090,Precision Resource Group Ltd t/a Panoramic Associates,Education,Children's Services,Agency Staff,12-Jul,"1,880.00 "
5503091,IPL Plastics (UK) Ltd,Operations and Neighbourhoods,Operations and Neighbourhoods,Purchase Wheeled Bins,12-Jul,"15,437.60 "
5503093,SURECARE TAMESIDE & OLDHAM,Adult Social Care,Adults,Homecare Fees,12-Jul,"5,323.50 "
5503101,MOSSCARE HOUSING LTD,Adult Social Care,Adults,Non-Authority Accommodation Rental,12-Jul,"34,539.66 "
5503106,Tynetec a group brand of Legrand Electric Ltd,Adult Social Care,Adults,IT Equipment,14-Jul,"2,896.50 "
5503107,Northern Community Pathways Limited,Childrens Services,Children's Services,Living With Formal Support,12-Jul,"3,367.75 "
5503108,Brook,Population Health,Population Health,Contributions,12-Jul,"1,634.00 "
5503110,SURECARE TAMESIDE & OLDHAM,Adult Social Care,Adults,Homecare Fees,12-Jul,"5,451.88 "
5503111,SURECARE TAMESIDE & OLDHAM,Adult Social Care,Adults,Homecare Fees,12-Jul,"4,442.69 "
5503114,DOMAIN CARE NORTH WEST LTD,Adult Social Care,Adults,Day Care Fees,12-Jul,"1,424.76 "
5503116,Avoira Limited,Digital Tameside,Finance & IT,Telephone Landline Costs,12-Jul,"5,880.81 "
5503117,KONICA MINOLTA BUSINESS SOLUTIONS (UK) LTD,Digital Tameside,Finance & IT,Printing And Stationery,12-Jul,"4,929.73 "
5503147,Furniture Resource Centre Ltd,Operations and Neighbourhoods,Operations and Neighbourhoods,"Fixtures, Fittings & Furniture Purchase",12-Jul,617.35 
5503150,Furniture Resource Centre Ltd,Operations and Neighbourhoods,Operations and Neighbourhoods,"Fixtures, Fittings & Furniture Purchase",12-Jul,535.71 
5503152,Furniture Resource Centre Ltd,Operations and Neighbourhoods,Operations and Neighbourhoods,"Fixtures, Fittings & Furniture Purchase",12-Jul,523.68 
5503154,CREATIVE SUPPORT LTD,Adult Social Care,Adults,Homecare Fees,18-Jul,"1,876.18 "
5503156,CREATIVE SUPPORT LTD,Adult Social Care,Adults,Homecare Fees,03-Jul,"11,776.67 "
5503157,ASKEWS  AND HOLTS LIBRARY SERVICES LTD,Operations and Neighbourhoods,Operations and Neighbourhoods,Purchase Books,12-Jul,"1,234.33 "
5503158,CREATIVE SUPPORT LTD,Adult Social Care,Adults,Homecare Fees,17-Jul,"10,608.69 "
5503162,K P DODD CONSTRUCTION LTD,Housing,Director of Place,Minor Works - Building,12-Jul,"1,000.00 "
5503175,Millbrook Healthcare Ltd,Adult Social Care,Adults,Joint Loans Store Fee,12-Jul,"106,241.46 "
5503176,Millbrook Healthcare Ltd,Adult Social Care,Adults,Joint Loans Store Fee,12-Jul,"85,961.78 "
5503177,Millbrook Healthcare Ltd,Adult Social Care,Adults,Joint Loans Store Fee,12-Jul,"12,790.93 "
5503178,Millbrook Healthcare Ltd,Adult Social Care,Adults,Joint Loans Store Fee,12-Jul,"14,840.17 "
5503210,Shield Support Hub Limited,Childrens Services,Children's Services,Living With Formal Support,13-Jul,268.80 
5503210,Shield Support Hub Limited,(blank),(blank),Living With Formal Support,13-Jul,"6,667.92 "
5503212,Redacted Supplier,Education,Children's Services,Independent School Fees,13-Jul,588.00 
5503237,CIVICA UK LIMITED,Digital Tameside,Finance & IT,Computer Software,13-Jul,"16,125.65 "
5503247,TELEFONICA O2 (UK) LTD,GMPF (FX),GMPF (FX),Mobile Telephones,12-Jul,956.00 
5503251,CARELINE HOMECARE LTD,Adult Social Care,Adults,Homecare Fees,04-Jul,"1,592.81 "
5503252,TELEFONICA O2 (UK) LTD,GMPF (FX),GMPF (FX),Mobile Telephones,12-Jul,816.00 
5503253,TELEFONICA O2 (UK) LTD,GMPF (FX),GMPF (FX),Mobile Telephones,12-Jul,612.00 
5503259,Furniture Resource Centre Ltd,Operations and Neighbourhoods,Operations and Neighbourhoods,"Fixtures, Fittings & Furniture Purchase",13-Jul,523.68 
5503261,We Support LTD,Adult Social Care,Adults,Homecare Fees,14-Jul,"4,878.72 "
5503268,GAMESLEY EEC,Education,Children's Services,Other Local Authorities Fees,13-Jul,"6,121.18 "
5503269,Her Majesty's Prison and Probation Service (National Offenders Management Service),Childrens Services,Children's Services,Other Accommodation Related Costs,04-Aug,"4,620.00 "
5503273,CAN Qualifications Ltd,(blank),(blank),Training Course Costs,13-Jul,647.20 
5503274,THE BRITISH YOUTH COUNCIL,Operations and Neighbourhoods,Operations and Neighbourhoods,Subscriptions,13-Jul,630.00 
5503278,Permanent Futures LTD,Education,Children's Services,Agency Staff,13-Jul,"1,400.00 "
5503279,M.C. & M.A. STEWART HAULAGE LTD,Operations and Neighbourhoods,Operations and Neighbourhoods,General Materials,13-Jul,540.00 
5503282,AGA Print Ltd t/a Solopress,Governance,Governance,"Fixtures, Fittings & Furniture Purchase",13-Jul,"1,552.50 "
5503285,PAYPARTNERS LTD (MONTHLY),Adult Social Care,Adults,Sub-contractor Services,05-Jul,"6,416.67 "
5503286,TRINITY COLLEGE LONDON,Education,Children's Services,Examination Fees,13-Jul,"1,012.50 "
5503290,Community Integrated Care,Adult Social Care,Adults,Homecare Fees,04-Jul,687.70 
5503291,Community Integrated Care,Adult Social Care,Adults,Homecare Fees,04-Jul,687.70 
5503292,Redacted Supplier,Hosted Services,Hosted Services,Professional Services,13-Jul,550.00 
5503293,CARELINE HOMECARE LTD,Adult Social Care,Adults,Homecare Fees,05-Jul,"30,396.15 "
5503295,COMFORT CALL LIMITED,Adult Social Care,Adults,Homecare Fees,04-Jul,"34,105.80 "
5503298,Xoom X Ltd,Childrens Services,Children's Services,Hired Transport,13-Jul,622.50 
5503300,CARELINE HOMECARE LTD,Adult Social Care,Adults,Homecare Fees,04-Jul,"1,654.98 "
5503309,Milk Education Limited,Education,Children's Services,Agency Staff,14-Jul,"1,042.50 "
5503316,COMFORT CALL LIMITED,Adult Social Care,Adults,Homecare Fees,05-Jul,"24,037.94 "
5503317,CARELINE HOMECARE LTD,Adult Social Care,Adults,Homecare Fees,05-Jul,"31,514.88 "
5503321,CARELINE HOMECARE LTD,Adult Social Care,Adults,Homecare Fees,05-Jul,"1,441.18 "
5503330,Redacted Supplier,Education,Children's Services,Independent School Fees,14-Jul,588.00 
5503346,INSPIREDSPACES TAMESIDE LTD,(blank),(blank),External  Consultants,12-Jul,"1,553.57 "
5503347,Your Chapter Limited,Childrens Services,Children's Services,Foster Carer Agency Fees,13-Jul,"5,714.23 "
5503348,Your Chapter Limited,Childrens Services,Children's Services,Foster Carer Agency Fees,13-Jul,"3,566.24 "
5503361,Children & Families Across Borders (CFAB),Childrens Services,Children's Services,Professional Services,14-Jul,697.10 
5503364,ELECTORAL REFORM SERVICES,Governance,Governance,Printing And Stationery,14-Jul,824.90 
5503370,ORACLE CARE LTD,Childrens Services,Children's Services,Childrens Homes Outside Local Authority Fees,14-Jul,"20,923.50 "
5503371,ROUTES HEALTHCARE (NORTH) LIMITED,Adult Social Care,Adults,Homecare Fees,14-Jul,"6,531.81 "
5503373,ROUTES HEALTHCARE (NORTH) LIMITED,Adult Social Care,Adults,Homecare Fees,14-Jul,"6,681.82 "
5503376,TURNER GROUNDSCARE,Operations and Neighbourhoods,Operations and Neighbourhoods,General Materials,14-Jul,553.90 
5503378,LANCASHIRE COUNTY COUNCIL,Childrens Services,Children's Services,Adoption Agency Fees,14-Jul,"27,000.00 "
5503380,JSA Psychotherapy LTD,Childrens Services,Children's Services,Therapy Costs,14-Jul,625.00 
5503385,Randstad Solutions Ltd,Education,Children's Services,Agency Staff,14-Jul,514.88 
5503386,Randstad Solutions Ltd,Education,Children's Services,Agency Staff,14-Jul,643.60 
5503387,Optima Health and Social Care Ltd,Childrens Services,Children's Services,Homecare Fees,14-Jul,645.00 
5503415,Anglian Water Business (National) t/a Wave Utilities,Place,Growth,Water (Metered and Rates),14-Jul,"38,094.94 "
5503416,PHONAK UK LIMITED,Education,Children's Services,Educational Equipment,14-Jul,548.89 
5503417,YOUNG PEOPLE FIRST LIMITED,(blank),(blank),Living With Formal Support,14-Jul,"2,450.00 "
5503417,YOUNG PEOPLE FIRST LIMITED,(blank),(blank),Semi independent - Weekly Living Allowances,14-Jul,67.20 
5503418,YOUNG PEOPLE FIRST LIMITED,(blank),(blank),Living With Formal Support,14-Jul,"1,368.08 "
5503418,YOUNG PEOPLE FIRST LIMITED,(blank),(blank),Semi independent - Weekly Living Allowances,14-Jul,67.20 
5503419,JENOPTIK UK LIMITED,Operations and Neighbourhoods,Operations and Neighbourhoods,Fees,14-Jul,"1,708.00 "
5503421,The Mount Guest House Limited,(blank),(blank),Chief/Ground Rent,14-Jul,"19,735.00 "
5503422,The Mount Guest House Limited,(blank),(blank),Chief/Ground Rent,14-Jul,"20,445.00 "
5503425,Aaban Partnership Limited,Childrens Services,Children's Services,Childrens Homes Outside Local Authority Fees,14-Jul,"58,360.80 "
5503426,Aaban Partnership Limited,Childrens Services,Children's Services,Childrens Homes Outside Local Authority Fees,14-Jul,"50,432.80 "
5503427,Aaban Partnership Limited,Childrens Services,Children's Services,Childrens Homes Outside Local Authority Fees,14-Jul,"40,000.00 "
5503441,FAMILY CARE FOSTERING LTD,Childrens Services,Children's Services,Foster Carer Agency Fees,14-Jul,"4,010.52 "
5503442,Academy HQ cic,(blank),(blank),Community Based Activities,14-Jul,810.00 
5503445,Class A Cleaning Limited,Housing,Director of Place,Minor Works - Building,14-Jul,645.00 
5503453,CARETECH COMMUNITY SERVICES LIMITED,Adult Social Care,Adults,Residential Home Long Stay Fees,14-Jul,847.50 
5503459,CARETECH COMMUNITY SERVICES LIMITED,Adult Social Care,Adults,Residential Home Long Stay Fees,14-Jul,"1,078.80 "
5503461,CARETECH COMMUNITY SERVICES LIMITED,Adult Social Care,Adults,Residential Home Long Stay Fees,14-Jul,"1,114.76 "
5503463,CARETECH COMMUNITY SERVICES LIMITED,Adult Social Care,Adults,Residential Home Long Stay Fees,14-Jul,"1,078.80 "
5503468,FOSTER CARE ASSOCIATES LTD (FCA),Childrens Services,Children's Services,Foster Carer Agency Fees,14-Jul,"3,862.03 "
5503469,FOSTER CARE ASSOCIATES LTD (FCA),Childrens Services,Children's Services,Foster Carer Agency Fees,14-Jul,"3,938.98 "
5503470,FOSTER CARE ASSOCIATES LTD (FCA),Childrens Services,Children's Services,Foster Carer Agency Fees,14-Jul,"3,862.03 "
5503471,FOSTER CARE ASSOCIATES LTD (FCA),Childrens Services,Children's Services,Foster Carer Agency Fees,14-Jul,"4,184.40 "
5503472,FOSTER CARE ASSOCIATES LTD (FCA),Childrens Services,Children's Services,Foster Carer Agency Fees,14-Jul,"4,333.80 "
5503473,FOSTER CARE ASSOCIATES LTD (FCA),Childrens Services,Children's Services,Foster Carer Agency Fees,14-Jul,"6,472.98 "
5503474,FOSTERING PEOPLE LTD,Childrens Services,Children's Services,Foster Carer Agency Fees,14-Jul,"4,277.10 "
5503476,FOSTERING PEOPLE LTD,Childrens Services,Children's Services,Foster Carer Agency Fees,14-Jul,"4,031.10 "
5503477,FOSTERING PEOPLE LTD,Childrens Services,Children's Services,Foster Carer Agency Fees,14-Jul,"3,987.30 "
5503478,FOSTERING PEOPLE LTD,Childrens Services,Children's Services,Foster Carer Agency Fees,14-Jul,"3,987.30 "
5503479,CARETECH COMMUNITY SERVICES LIMITED,Adult Social Care,Adults,Residential Home Long Stay Fees,14-Jul,"1,078.80 "
5503481,FRESHWORKS,Digital Tameside,Finance & IT,Computer Software,14-Jul,555.12 
5503483,Prospere Learning Trust,Education,Children's Services,General Equipment Purchase,14-Jul,525.00 
5503484,Redacted Supplier,Operations and Neighbourhoods,Operations and Neighbourhoods,Consumable Materials,14-Jul,693.50 
5503485,REGENDA LIMITED,Adult Social Care,Adults,Non-Authority Accommodation Rental,14-Jul,"2,287.31 "
5503486,REGENDA LIMITED,Adult Social Care,Adults,Non-Authority Accommodation Rental,14-Jul,"19,034.12 "
5503487,STOCKPORT CP  SOCIETY,Adult Social Care,Adults,Day Care Fees,14-Jul,"2,487.50 "
5503488,CARETECH COMMUNITY SERVICES LIMITED,Adult Social Care,Adults,Residential Home Long Stay Fees,14-Jul,"1,114.76 "
5503489,CARETECH COMMUNITY SERVICES LIMITED,Adult Social Care,Adults,Homecare Fees,14-Jul,970.50 
5503493,CARETECH COMMUNITY SERVICES LIMITED,Adult Social Care,Adults,Residential Home Long Stay Fees,14-Jul,"1,078.80 "
5503494,CARETECH COMMUNITY SERVICES LIMITED,Adult Social Care,Adults,Homecare Fees,14-Jul,"1,002.85 "
5503495,CARETECH COMMUNITY SERVICES LIMITED,Adult Social Care,Adults,Residential Home Long Stay Fees,14-Jul,847.50 
5503500,CITY LIFT SERVICES (NW) LTD,Adult Social Care,Adults,General Equipment Repair & Maintenance,14-Jul,575.00 
5503503,Tynetec a group brand of Legrand Electric Ltd,Adult Social Care,Adults,IT Equipment,14-Jul,"5,711.94 "
5503512,Redacted Supplier,Education,Children's Services,Professional Services,14-Jul,"2,200.00 "
5503513,NPOWER LIMITED,Operations and Neighbourhoods,Operations and Neighbourhoods,Electricity,14-Jul,"122,220.89 "
5503516,CARETECH COMMUNITY SERVICES LIMITED,Adult Social Care,Adults,Residential Home Long Stay Fees,14-Jul,875.75 
5503517,CARETECH COMMUNITY SERVICES LIMITED,Adult Social Care,Adults,Residential Home Long Stay Fees,14-Jul,847.50 
5503518,CARETECH COMMUNITY SERVICES LIMITED,Adult Social Care,Adults,Residential Home Long Stay Fees,14-Jul,786.60 
5503519,CARETECH COMMUNITY SERVICES LIMITED,Adult Social Care,Adults,Residential Home Long Stay Fees,14-Jul,682.62 
5503523,CARETECH COMMUNITY SERVICES LIMITED,Adult Social Care,Adults,Residential Home Long Stay Fees,14-Jul,972.60 
5503524,CARETECH COMMUNITY SERVICES LIMITED,Adult Social Care,Adults,Homecare Fees,14-Jul,970.50 
5503525,CARETECH COMMUNITY SERVICES LIMITED,Adult Social Care,Adults,Residential Home Long Stay Fees,14-Jul,898.20 
5503526,Phantasmagoria CIC,(blank),(blank),Professional Entertainment Services,14-Jul,"3,000.00 "
5503527,CARETECH COMMUNITY SERVICES LIMITED,Adult Social Care,Adults,Residential Home Long Stay Fees,14-Jul,"1,001.70 "
5503528,KILLGERM CHEMICALS LTD,Operations and Neighbourhoods,Operations and Neighbourhoods,Pest Control Equipment,14-Jul,641.28 
5503533,CARETECH COMMUNITY SERVICES LIMITED,Adult Social Care,Adults,Residential Home Long Stay Fees,14-Jul,"1,001.70 "
5503535,CARETECH COMMUNITY SERVICES LIMITED,Adult Social Care,Adults,Residential Home Long Stay Fees,14-Jul,812.82 
5503536,CARETECH COMMUNITY SERVICES LIMITED,Adult Social Care,Adults,Residential Home Long Stay Fees,14-Jul,786.60 
5503537,CARETECH COMMUNITY SERVICES LIMITED,Adult Social Care,Adults,Residential Home Long Stay Fees,14-Jul,667.80 
5503538,CARETECH COMMUNITY SERVICES LIMITED,Adult Social Care,Adults,Residential Home Long Stay Fees,14-Jul,660.60 
5503539,CARETECH COMMUNITY SERVICES LIMITED,Adult Social Care,Adults,Residential Home Long Stay Fees,14-Jul,660.60 
5503541,CARETECH COMMUNITY SERVICES LIMITED,Adult Social Care,Adults,Residential Home Long Stay Fees,14-Jul,737.40 
5503542,CARETECH COMMUNITY SERVICES LIMITED,Adult Social Care,Adults,Residential Home Long Stay Fees,14-Jul,761.98 
5503543,CARETECH COMMUNITY SERVICES LIMITED,Adult Social Care,Adults,Residential Home Long Stay Fees,14-Jul,690.06 
5503544,CARETECH COMMUNITY SERVICES LIMITED,Adult Social Care,Adults,Residential Home Long Stay Fees,14-Jul,737.40 
5503545,CARETECH COMMUNITY SERVICES LIMITED,Adult Social Care,Adults,Residential Home Long Stay Fees,14-Jul,840.00 
5503546,CARETECH COMMUNITY SERVICES LIMITED,Adult Social Care,Adults,Residential Home Long Stay Fees,14-Jul,868.00 
5503547,CARETECH COMMUNITY SERVICES LIMITED,Adult Social Care,Adults,Residential Home Long Stay Fees,14-Jul,847.50 
5503548,CARETECH COMMUNITY SERVICES LIMITED,Adult Social Care,Adults,Residential Home Long Stay Fees,14-Jul,840.00 
5503549,CARETECH COMMUNITY SERVICES LIMITED,Adult Social Care,Adults,Residential Home Long Stay Fees,14-Jul,"1,005.02 "
5503550,CARETECH COMMUNITY SERVICES LIMITED,Adult Social Care,Adults,Residential Home Long Stay Fees,14-Jul,"1,001.70 "
5503551,CARETECH COMMUNITY SERVICES LIMITED,Adult Social Care,Adults,Residential Home Long Stay Fees,14-Jul,"1,035.09 "
5503552,CARETECH COMMUNITY SERVICES LIMITED,Adult Social Care,Adults,Residential Home Long Stay Fees,14-Jul,667.80 
5503553,CARETECH COMMUNITY SERVICES LIMITED,Adult Social Care,Adults,Residential Home Long Stay Fees,14-Jul,"1,001.70 "
5503554,CARETECH COMMUNITY SERVICES LIMITED,Adult Social Care,Adults,Residential Home Long Stay Fees,14-Jul,898.20 
5503555,CARETECH COMMUNITY SERVICES LIMITED,Adult Social Care,Adults,Residential Home Long Stay Fees,14-Jul,"1,035.09 "
5503556,CARETECH COMMUNITY SERVICES LIMITED,Adult Social Care,Adults,Residential Home Long Stay Fees,14-Jul,847.50 
5503557,CARETECH COMMUNITY SERVICES LIMITED,Adult Social Care,Adults,Residential Home Long Stay Fees,14-Jul,875.75 
5503558,CARETECH COMMUNITY SERVICES LIMITED,Adult Social Care,Adults,Residential Home Long Stay Fees,14-Jul,875.75 
5503560,CARETECH COMMUNITY SERVICES LIMITED,Adult Social Care,Adults,Residential Home Long Stay Fees,14-Jul,847.50 
5503561,CARETECH COMMUNITY SERVICES LIMITED,Adult Social Care,Adults,Residential Home Long Stay Fees,14-Jul,928.14 
5503563,CARETECH COMMUNITY SERVICES LIMITED,Adult Social Care,Adults,Residential Home Long Stay Fees,14-Jul,847.50 
5503564,CARETECH COMMUNITY SERVICES LIMITED,Adult Social Care,Adults,Residential Home Long Stay Fees,14-Jul,875.75 
5503566,CARETECH COMMUNITY SERVICES LIMITED,Adult Social Care,Adults,Residential Home Long Stay Fees,14-Jul,847.50 
5503567,CARETECH COMMUNITY SERVICES LIMITED,Adult Social Care,Adults,Residential Home Long Stay Fees,14-Jul,616.50 
5503569,CARETECH COMMUNITY SERVICES LIMITED,Adult Social Care,Adults,Residential Home Long Stay Fees,14-Jul,616.50 
5503570,CARETECH COMMUNITY SERVICES LIMITED,Adult Social Care,Adults,Residential Home Long Stay Fees,14-Jul,637.05 
5503589,XMA LIMITED,Digital Tameside,Finance & IT,IT Equipment,14-Jul,"61,861.00 "
5503590,NEW HORIZONS (STOCKPORT) LTD,Childrens Services,Children's Services,Childrens Homes Outside Local Authority Fees,14-Jul,"20,357.10 "
5503591,NEW HORIZONS (STOCKPORT) LTD,Childrens Services,Children's Services,Childrens Homes Outside Local Authority Fees,14-Jul,"20,357.10 "
5503597,UK FOSTERING LTD,Childrens Services,Children's Services,Foster Carer Agency Fees,14-Jul,"3,347.69 "
5503630,ISW CSC Limited,(blank),(blank),Homecare Fees,18-Jul,"5,883.08 "
5503638,Redacted Supplier,(blank),(blank),Training Course Costs,14-Jul,"2,050.00 "
5503643,TELEFONICA O2 (UK) LTD,Digital Tameside,Finance & IT,Mobile Telephones,21-Jul,"8,164.70 "
5503651,Furniture Resource Centre Ltd,Operations and Neighbourhoods,Operations and Neighbourhoods,"Fixtures, Fittings & Furniture Purchase",14-Jul,523.68 
5503657,Redacted Supplier,Education,Children's Services,Professional Services,14-Jul,825.00 
5503658,Constellia Public Ltd,(blank),(blank),Professional Consultancy Services,14-Jul,"54,457.14 "
5503659,Redacted Supplier,Corporate Costs,Corporate Costs,Professional Services,14-Jul,"1,853.00 "
5503660,ABACUS LIGHTING LTD,Operations and Neighbourhoods,Operations and Neighbourhoods,Engineers Recharge - Reactive Works (Internal),14-Jul,"1,000.00 "
5503665,"GROUNDWORK M/CR,SALFORD,STOCKPORT,TAMESIDE&TRAFFOD",Childrens Services,Children's Services,Professional Services,14-Jul,"6,217.50 "
5503666,OVE ARUP & PARTNERS LTD,District Assemblies,"Community,Environmental,Adult and Health Services",Engineers -External,14-Jul,"6,800.00 "
5503667,OVE ARUP & PARTNERS LTD,(blank),(blank),Consultancies,14-Jul,"15,000.00 "
5503668,DVLA - ACCOUNTS RECEIVABLE,Hosted Services,Hosted Services,Professional Services,14-Jul,520.00 
5503669,Socitm Advisory Limited,Digital Tameside,Finance & IT,Professional Services,14-Jul,103.94 
5503669,Socitm Advisory Limited,Place,Growth,Professional Services,14-Jul,587.73 
5503670,TELEFONICA O2 (UK) LTD,Digital Tameside,Finance & IT,Mobile Telephones,21-Jul,"11,950.00 "
5503671,PeopleScout Limited,Digital Tameside,Finance & IT,Project Expenditure Home Office,14-Jul,571.00 
5503674,P MCGUINNESS & CO LTD,Operations and Neighbourhoods,Operations and Neighbourhoods,Engineers Works,15-Aug,"3,320.00 "
5503684,Islington Council,Childrens Services,Children's Services,Training Course Costs,14-Jul,"3,600.00 "
5503704,Furniture Resource Centre Ltd,Operations and Neighbourhoods,Operations and Neighbourhoods,"Fixtures, Fittings & Furniture Purchase",19-Jul,617.35 
5503708,Furniture Resource Centre Ltd,Operations and Neighbourhoods,Operations and Neighbourhoods,"Fixtures, Fittings & Furniture Purchase",19-Jul,711.02 
5503709,Furniture Resource Centre Ltd,Operations and Neighbourhoods,Operations and Neighbourhoods,"Fixtures, Fittings & Furniture Purchase",19-Jul,649.60 
5503711,Redacted Supplier,Asset & Investment Partnership Management,Growth,Free School Meal Costs,25-Jul,"24,957.30 "
5503712,Redacted Supplier,Asset & Investment Partnership Management,Growth,Free School Meal Costs,25-Jul,"11,505.00 "
5503730,GB Sports & Leisure,Operations and Neighbourhoods,Operations and Neighbourhoods,General Equipment Purchase,19-Jul,"1,620.00 "
5503731,Age UK Oldham Ltd,Housing,Director of Place,Minor Works - Building,19-Jul,560.00 
5503733,Age UK Oldham Ltd,Housing,Director of Place,Minor Works - Building,19-Jul,606.00 
5503736,Metromedia Communications Ltd,Operations and Neighbourhoods,Operations and Neighbourhoods,"Activity (Materials, Trips)",19-Jul,"2,130.00 "
5503740,Phoenix Abbey LTD,Childrens Services,Children's Services,Childrens Homes Outside Local Authority Fees,19-Jul,"4,500.00 "
5503742,Zeno Ltd,Adult Social Care,Adults,Homecare Fees,19-Jul,"11,523.88 "
5503743,Unleashed Potential Psychology  Services  Ltd,Education,Children's Services,Professional Services,19-Jul,"5,500.00 "
5503747,Manchester Pride Ltd,Policy and Communications,Governance,Subscriptions,19-Jul,500.00 
5503758,ASKEWS  AND HOLTS LIBRARY SERVICES LTD,Operations and Neighbourhoods,Operations and Neighbourhoods,Purchase Books,19-Jul,"1,669.63 "
5503760,Reflexion Care Group Ltd T/A New Reflexions,Childrens Services,Children's Services,Childrens Homes Outside Local Authority Fees,28-Jul,"31,697.36 "
5503761,Fairfield Care Services,Adult Social Care,Adults,Day Care Fees,19-Jul,"2,703.36 "
5503771,CREATIVE SUPPORT LTD,Adult Social Care,Adults,Residential Home Long Stay Fees,10-Jul,"1,123.44 "
5503774,CARELINE HOMECARE LTD,Adult Social Care,Adults,Homecare Fees,10-Jul,"32,004.69 "
5503775,SARABEC LIMITED,Adult Social Care,Adults,IT Equipment,19-Jul,587.51 
5503776,PeopleScout Limited,People and Workforce Development,Governance,Project Expenditure Home Office,19-Jul,686.44 
5503777,Optima Health,People and Workforce Development,Governance,Professional Medical Services,19-Jul,"6,393.54 "
5503778,BT GLOBAL SERVICES,Digital Tameside,Finance & IT,Telephone Landline Costs,19-Jul,"4,660.76 "
5503780,Elastik Learning Ltd t/a SixintoSeven,Education,Children's Services,Computer Software,20-Jul,"17,794.75 "
5503791,People First Independant Advocacy,Adult Social Care,Adults,Professional Services,28-Jul,552.00 
5503798,TREASURED MEMORIES LTD,Operations and Neighbourhoods,Operations and Neighbourhoods,Plaques,21-Jul,819.40 
5503803,CARE NEEDS LTD,Adult Social Care,Adults,Homecare Fees,20-Jul,"4,680.00 "
5503805,CARE NEEDS LTD,Adult Social Care,Adults,Homecare Fees,20-Jul,"5,031.00 "
5503806,CARE NEEDS LTD,Adult Social Care,Adults,Homecare Fees,20-Jul,"5,187.00 "
5503807,CARE NEEDS LTD,Adult Social Care,Adults,Homecare Fees,20-Jul,"4,914.00 "
5503809,CARE NEEDS LTD,Adult Social Care,Adults,Homecare Fees,20-Jul,"4,953.00 "
5503811,CARE NEEDS LTD,Adult Social Care,Adults,Homecare Fees,20-Jul,"4,524.00 "
5503819,CARE NEEDS LTD,Adult Social Care,Adults,Homecare Fees,20-Jul,"4,524.00 "
5503821,Furniture Resource Centre Ltd,Operations and Neighbourhoods,Operations and Neighbourhoods,"Fixtures, Fittings & Furniture Purchase",20-Jul,904.22 
5503826,NPOWER LIMITED,Adult Social Care,Adults,Electricity,20-Jul,"1,292.69 "
5503827,CARE NEEDS LTD,Adult Social Care,Adults,Homecare Fees,20-Jul,"4,719.00 "
5503828,Barbour Logic,Operations and Neighbourhoods,Operations and Neighbourhoods,Computer Software,19-Jul,"10,640.00 "
5503831,CARE NEEDS LTD,Adult Social Care,Adults,Homecare Fees,20-Jul,"5,148.00 "
5503833,Furniture Resource Centre Ltd,Operations and Neighbourhoods,Operations and Neighbourhoods,"Fixtures, Fittings & Furniture Purchase",20-Jul,624.91 
5503870,Kingfisher Design & Management Ltd,Operations and Neighbourhoods,Operations and Neighbourhoods,Engineers -External,19-Jul,"1,073.00 "
5503874,YOUNG PEOPLE FIRST LIMITED,(blank),(blank),Living With Formal Support,20-Jul,"1,368.08 "
5503874,YOUNG PEOPLE FIRST LIMITED,(blank),(blank),Semi independent - Weekly Living Allowances,20-Jul,67.20 
5503876,Permanent Futures LTD,Education,Children's Services,Agency Staff,20-Jul,"1,750.00 "
5503877,YOUNG PEOPLE FIRST LIMITED,(blank),(blank),Living With Formal Support,20-Jul,"2,450.00 "
5503877,YOUNG PEOPLE FIRST LIMITED,(blank),(blank),Semi independent - Weekly Living Allowances,20-Jul,67.20 
5503879,Foundations Plus,Adult Social Care,Adults,Residential Home Long Stay Fees,20-Jul,"5,331.24 "
5503880,Foundations Plus,Adult Social Care,Adults,Residential Home Long Stay Fees,20-Jul,"3,980.00 "
5503881,M20 Property LLP,Place,Growth,Fees,20-Jul,560.00 
5503888,RNIB Enterprises,Education,Children's Services,Educational Equipment,20-Jul,"1,799.00 "
5503890,RNIB Enterprises,Education,Children's Services,Educational Equipment,20-Jul,"1,799.00 "
5503891,TRAVELERS INSURANCE COMPANY LTD,Finance,Finance & IT,Public Liability Insurance,20-Jul,"5,238.01 "
5503908,National Youth Advocacy Service,Childrens Services,Children's Services,Professional Services,21-Jul,"3,333.34 "
5503931,ADT FIRE & SECURITY,Operations and Neighbourhoods,Operations and Neighbourhoods,Professional Services,12-Jul,508.74 
5503932,ADT FIRE & SECURITY,Operations and Neighbourhoods,Operations and Neighbourhoods,Professional Services,12-Jul,"1,603.26 "
5503933,AUTISM INITIATIVES (UK),Adult Social Care,Adults,Residential Home Long Stay Fees,21-Jul,"1,781.92 "
5503934,AUTISM INITIATIVES (UK),Adult Social Care,Adults,Residential Home Long Stay Fees,21-Jul,"1,076.80 "
5503935,AUTISM INITIATIVES (UK),Adult Social Care,Adults,Residential Home Long Stay Fees,21-Jul,"3,074.56 "
5503936,AUTISM INITIATIVES (UK),Adult Social Care,Adults,Homecare Fees,21-Jul,"3,074.56 "
5503938,Imail Comms Limited,Exchequer,Governance,Printing And Stationery,21-Jul,"4,391.64 "
5503940,Imail Comms Limited,Exchequer,Governance,Printing And Stationery,21-Jul,"3,207.00 "
5503955,Northern Community Pathways Limited,Childrens Services,Children's Services,Living With Formal Support,28-Jul,"1,747.11 "
5503955,Northern Community Pathways Limited,(blank),(blank),Living With Formal Support,28-Jul,827.57 
5503955,Northern Community Pathways Limited,(blank),(blank),Semi independent - Weekly Living Allowances,28-Jul,78.49 
5503959,PROFILE SECURITY SERVICES LIMITED,Operations and Neighbourhoods,Operations and Neighbourhoods,Security Services,21-Jul,"6,481.80 "
5503961,INSPIREDSPACES TAMESIDE LTD,People and Workforce Development,Governance,Building Repairs,12-Jul,"7,123.07 "
5503965,PROFILE SECURITY SERVICES LIMITED,Operations and Neighbourhoods,Operations and Neighbourhoods,Security Services,21-Jul,"4,186.92 "
5503970,Redacted Supplier,Education,Children's Services,Other Local Authorities Fees,21-Jul,"23,922.00 "
5503971,Redacted Supplier,Education,Children's Services,Other Local Authorities Fees,21-Jul,"22,292.00 "
5503974,Randstad Solutions Ltd,Education,Children's Services,Agency Staff,21-Jul,643.60 
5503978,ROUTES HEALTHCARE (NORTH) LIMITED,Adult Social Care,Adults,Homecare Fees,21-Jul,"7,182.98 "
5503980,PrimeVR Limited,Place,Growth,Event Related Activity,21-Jul,660.00 
5503983,TEAM NETSOL LTD,Exchequer,Governance,Computer Software Maintenance Costs,21-Jul,"19,329.00 "
5503985,Precision Resource Group Ltd t/a Panoramic Associates,Education,Children's Services,Agency Staff,21-Jul,"2,350.00 "
5503986,Precision Resource Group Ltd t/a Panoramic Associates,Education,Children's Services,Agency Staff,21-Jul,"2,350.00 "
5503991,Meltwater UK LTD,Policy and Communications,Governance,"Marketing, Publicity and Recruitment",21-Jul,"11,000.00 "
5503992,Her Majesty's Prison and Probation Service (National Offenders Management Service),Childrens Services,Children's Services,Other Accommodation Related Costs,21-Jul,"16,680.00 "
5503993,INSPIREDSPACES TAMESIDE LTD,Asset & Investment Partnership Management,Growth,Utilities,12-Jul,"27,972.43 "
5503994,Her Majesty's Prison and Probation Service (National Offenders Management Service),Childrens Services,Children's Services,Other Accommodation Related Costs,21-Jul,"9,840.00 "
5503995,THE UNIVERSITY OF MANCHESTER,Education,Children's Services,Professional Services,21-Jul,"3,255.00 "
5503998,EQUIFAX LTD,Hosted Services,Hosted Services,Professional Services,21-Jul,"1,398.06 "
5504011,Pennine Medical Supplies Ltd T/A Pennine Workwear,Operations and Neighbourhoods,Operations and Neighbourhoods,Protective Clothing,21-Jul,699.50 
5504012,Go To Investments Ltd t/a HALA GUEST HOUSE,(blank),(blank),Other Accommodation Related Costs,27-Jul,"12,862.00 "
5504013,Go To Investments Ltd t/a HALA GUEST HOUSE,(blank),(blank),Other Accommodation Related Costs,27-Jul,"9,462.00 "
5504014,Go To Investments Ltd t/a HALA GUEST HOUSE,(blank),(blank),Other Accommodation Related Costs,27-Jul,"9,722.00 "
5504020,The Mount Guest House Limited,(blank),(blank),Chief/Ground Rent,27-Jul,"19,455.00 "
5504021,Precision Resource Group Ltd t/a Panoramic Associates,Education,Children's Services,Agency Staff,21-Jul,"2,350.00 "
5504022,POWER CONTROL LTD,Digital Tameside,Finance & IT,Network Equipment/Setup,21-Jul,"1,715.00 "
5504023,N.W.A Housing Ltd,(blank),(blank),#N/A,12-Jul,"13,992.44 "
5504025,PAYPARTNERS LTD (MONTHLY),Childrens Services,Children's Services,Direct Payments,21-Jul,528.85 
5504029,EUROPEAN ELECTRONIQUELTD,GMPF (FX),GMPF (FX),IT Equipment,21-Jul,"28,680.80 "
5504031,COLLEGE OF POLICING,Hosted Services,Hosted Services,Training Course Costs,21-Jul,"3,059.00 "
5504032,Inspire Social Care,(blank),(blank),Professional Services,21-Jul,"4,393.15 "
5504041,NORTH WEST EMPLOYERS,Corporate Costs,Corporate Costs,Subscriptions,21-Jul,"22,280.25 "
5504042,BEDSPACE RESOURCE LTD,Adult Social Care,Adults,Residential Home Long Stay Fees,21-Jul,"1,500.00 "
5504044,TELEFONICA O2 (UK) LTD,Digital Tameside,Finance & IT,Mobile Telephones,21-Jul,"47,800.00 "
5504045,Redacted Supplier,Operations and Neighbourhoods,Operations and Neighbourhoods,Professional Entertainment Services,21-Jul,"1,500.00 "
5504048,INSPIREDSPACES TAMESIDE LTD,Asset & Investment Partnership Management,Growth,PFI FM Fees and Insurance Costs,14-Jul,"1,308.87 "
5504050,INSPIREDSPACES TAMESIDE LTD,Asset & Investment Partnership Management,Growth,PFI FM Fees and Insurance Costs,14-Jul,"1,532.76 "
5504122,Redacted Supplier,Education,Children's Services,Independent School Fees,21-Jul,588.00 
5504135,Redacted Supplier,Education,Children's Services,Independent School Fees,21-Jul,"4,229.40 "
5504136,Redacted Supplier,Education,Children's Services,Independent School Fees,21-Jul,"12,537.00 "
5504138,Redacted Supplier,Education,Children's Services,Independent School Fees,21-Jul,"2,226.00 "
5504141,Footsteps A Path To Change 08 Ltd,Childrens Services,Children's Services,Childrens Homes Outside Local Authority Fees,21-Jul,"20,509.60 "
5504144,Valour Private Ltd t/a Valour Healthcare Services,Adult Social Care,Adults,Homecare Fees,21-Jul,"6,630.00 "
5504145,Valour Private Ltd t/a Valour Healthcare Services,Adult Social Care,Adults,Homecare Fees,21-Jul,"6,630.00 "
5504148,Cumbria County Council,Education,Children's Services,Other Local Authorities Fees,05-Jul,"5,097.00 "
5504150,Redacted Supplier,Education,Children's Services,Independent School Fees,21-Jul,"14,222.02 "
5504151,LSC Care Limited,(blank),(blank),Community Based Activities,21-Jul,"2,280.00 "
5504153,ZURICH INSURANCE CO Ltd,Finance,Finance & IT,Inspection Fees,21-Jul,"19,467.59 "
5504154,Redacted Supplier,Education,Children's Services,Independent School Fees,21-Jul,"16,023.33 "
5504156,DG SERVICING LIMITED TRADING AS AUTOMATED DOOR SYSTEMS,Housing,Director of Place,Minor Works - Building,04-Jul,933.50 
5504157,Redacted Supplier,Education,Children's Services,Independent School Fees,21-Jul,"14,222.02 "
5504158,INSPIREDSPACES TAMESIDE LTD,Asset & Investment Partnership Management,Growth,PFI FM Fees and Insurance Costs,12-Jul,"1,657.89 "
5504159,Redacted Supplier,Education,Children's Services,Independent School Fees,21-Jul,"14,222.02 "
5504167,MANCHESTER CITY COUNCIL,GMPF (FX),GMPF (FX),Members Responsibility Allowance,06-Jul,"1,486.00 "
5504171,KILLGERM CHEMICALS LTD,Operations and Neighbourhoods,Operations and Neighbourhoods,Pest Control Equipment,21-Jul,816.00 
5504175,CIVICA UK LIMITED,Governance,Governance,Computer Software,11-Aug,"13,509.60 "
5504178,THE UNIVERSITY OF MANCHESTER,Adult Social Care,Adults,Training Course Costs,21-Jul,500.00 
5504180,ZURICH INSURANCE CO Ltd,Finance,Finance & IT,Miscellaneous Insurance,21-Jul,"1,070.97 "
5504183,TURNER GROUNDSCARE,Operations and Neighbourhoods,Operations and Neighbourhoods,General Equipment Purchase,21-Jul,"4,475.20 "
5504214,Smartway Health and Social Care Limited,Adult Social Care,Adults,Homecare Fees,03-Jul,"6,581.25 "
5504216,Smartway Health and Social Care Limited,Adult Social Care,Adults,Homecare Fees,07-Jul,"6,662.50 "
5504218,HEXAGON CARE SERVICES LTD,Childrens Services,Children's Services,Childrens Homes Outside Local Authority Fees,21-Jul,"24,128.57 "
5504219,HEXAGON CARE SERVICES LTD,Childrens Services,Children's Services,Childrens Homes Outside Local Authority Fees,21-Jul,"20,624.61 "
5504222,Redacted Supplier,Education,Children's Services,Independent School Fees,21-Jul,"19,916.67 "
5504223,Redacted Supplier,Education,Children's Services,Independent School Fees,21-Jul,"12,591.46 "
5504225,Redacted Supplier,Education,Children's Services,Independent School Fees,21-Jul,"24,373.33 "
5504228,REASEHEATH COLLEGE,Education,Children's Services,Post 16 FE College Fees,21-Jul,"1,266.10 "
5504229,Redacted Supplier,Education,Children's Services,Independent School Fees,21-Jul,"19,916.67 "
5504230,Redacted Supplier,Education,Children's Services,Independent School Fees,21-Jul,"19,916.67 "
5504231,Redacted Supplier,Education,Children's Services,Independent School Fees,26-Jul,"17,100.00 "
5504233,LEGGETT PSYCHOLOGY LTD,Education,Children's Services,Professional Services,24-Jul,"1,100.00 "
5504237,CHILD ACTION NORTHWEST,Adult Social Care,Adults,Professional Services,26-Jul,"1,431.04 "
5504240,Redacted Supplier,Education,Children's Services,Professional Services,21-Jul,"2,750.00 "
5504242,CHILD ACTION NORTHWEST,Childrens Services,Children's Services,Professional Services,21-Jul,"1,753.01 "
5504243,ANGLIA DNA SERVICES LTD,Childrens Services,Children's Services,Professional Medical Services,21-Jul,501.50 
5504244,N.W.A Housing Ltd,(blank),(blank),#N/A,21-Jul,"14,229.60 "
5504246,Redacted Supplier,Education,Children's Services,Independent School Fees,21-Jul,"18,333.00 "
5504247,Redacted Supplier,Education,Children's Services,Independent School Fees,21-Jul,"15,605.00 "
5504248,Redacted Supplier,Education,Children's Services,Independent School Fees,21-Jul,"18,835.00 "
5504252,TUDOR (UK) LTD T/A TUDOR ENVIRONMENTAL,Operations and Neighbourhoods,Operations and Neighbourhoods,General Materials,21-Jul,"1,019.70 "
5504253,PLAYSAFETY LIMITED,Operations and Neighbourhoods,Operations and Neighbourhoods,General Materials,21-Jul,"2,942.50 "
5504254,PROVIDENCE FURNITURE,Adult Social Care,Adults,"Fixtures, Fittings & Furniture Purchase",03-Jul,719.00 
5504255,SOFTCAT LIMITED,Digital Tameside,Finance & IT,IT Equipment,21-Jul,"3,047.88 "
5504257,ALLSORTS FURNITURE LTD,Childrens Services,Children's Services,"Fixtures,Fittings & Furniture Purchase (Service Users)",21-Jul,638.00 
5504259,Redacted Supplier,Education,Children's Services,Independent School Fees,13-Jul,"11,266.00 "
5504260,YOUNG PEOPLE FIRST LIMITED,(blank),(blank),Living With Formal Support,24-Jul,"2,450.00 "
5504260,YOUNG PEOPLE FIRST LIMITED,(blank),(blank),Semi independent - Weekly Living Allowances,24-Jul,67.20 
5504262,YOUNG PEOPLE FIRST LIMITED,(blank),(blank),Living With Formal Support,24-Jul,"1,368.08 "
5504262,YOUNG PEOPLE FIRST LIMITED,(blank),(blank),Semi independent - Weekly Living Allowances,24-Jul,67.20 
5504279,LINK CARE SOLUTIONS LTD,Adult Social Care,Adults,Homecare Fees,10-Jul,"3,389.73 "
5504281,Great Minds Together Ltd,Childrens Services,Children's Services,Childrens Homes Outside Local Authority Fees,10-Jul,"89,412.50 "
5504310,SIZZLERS CATERING,Operations and Neighbourhoods,Operations and Neighbourhoods,Professional Entertainment Services,26-Jul,"1,800.00 "
5504311,HOM PARTNERSHIPS (Food Active),Population Health,Population Health,Contributions,26-Jul,"2,548.10 "
5504314,CGL Services,Population Health,Population Health,Professional Services,26-Jul,"255,750.00 "
5504326,TESCO INSTORE PHARMACY,Population Health,Population Health,Local Enhanced Services,26-Jul,"1,129.10 "
5504327,Inicio Group Ltd,Childrens Services,Children's Services,Living With Formal Support,26-Jul,"3,973.11 "
5504328,Milk Education Limited,Education,Children's Services,Agency Staff,26-Jul,"1,042.50 "
5504329,Milk Education Limited,Education,Children's Services,Agency Staff,26-Jul,"1,042.50 "
5504330,Ocean View LTD,Childrens Services,Children's Services,Childrens Homes Outside Local Authority Fees,26-Jul,"16,400.00 "
5504331,CAN Qualifications Ltd,(blank),(blank),Training Course Costs,26-Jul,647.20 
5504334,HUGH MASON PROPERTIES LIMITED,Adult Social Care,Adults,Non-Authority Accommodation Rental,06-Jul,"2,991.86 "
5504337,HUGH MASON PROPERTIES LIMITED,Adult Social Care,Adults,Non-Authority Accommodation Rental,06-Jul,"2,987.84 "
5504338,TAMESIDE LINK,Adult Social Care,Adults,Homecare Fees,06-Jul,"24,638.88 "
5504339,HUGH MASON PROPERTIES LIMITED,Adult Social Care,Adults,Non-Authority Accommodation Rental,06-Jul,"3,103.57 "
5504340,TAMESIDE LINK,Adult Social Care,Adults,Homecare Fees,07-Jul,"2,184.00 "
5504341,NORTHERN PROPERTIES LTD,Adult Social Care,Adults,Non-Authority Accommodation Rental,06-Jul,"2,372.55 "
5504342,HOMES FOR LIFE LTD,Adult Social Care,Adults,Non-Authority Accommodation Rental,06-Jul,978.33 
5504343,HOMES FOR LIFE LTD,Adult Social Care,Adults,Non-Authority Accommodation Rental,06-Jul,"1,077.99 "
5504344,TAMESIDE LINK,Adult Social Care,Adults,Homecare Fees,07-Jul,546.00 
5504345,HOMES FOR LIFE LTD,Adult Social Care,Adults,Non-Authority Accommodation Rental,06-Jul,949.13 
5504346,HOMES FOR LIFE LTD,Adult Social Care,Adults,Non-Authority Accommodation Rental,06-Jul,"1,112.33 "
5504347,Redacted Supplier,Education,Children's Services,Independent School Fees,26-Jul,"4,452.00 "
5504348,HOMES FOR LIFE LTD,Adult Social Care,Adults,Non-Authority Accommodation Rental,06-Jul,"1,077.99 "
5504349,Precision Resource Group Ltd t/a Panoramic Associates,Education,Children's Services,Agency Staff,26-Jul,"1,600.00 "
5504351,Richmond Fellowship,Adult Social Care,Adults,Residential Home Long Stay Fees,26-Jul,"1,968.00 "
5504353,MANCHESTER CITY COUNCIL,Childrens Services,Children's Services,Foster Care Placement With Connected Person,10-Jul,"2,202.86 "
5504354,MANCHESTER CITY COUNCIL,Childrens Services,Children's Services,Foster Care Placement With Connected Person,10-Jul,"2,276.29 "
5504355,WESLEY PROPERTIES (NORTHERN) LTD,Adult Social Care,Adults,Non-Authority Accommodation Rental,26-Jul,"1,601.98 "
5504356,STAMFORD PROPERTIES,Adult Social Care,Adults,Non-Authority Accommodation Rental,06-Jul,"1,190.83 "
5504357,CROFT INVESTMENTS LTD,Adult Social Care,Adults,Non-Authority Accommodation Rental,26-Jul,"2,367.53 "
5504360,Richmond Fellowship,Adult Social Care,Adults,Residential Home Long Stay Fees,26-Jul,"4,200.00 "
5504363,E4Law Limited trading as Lextox,Childrens Services,Children's Services,Professional Services,26-Jul,"3,127.00 "
5504365,Paramount Children's Services,Childrens Services,Children's Services,Childrens Homes Outside Local Authority Fees,26-Jul,"27,835.71 "
5504366,Andrea Stanley Social care Training,Quality and Safeguarding,Quality and Safeguarding,Training Course Costs,26-Jul,600.00 
5504368,Precision Resource Group Ltd t/a Panoramic Associates,Education,Children's Services,Agency Staff,26-Jul,"1,600.00 "
5504371,DOMAIN CARE NORTH WEST LTD,Adult Social Care,Adults,Day Care Fees,26-Jul,"1,424.76 "
5504373,BEXAN LIMITED,Adult Social Care,Adults,Firefighting Equipment,26-Jul,"1,785.00 "
5504375,ASKEWS  AND HOLTS LIBRARY SERVICES LTD,Operations and Neighbourhoods,Operations and Neighbourhoods,Purchase Books,26-Jul,"1,309.49 "
5504377,BRITISH GAS BUSINESS - PAYMENT AREA 60,Adult Social Care,Adults,Electricity,10-Jul,754.89 
5504389,Xoom X Ltd,Childrens Services,Children's Services,Hired Transport,27-Jul,842.60 
5504393,CITY LIFT SERVICES (NW) LTD,Adult Social Care,Adults,General Equipment Repair & Maintenance,27-Jul,760.00 
5504398,VISION FOR EDUCATION LIMITED,Education,Children's Services,Professional Services,27-Jul,625.20 
5504415,Mark Hancock Limited,Education,Children's Services,Professional Services,27-Jul,"2,200.00 "
5504416,MATTHEWS ENVIRONMENTAL SOLUTIONS LTD,(blank),(blank),Engineers -External,04-Jul,"11,278.91 "
5504417,Indie 16 Limited,(blank),(blank),Living With Formal Support,09-Aug,"5,642.86 "
5504419,Indie 16 Limited,(blank),(blank),Living With Formal Support,09-Aug,"4,514.28 "
5504421,Indie 16 Limited,(blank),(blank),Living With Formal Support,27-Jul,"1,600.00 "
5504422,Indie 16 Limited,(blank),(blank),Living With Formal Support,27-Jul,"1,920.00 "
5504427,TEAM TEACH LTD,Childrens Services,Children's Services,Training Course Costs,27-Jul,"1,354.00 "
5504430,STAFF CARE SERVICES,Adult Social Care,Adults,Professional Consultancy Services,27-Jul,"1,012.50 "
5504431,Redacted Supplier,Education,Children's Services,Professional Services,27-Jul,"2,200.00 "
5504432,YORKSHIRE PURCHASING ORGANISATION,Childrens Services,Children's Services,"Activity (Materials, Trips)",31-Jul,"1,725.74 "
5504432,YORKSHIRE PURCHASING ORGANISATION,(blank),(blank),"Activity (Materials, Trips)",31-Jul,39.66 
5504434,Redacted Supplier,(blank),(blank),"Activity (Materials, Trips)",27-Jul,"1,000.00 "
5504439,Furniture Resource Centre Ltd,Operations and Neighbourhoods,Operations and Neighbourhoods,"Fixtures, Fittings & Furniture Purchase",27-Jul,679.69 
5504442,Redacted Supplier,Childrens Services,Children's Services,Childrens Homes Outside Local Authority Fees,27-Jul,"15,660.54 "
5504443,Redacted Supplier,Childrens Services,Children's Services,Childrens Homes Outside Local Authority Fees,27-Jul,"26,350.00 "
5504444,Redacted Supplier,Childrens Services,Children's Services,Childrens Homes Outside Local Authority Fees,27-Jul,"26,350.00 "
5504445,Redacted Supplier,Childrens Services,Children's Services,Childrens Homes Outside Local Authority Fees,27-Jul,"17,692.01 "
5504446,Redacted Supplier,Childrens Services,Children's Services,Childrens Homes Outside Local Authority Fees,27-Jul,"21,921.43 "
5504447,Redacted Supplier,Education,Children's Services,Independent School Fees,27-Jul,"2,265.00 "
5504448,Redacted Supplier,Childrens Services,Children's Services,Childrens Homes Outside Local Authority Fees,27-Jul,"33,480.00 "
5504449,The Mount Guest House Limited,(blank),(blank),Chief/Ground Rent,02-Aug,"24,138.00 "
5504450,PEOPLE FIRST TAMESIDE,Adult Social Care,Adults,Professional Services,07-Jul,"20,623.00 "
5504453,ALPHA BIOLABS,Childrens Services,Children's Services,Professional Medical Services,27-Jul,"1,615.00 "
5504454,Permanent Futures LTD,Education,Children's Services,Agency Staff,27-Jul,"1,750.00 "
5504455,BRANAS ISAF LTD,Childrens Services,Children's Services,Childrens Homes Outside Local Authority Fees,27-Jul,"29,450.00 "
5504459,TAMESIDE SPORTS TRUST,(blank),(blank),Community Based Activities,13-Jul,"9,500.00 "
5504460,TAMESIDE SPORTS TRUST,Childrens Services,Children's Services,Professional Services,18-Jul,"10,000.00 "
5504463,Redacted Supplier,Education,Children's Services,Independent School Fees,27-Jul,"25,364.67 "
5504466,iCare Solutions,Adult Social Care,Adults,Homecare Fees,27-Jul,"16,311.75 "
5504491,Redacted Supplier,Education,Children's Services,Independent School Fees,07-Jul,"24,373.33 "
5504507,ELMAR HOME CARE MANCHESTER LTD,Adult Social Care,Adults,Homecare Fees,10-Jul,"4,487.93 "
5504509,ELMAR HOME CARE MANCHESTER LTD,Adult Social Care,Adults,Homecare Fees,10-Jul,"4,370.93 "
5504511,ELMAR HOME CARE MANCHESTER LTD,Adult Social Care,Adults,Homecare Fees,10-Jul,"3,818.75 "
5504512,ELMAR HOME CARE MANCHESTER LTD,Adult Social Care,Adults,Homecare Fees,10-Jul,"4,645.49 "
5504514,INSPIREDSPACES TAMESIDE LTD,People and Workforce Development,Governance,Building Repairs,12-Jul,"9,603.24 "
5504515,INSPIREDSPACES TAMESIDE LTD,Place,Growth,Fees,12-Jul,41.67 
5504515,INSPIREDSPACES TAMESIDE LTD,Place,Growth,Specialist Works,12-Jul,"2,083.56 "
5504518,Pickering Psychology Services Limited,Childrens Services,Children's Services,Professional Child Services,28-Jul,798.86 
5504524,Redacted Supplier,Adult Social Care,Adults,Day Care Fees,28-Jul,"1,344.00 "
5504526,Imail Comms Limited,Exchequer,Governance,Printing And Stationery,26-Jul,"2,955.62 "
5504527,CAPITA BUSINESS SERVICES LIMITED,Exchequer,Governance,Computer Software Maintenance Costs,28-Jul,"9,926.69 "
5504530,CITY CARE SOLUTIONS LTD,Adult Social Care,Adults,Homecare Fees,28-Jul,"6,165.25 "
5504533,APS Group,Operations and Neighbourhoods,Operations and Neighbourhoods,Professional Medical Services,28-Jul,"1,336.03 "
5504534,Sandcastle Care LTD,Childrens Services,Children's Services,Childrens Homes Outside Local Authority Fees,28-Jul,"27,568.46 "
5504535,Sandcastle Care LTD,Childrens Services,Children's Services,Childrens Homes Outside Local Authority Fees,28-Jul,"27,568.46 "
5504538,MATTHEWS ENVIRONMENTAL SOLUTIONS LTD,(blank),(blank),Engineers -External,04-Jul,"32,876.22 "
5504542,COMFORT CALL LIMITED,Adult Social Care,Adults,Homecare Fees,19-Jul,"34,778.89 "
5504543,COMFORT CALL LIMITED,Adult Social Care,Adults,Homecare Fees,19-Jul,"33,776.44 "
5504544,COMFORT CALL LIMITED,Adult Social Care,Adults,Homecare Fees,19-Jul,"33,772.84 "
5504547,CARELINE HOMECARE LTD,Adult Social Care,Adults,Homecare Fees,19-Jul,"30,214.77 "
5504548,MOSSCARE HOUSING LTD,Childrens Services,Children's Services,Living With Formal Support,28-Jul,781.68 
5504549,MOSSCARE HOUSING LTD,Childrens Services,Children's Services,Living With Formal Support,28-Jul,859.36 
5504552,ALLSORTS FURNITURE LTD,Childrens Services,Children's Services,"Fixtures,Fittings & Furniture Purchase (Service Users)",26-Jul,548.00 
5504553,PENNINE CARE NHS TRUST,(blank),(blank),Professional Services,07-Jul,"80,077.56 "
5504557,FARRER & CO,Place,Growth,Legal Fees,28-Jul,500.00 
5504559,GRIP STEEL  REINFORCEMENTS LTD,Operations and Neighbourhoods,Operations and Neighbourhoods,General Equipment Purchase,07-Jul,"1,360.00 "
5504563,GRIP STEEL  REINFORCEMENTS LTD,Operations and Neighbourhoods,Operations and Neighbourhoods,General Equipment Purchase,07-Jul,840.00 
5504566,CARETECH COMMUNITY SERVICES LIMITED,Adult Social Care,Adults,Homecare Fees,28-Jul,"15,970.23 "
5504568,CARETECH COMMUNITY SERVICES LIMITED,Adult Social Care,Adults,Residential Home Long Stay Fees,28-Jul,"8,644.66 "
5504570,CARETECH COMMUNITY SERVICES LIMITED,Adult Social Care,Adults,Residential Home Long Stay Fees,28-Jul,"6,792.23 "
5504572,CARETECH COMMUNITY SERVICES LIMITED,Adult Social Care,Adults,Residential Home Long Stay Fees,28-Jul,"3,704.85 "
5504573,Smartway Health and Social Care Limited,Adult Social Care,Adults,Homecare Fees,07-Jul,"6,392.75 "
5504574,OCTAGON CARE LTD,Childrens Services,Children's Services,Childrens Homes Outside Local Authority Fees,28-Jul,"23,028.57 "
5504575,CARETECH COMMUNITY SERVICES LIMITED,Adult Social Care,Adults,Residential Home Long Stay Fees,28-Jul,"4,755.36 "
5504576,CARETECH COMMUNITY SERVICES LIMITED,Adult Social Care,Adults,Residential Home Long Stay Fees,28-Jul,"3,704.85 "
5504578,CARETECH COMMUNITY SERVICES LIMITED,Adult Social Care,Adults,Homecare Fees,28-Jul,"3,969.95 "
5504580,CARETECH COMMUNITY SERVICES LIMITED,Adult Social Care,Adults,Residential Home Long Stay Fees,28-Jul,"8,027.18 "
5504581,CARETECH COMMUNITY SERVICES LIMITED,Adult Social Care,Adults,Residential Home Long Stay Fees,28-Jul,"4,017.20 "
5504582,CARETECH COMMUNITY SERVICES LIMITED,Adult Social Care,Adults,Residential Home Long Stay Fees,28-Jul,"8,768.04 "
5504583,CARETECH COMMUNITY SERVICES LIMITED,Adult Social Care,Adults,Residential Home Long Stay Fees,28-Jul,"6,730.68 "
5504584,Redacted Supplier,Childrens Services,Children's Services,Childrens Homes Outside Local Authority Fees,28-Jul,"15,835.80 "
5504586,CARETECH COMMUNITY SERVICES LIMITED,Adult Social Care,Adults,Residential Home Long Stay Fees,28-Jul,"7,196.52 "
5504587,CARETECH COMMUNITY SERVICES LIMITED,Adult Social Care,Adults,Residential Home Long Stay Fees,28-Jul,"2,393.51 "
5504588,CITY CARE SOLUTIONS LTD,Adult Social Care,Adults,Homecare Fees,28-Jul,"5,710.19 "
5504589,CARETECH COMMUNITY SERVICES LIMITED,Adult Social Care,Adults,Residential Home Long Stay Fees,28-Jul,"4,260.60 "
5504590,CARETECH COMMUNITY SERVICES LIMITED,Adult Social Care,Adults,Residential Home Long Stay Fees,28-Jul,"2,590.54 "
5504591,CARETECH COMMUNITY SERVICES LIMITED,Adult Social Care,Adults,Residential Home Long Stay Fees,28-Jul,"6,298.98 "
5504593,Redacted Supplier,Education,Children's Services,Professional Services,07-Jul,"1,100.00 "
5504594,CARETECH COMMUNITY SERVICES LIMITED,Adult Social Care,Adults,Residential Home Long Stay Fees,28-Jul,"14,343.04 "
5504597,CARETECH COMMUNITY SERVICES LIMITED,Adult Social Care,Adults,Residential Home Long Stay Fees,28-Jul,"6,792.23 "
5504603,CARETECH COMMUNITY SERVICES LIMITED,Adult Social Care,Adults,Residential Home Long Stay Fees,28-Jul,"8,027.18 "
5504606,CARETECH COMMUNITY SERVICES LIMITED,Adult Social Care,Adults,Residential Home Long Stay Fees,28-Jul,"5,292.50 "
5504607,CARETECH COMMUNITY SERVICES LIMITED,Adult Social Care,Adults,Residential Home Long Stay Fees,28-Jul,"8,644.66 "
5504608,CARETECH COMMUNITY SERVICES LIMITED,Adult Social Care,Adults,Residential Home Long Stay Fees,28-Jul,"6,792.23 "
5504609,CARETECH COMMUNITY SERVICES LIMITED,Adult Social Care,Adults,Residential Home Long Stay Fees,28-Jul,"6,792.23 "
5504611,CARETECH COMMUNITY SERVICES LIMITED,Adult Social Care,Adults,Residential Home Long Stay Fees,28-Jul,"4,939.81 "
5504613,KAYAN SOCIAL CARE LIMITED,Adult Social Care,Adults,Professional Services,28-Jul,926.30 
5504614,CARETECH COMMUNITY SERVICES LIMITED,Adult Social Care,Adults,Residential Home Long Stay Fees,28-Jul,"5,909.97 "
5504615,Vcare24 Ltd,Childrens Services,Children's Services,Professional Services,28-Jul,912.00 
5504620,INSPIREDSPACES TAMESIDE LTD,Asset & Investment Partnership Management,Growth,PFI FM Fees and Insurance Costs,12-Jul,"1,657.89 "
5504621,Vcare24 Ltd,Childrens Services,Children's Services,Professional Services,28-Jul,910.40 
5504624,Vcare24 Ltd,Childrens Services,Children's Services,Professional Services,28-Jul,"1,375.20 "
5504625,Vcare24 Ltd,Childrens Services,Children's Services,Professional Services,28-Jul,912.00 
5504626,VIP-SYSTEM LIMITED,Operations and Neighbourhoods,Operations and Neighbourhoods,Taxi Lamination Fees,28-Jul,"1,683.58 "
5504627,Vcare24 Ltd,Childrens Services,Children's Services,Professional Services,28-Jul,"1,375.20 "
5504628,Local Creative Project Ltd,(blank),(blank),Professional Services,28-Jul,"4,250.00 "
5504629,Vcare24 Ltd,Childrens Services,Children's Services,Professional Services,28-Jul,912.00 
5504630,INSPIREDSPACES TAMESIDE LTD,Asset & Investment Partnership Management,Growth,PFI FM Fees and Insurance Costs,12-Jul,"1,468.21 "
5504631,Vcare24 Ltd,Childrens Services,Children's Services,Professional Services,28-Jul,"1,446.40 "
5504634,Cathmor,(blank),(blank),Living With Formal Support,28-Jul,"5,764.20 "
5504634,Cathmor,(blank),(blank),Semi independent - Weekly Living Allowances,28-Jul,288.00 
5504635,Cathmor,Childrens Services,Children's Services,Living With Formal Support,28-Jul,"5,764.20 "
5504638,Redacted Supplier,Adult Social Care,Adults,Homecare Fees,28-Jul,"4,229.10 "
5504640,Dean Trust Ardwick,Education,Children's Services,Other Local Authorities Fees,29-Sep,"4,392.00 "
5504641,PAYPARTNERS LTD (MONTHLY),Adult Social Care,Adults,Sub-contractor Services,28-Jul,"6,849.58 "
5504644,IDOX SOFTWARE LIMITED,Place,Growth,Professional Services,28-Jul,"6,550.00 "
5504652,Redacted Supplier,Childrens Services,Children's Services,Childrens Homes Outside Local Authority Fees,28-Jul,"20,571.30 "
5504656,Redacted Supplier,Childrens Services,Children's Services,Childrens Homes Outside Local Authority Fees,28-Jul,"20,571.30 "
5504657,Redacted Supplier,Adult Social Care,Adults,Homecare Fees,28-Jul,"4,229.10 "
5504660,Redacted Supplier,Childrens Services,Children's Services,Childrens Homes Outside Local Authority Fees,28-Jul,"20,571.30 "
5504669,Esteem Care Manchester Ltd,Adult Social Care,Adults,Homecare Fees,07-Jul,"13,306.15 "
5504727,INTEC FOR BUSINESS LTD,Hosted Services,Hosted Services,Development Monies,28-Jul,"6,400.00 "
5504728,INTEC FOR BUSINESS LTD,Hosted Services,Hosted Services,Development Monies,28-Jul,"3,200.00 "
5504729,Cromwood Housing Ltd,(blank),(blank),#N/A,03-Jul,"3,115.50 "
5504730,INTEC FOR BUSINESS LTD,Hosted Services,Hosted Services,Licences,28-Jul,"1,000.00 "
5504731,INTEC FOR BUSINESS LTD,Hosted Services,Hosted Services,Development Monies,28-Jul,"2,500.00 "
5504732,INTEC FOR BUSINESS LTD,Hosted Services,Hosted Services,Development Monies,28-Jul,"1,000.00 "
5504733,Cromwood Housing Ltd,(blank),(blank),#N/A,03-Jul,"106,840.75 "
5504734,INTEC FOR BUSINESS LTD,Hosted Services,Hosted Services,Development Monies,28-Jul,"1,000.00 "
5504735,Cromwood Housing Ltd,(blank),(blank),#N/A,03-Jul,"5,991.81 "
5504744,CREATIVE SUPPORT LTD,Adult Social Care,Adults,Age Concern Fees,20-Jul,"38,629.67 "
5504747,CREATIVE SUPPORT LTD,Adult Social Care,Adults,Homecare Fees,20-Jul,860.30 
5504748,CREATIVE SUPPORT LTD,Adult Social Care,Adults,Homecare Fees,20-Jul,592.85 
5504749,CREATIVE SUPPORT LTD,Adult Social Care,Adults,Independent Sector Care Fees,20-Jul,"51,085.58 "
5504752,Redacted Supplier,Education,Children's Services,Independent School Fees,28-Jul,618.00 
5504753,CREATIVE SUPPORT LTD,Adult Social Care,Adults,Homecare Fees,20-Jul,"203,279.92 "
5504754,Redacted Supplier,Education,Children's Services,Independent School Fees,28-Jul,588.00 
5504758,CREATIVE SUPPORT LTD,Adult Social Care,Adults,Homecare Fees,20-Jul,"179,701.67 "
5504759,INSPIREDSPACES TAMESIDE LTD,Asset & Investment Partnership Management,Growth,PFI FM Fees and Insurance Costs,12-Jul,"1,139.81 "
5504761,COMFORT CALL LIMITED,Adult Social Care,Adults,Homecare Fees,20-Jul,"33,776.44 "
5504762,INSPIREDSPACES TAMESIDE LTD,Asset & Investment Partnership Management,Growth,PFI FM Fees and Insurance Costs,12-Jul,750.00 
5504764,COMFORT CALL LIMITED,Adult Social Care,Adults,Homecare Fees,20-Jul,"42,611.19 "
5504765,Law Morgan Limited T/A Morgan Law,Finance,Finance & IT,Agency Staff,28-Jul,"4,984.90 "
5504766,Randstad Solutions Ltd,Education,Children's Services,Agency Staff,28-Jul,514.88 
5504767,Northern Community Pathways Limited,(blank),(blank),Living With Formal Support,28-Jul,"4,800.00 "
5504767,Northern Community Pathways Limited,(blank),(blank),Semi independent - Weekly Living Allowances,28-Jul,268.80 
5504768,STEPPING STONES CHILDRENS HOMES LTD,Childrens Services,Children's Services,Childrens Homes Outside Local Authority Fees,10-Jul,"23,571.42 "
5504769,Northern Community Pathways Limited,Childrens Services,Children's Services,Living With Formal Support,28-Jul,"2,762.64 "
5504770,Olive Branch Fostering LTD,Childrens Services,Children's Services,Foster Carer Agency Fees,28-Jul,"3,852.60 "
5504773,Olive Branch Fostering LTD,Childrens Services,Children's Services,Foster Carer Agency Fees,28-Jul,"2,995.50 "
5504774,Olive Branch Fostering LTD,Childrens Services,Children's Services,Foster Carer Agency Fees,28-Jul,"2,965.54 "
5504776,Northern Community Pathways Limited,(blank),(blank),Living With Formal Support,08-Aug,"4,322.04 "
5504776,Northern Community Pathways Limited,(blank),(blank),Semi independent - Weekly Living Allowances,08-Aug,268.80 
5504777,STEPPING STONES CHILDRENS HOMES LTD,Childrens Services,Children's Services,Childrens Homes Outside Local Authority Fees,10-Jul,"23,571.42 "
5504778,STEPPING STONES CHILDRENS HOMES LTD,Childrens Services,Children's Services,Childrens Homes Outside Local Authority Fees,10-Jul,"30,000.00 "
5504779,Rivergate Developments Ltd,Housing,Director of Place,Mandatory Adaptations Grant (DFG),07-Jul,"7,529.79 "
5504780,Northern Community Pathways Limited,Childrens Services,Children's Services,Living With Formal Support,28-Jul,"3,480.80 "
5504781,STEPPING STONES CHILDRENS HOMES LTD,Childrens Services,Children's Services,Childrens Homes Outside Local Authority Fees,10-Jul,"22,992.85 "
5504783,STEPPING STONES CHILDRENS HOMES LTD,Childrens Services,Children's Services,Childrens Homes Outside Local Authority Fees,10-Jul,"22,992.85 "
5504784,Northern Community Pathways Limited,(blank),(blank),Living With Formal Support,28-Jul,"3,931.44 "
5504784,Northern Community Pathways Limited,(blank),(blank),Semi independent - Weekly Living Allowances,28-Jul,268.80 
5504785,Point North Brand Co Ltd t/a Michelle Lyons,(blank),(blank),Professional Services,28-Jul,"1,350.00 "
5504787,STEPPING STONES CHILDRENS HOMES LTD,Childrens Services,Children's Services,Childrens Homes Outside Local Authority Fees,10-Jul,"20,229.08 "
5504795,ARCO LIMITED,Adult Social Care,Adults,Printing And Stationery,28-Jul,813.30 
5504796,Esteem Care Manchester Ltd,Adult Social Care,Adults,Homecare Fees,07-Jul,"13,306.15 "
5504802,Esteem Care Manchester Ltd,Adult Social Care,Adults,Homecare Fees,07-Jul,"12,972.98 "
5504803,Precision Resource Group Ltd t/a Panoramic Associates,Education,Children's Services,Agency Staff,28-Jul,"2,350.00 "
5504804,APOLLO HOME HEALTHCARE LTD,Childrens Services,Children's Services,Homecare Fees,03-Jul,552.72 
5504805,Precision Resource Group Ltd t/a Panoramic Associates,Education,Children's Services,Agency Staff,28-Jul,"1,600.00 "
5504806,GOPROMOTIONAL LTD,Digital Tameside,Finance & IT,IT Equipment,28-Jul,"1,580.00 "
5504807,Footsteps Psychology,Education,Children's Services,Professional Services,28-Jul,"1,100.00 "
5504808,Carrington West Ltd,Place,Growth,Agency Staff,06-Jul,912.12 
5504809,Carrington West Ltd,Place,Growth,Agency Staff,06-Jul,912.12 
5504810,Carrington West Ltd,Place,Growth,Agency Staff,06-Jul,912.12 
5504813,TUDOR (UK) LTD T/A TUDOR ENVIRONMENTAL,Operations and Neighbourhoods,Operations and Neighbourhoods,General Materials,28-Jul,"1,333.80 "
5504814,N.W.A Housing Ltd,(blank),(blank),#N/A,28-Jul,"15,474.69 "
5504816,SAAIL,Childrens Services,Children's Services,Living With Formal Support,28-Jul,"4,431.30 "
5504819,Redacted Supplier,Education,Children's Services,Professional Services,28-Jul,"1,100.00 "
5504823,Synectics Security Limited,Place,Growth,General Equipment Purchase,28-Jul,"1,955.00 "
5504827,Huge Media Advertising Ltd,Childrens Services,Children's Services,"Marketing, Publicity and Recruitment",28-Jul,500.00 
5504845,Hyde Accessible Transport Limited,Education,Children's Services,Transport Of Pupils,03-Jul,"2,600.00 "
5504846,Hyde Accessible Transport Limited,Education,Children's Services,Transport Of Pupils,03-Jul,"1,875.00 "
5504847,Hyde Accessible Transport Limited,Education,Children's Services,Transport Of Pupils,03-Jul,"1,995.00 "
5504848,Hyde Accessible Transport Limited,Education,Children's Services,Transport Of Pupils,03-Jul,"1,350.00 "
5504849,Hyde Accessible Transport Limited,Education,Children's Services,Transport Of Pupils,03-Jul,"1,875.00 "
5504850,Hyde Accessible Transport Limited,Education,Children's Services,Transport Of Pupils,03-Jul,"2,800.00 "
5504851,Hyde Accessible Transport Limited,Education,Children's Services,Transport Of Ola Pupils,03-Jul,"3,200.00 "
5504852,Hyde Accessible Transport Limited,Education,Children's Services,Transport Of Pupils,03-Jul,"2,250.00 "
5504853,Hyde Accessible Transport Limited,Education,Children's Services,Transport Of Pupils,03-Jul,"2,250.00 "
5504854,Hyde Accessible Transport Limited,Education,Children's Services,Transport Of Pupils,03-Jul,"2,600.00 "
5504855,Hyde Accessible Transport Limited,Education,Children's Services,Transport Of Ola Pupils,03-Jul,"3,600.00 "
5504856,Hyde Accessible Transport Limited,Education,Children's Services,Transport Of Pupils,03-Jul,"2,250.00 "
5504857,Hyde Accessible Transport Limited,Education,Children's Services,Transport Of Pupils,03-Jul,"2,250.00 "
5504858,Hyde Accessible Transport Limited,Education,Children's Services,Transport Of Pupils,03-Jul,"1,980.00 "
5504859,Hyde Accessible Transport Limited,Education,Children's Services,Transport Of Pupils,03-Jul,"2,250.00 "
5504860,Hyde Accessible Transport Limited,Education,Children's Services,Transport Of Pupils,03-Jul,"2,800.00 "
5504861,Hyde Accessible Transport Limited,Education,Children's Services,Transport Of Pupils,03-Jul,"2,250.00 "
5504862,Hyde Accessible Transport Limited,Education,Children's Services,Transport Of Pupils,03-Jul,"1,800.00 "
5504863,Hyde Accessible Transport Limited,Education,Children's Services,Transport Of Pupils,03-Jul,"2,100.00 "
5504864,Hyde Accessible Transport Limited,Education,Children's Services,Transport Of Pupils,03-Jul,"2,100.00 "
5504866,QUEST MEDIA NETWORK LTD,Operations and Neighbourhoods,Operations and Neighbourhoods,Statutory Advertising,04-Jul,930.00 
5504867,Hyde Accessible Transport Limited,Education,Children's Services,Transport Of Pupils,03-Jul,"2,250.00 "
5504868,Hyde Accessible Transport Limited,Education,Children's Services,Transport Of Pupils,03-Jul,"2,250.00 "
5504871,Furniture Resource Centre Ltd,Operations and Neighbourhoods,Operations and Neighbourhoods,"Fixtures, Fittings & Furniture Purchase",28-Jul,751.13 
5504880,Redacted Supplier,Childrens Services,Children's Services,Nursery Services,07-Jul,787.50 
5504881,HEXAGON CARE SERVICES LTD,Childrens Services,Children's Services,Childrens Homes Outside Local Authority Fees,28-Jul,"7,196.77 "
5504883,K P DODD CONSTRUCTION LTD,Housing,Director of Place,Mandatory Adaptations Grant (DFG),12-Jul,"6,019.54 "
5504893,ISW CSC Limited,Childrens Services,Children's Services,Living With Formal Support,05-Jul,"5,801.42 "
5504893,ISW CSC Limited,Childrens Services,Children's Services,Semi independent - Weekly Living Allowances,05-Jul,336.00 
5504894,ISW CSC Limited,Childrens Services,Children's Services,Living With Formal Support,05-Jul,"4,384.28 "
5504895,ISW CSC Limited,(blank),(blank),Living With Formal Support,05-Jul,"6,310.70 "
5504895,ISW CSC Limited,(blank),(blank),Semi independent - Weekly Living Allowances,05-Jul,336.00 
5504896,ISW CSC Limited,Childrens Services,Children's Services,Living With Formal Support,05-Jul,"5,801.42 "
5504896,ISW CSC Limited,Childrens Services,Children's Services,Semi independent - Weekly Living Allowances,05-Jul,336.00 
5504897,ISW CSC Limited,(blank),(blank),Homecare Fees,06-Jul,"8,434.28 "
5504898,ISW CSC Limited,(blank),(blank),Living With Formal Support,10-Jul,"5,801.42 "
5504898,ISW CSC Limited,(blank),(blank),Semi independent - Weekly Living Allowances,10-Jul,336.00 
5504899,ISW CSC Limited,(blank),(blank),Living With Formal Support,05-Jul,"5,004.27 "
5504899,ISW CSC Limited,(blank),(blank),Semi independent - Weekly Living Allowances,05-Jul,336.00 
5504900,ISW CSC Limited,Childrens Services,Children's Services,Living With Formal Support,05-Jul,"5,801.42 "
5504900,ISW CSC Limited,Childrens Services,Children's Services,Semi independent - Weekly Living Allowances,05-Jul,336.00 
5504902,TPR Care Services Ltd,(blank),(blank),Living With Formal Support,06-Jul,"1,544.20 "
5504904,TPR Care Services Ltd,(blank),(blank),Living With Formal Support,06-Jul,"1,544.20 "
5504906,STAMFORD CARS UK LTD,Education,Children's Services,Transport Of Pupils,11-Jul,"1,650.00 "
5504908,STAMFORD CARS UK LTD,Education,Children's Services,Transport Of Pupils,11-Jul,"1,500.00 "
5504909,TPR Care Services Ltd,(blank),(blank),Living With Formal Support,06-Jul,"1,544.20 "
5504911,NSL LIMITED,Operations and Neighbourhoods,Operations and Neighbourhoods,NSL Fees,06-Jul,"57,481.36 "
5504912,STAMFORD CARS UK LTD,Education,Children's Services,Transport Of Pupils,11-Jul,"1,650.00 "
5504914,STAMFORD CARS UK LTD,Education,Children's Services,Transport Of Pupils,11-Jul,"1,600.00 "
5504915,Hyde Accessible Transport Limited,Operations and Neighbourhoods,Operations and Neighbourhoods,Hired Transport,05-Jul,540.00 
5504916,STAMFORD CARS UK LTD,Education,Children's Services,Transport Of Pupils,11-Jul,"2,700.00 "
5504917,Hyde Accessible Transport Limited,Operations and Neighbourhoods,Operations and Neighbourhoods,Hired Transport,05-Jul,"2,500.00 "
5504918,STAMFORD CARS UK LTD,Education,Children's Services,Transport Of Pupils,11-Jul,"2,500.00 "
5504919,Hyde Accessible Transport Limited,Operations and Neighbourhoods,Operations and Neighbourhoods,Hired Transport,05-Jul,"1,625.00 "
5504920,STAMFORD CARS UK LTD,Education,Children's Services,Transport Of Pupils,11-Jul,"2,500.00 "
5504921,Hyde Accessible Transport Limited,Operations and Neighbourhoods,Operations and Neighbourhoods,Hired Transport,05-Jul,"2,200.00 "
5504922,STAMFORD CARS UK LTD,Education,Children's Services,Transport Of Pupils,11-Jul,"1,100.00 "
5504923,Hyde Accessible Transport Limited,Operations and Neighbourhoods,Operations and Neighbourhoods,Hired Transport,05-Jul,"1,180.00 "
5504924,STAMFORD CARS UK LTD,Education,Children's Services,Transport Of Ola Pupils,11-Jul,"2,025.00 "
5504925,Hyde Accessible Transport Limited,Operations and Neighbourhoods,Operations and Neighbourhoods,Hired Transport,05-Jul,"1,980.00 "
5504927,Hyde Accessible Transport Limited,Operations and Neighbourhoods,Operations and Neighbourhoods,Hired Transport,05-Jul,"1,870.00 "
5504928,Hyde Accessible Transport Limited,Operations and Neighbourhoods,Operations and Neighbourhoods,Hired Transport,05-Jul,"1,395.00 "
5504929,Hyde Accessible Transport Limited,Operations and Neighbourhoods,Operations and Neighbourhoods,Hired Transport,05-Jul,"3,400.00 "
5504930,Hyde Accessible Transport Limited,Operations and Neighbourhoods,Operations and Neighbourhoods,Hired Transport,05-Jul,"1,980.00 "
5504931,STAMFORD CARS UK LTD,Education,Children's Services,Transport Of Post 16 Pupils,11-Jul,"1,575.00 "
5504932,Hyde Accessible Transport Limited,Operations and Neighbourhoods,Operations and Neighbourhoods,Hired Transport,05-Jul,630.00 
5504933,ISW CSC Limited,Childrens Services,Children's Services,Living With Formal Support,05-Jul,"4,162.85 "
5504934,ISW CSC Limited,Childrens Services,Children's Services,Living With Formal Support,05-Jul,"3,764.28 "
5504935,Hyde Accessible Transport Limited,Education,Children's Services,Transport Of Ola Pupils,05-Jul,"3,600.00 "
5504936,Hyde Accessible Transport Limited,Education,Children's Services,Transport Of Ola Pupils,05-Jul,"2,500.00 "
5504937,Hyde Accessible Transport Limited,Operations and Neighbourhoods,Operations and Neighbourhoods,Hired Transport,05-Jul,"2,750.00 "
5504938,ISW CSC Limited,(blank),(blank),Living With Formal Support,07-Jul,"7,284.99 "
5504938,ISW CSC Limited,(blank),(blank),Semi independent - Weekly Living Allowances,07-Jul,336.00 
5504939,Hyde Accessible Transport Limited,Operations and Neighbourhoods,Operations and Neighbourhoods,Hired Transport,06-Jul,"2,960.00 "
5504940,ISW CSC Limited,Childrens Services,Children's Services,Living With Formal Support,01-Aug,910.00 
5504940,ISW CSC Limited,(blank),(blank),Living With Formal Support,01-Aug,"3,387.12 "
5504940,ISW CSC Limited,(blank),(blank),Semi independent - Weekly Living Allowances,01-Aug,268.80 
5504941,STAMFORD CARS UK LTD,Education,Children's Services,Transport Of Post 16 Pupils,11-Jul,"1,575.00 "
5504942,ISW CSC Limited,Childrens Services,Children's Services,Living With Formal Support,05-Jul,"5,225.70 "
5504943,STAMFORD CARS UK LTD,Education,Children's Services,Transport Of Ola Pupils,11-Jul,"2,500.00 "
5504944,Hyde Accessible Transport Limited,Operations and Neighbourhoods,Operations and Neighbourhoods,Hired Transport,05-Jul,"1,312.50 "
5504945,STAMFORD CARS UK LTD,Education,Children's Services,Transport Of Post 16 Pupils,11-Jul,"2,080.00 "
5504946,ISW CSC Limited,Childrens Services,Children's Services,Living With Formal Support,05-Jul,"3,941.42 "
5504947,Hyde Accessible Transport Limited,Education,Children's Services,Transport Of Ola Pupils,05-Jul,"3,000.00 "
5504948,ISW CSC Limited,Childrens Services,Children's Services,Living With Formal Support,06-Jul,"5,801.42 "
5504949,STAMFORD CARS UK LTD,Education,Children's Services,Transport Of Post 16 Pupils,11-Jul,975.00 
5504950,Hyde Accessible Transport Limited,Education,Children's Services,Transport Of Ola Pupils,05-Jul,"2,600.00 "
5504951,STAMFORD CARS UK LTD,Education,Children's Services,Transport Of Pupils,11-Jul,"1,500.00 "
5504952,STAMFORD CARS UK LTD,Education,Children's Services,Transport Of Pupils,11-Jul,"1,800.00 "
5504953,ISW CSC Limited,Childrens Services,Children's Services,Living With Formal Support,05-Jul,"4,162.85 "
5504954,STAMFORD CARS UK LTD,Education,Children's Services,Transport Of Pupils,11-Jul,"1,300.00 "
5504956,STAMFORD CARS UK LTD,Education,Children's Services,Transport Of Ola Pupils,11-Jul,"2,200.00 "
5504957,STAMFORD CARS UK LTD,Education,Children's Services,Transport Of Pupils,11-Jul,"2,100.00 "
5504958,Hyde Accessible Transport Limited,Education,Children's Services,Transport Of Ola Pupils,05-Jul,"3,000.00 "
5504959,STAMFORD CARS UK LTD,Education,Children's Services,Transport Of Pupils,11-Jul,"1,770.00 "
5504960,ISW CSC Limited,Childrens Services,Children's Services,Living With Formal Support,07-Jul,"6,000.00 "
5504960,ISW CSC Limited,Childrens Services,Children's Services,Semi independent - Weekly Living Allowances,07-Jul,336.00 
5504961,STAMFORD CARS UK LTD,Education,Children's Services,Transport Of Pupils,11-Jul,"2,010.00 "
5504962,Hyde Accessible Transport Limited,Education,Children's Services,Transport Of Ola Pupils,05-Jul,"2,800.00 "
5504963,ISW CSC Limited,Childrens Services,Children's Services,Living With Formal Support,05-Jul,"4,251.42 "
5504964,STAMFORD CARS UK LTD,Education,Children's Services,Transport Of Pupils,11-Jul,"1,575.00 "
5504965,Hyde Accessible Transport Limited,Education,Children's Services,Transport Of Ola Pupils,05-Jul,"2,820.00 "
5504966,ISW CSC Limited,Childrens Services,Children's Services,Living With Formal Support,05-Jul,"4,339.99 "
5504967,Hyde Accessible Transport Limited,Education,Children's Services,Transport Of Ola Pupils,05-Jul,"3,000.00 "
5504968,ISW CSC Limited,Childrens Services,Children's Services,Living With Formal Support,05-Jul,"3,941.42 "
5504969,Hyde Accessible Transport Limited,Education,Children's Services,Transport Of Ola Pupils,05-Jul,"2,600.00 "
5504970,Hyde Accessible Transport Limited,Education,Children's Services,Transport Of Ola Pupils,05-Jul,"2,500.00 "
5504971,ISW CSC Limited,(blank),(blank),Living With Formal Support,05-Jul,"5,314.28 "
5504971,ISW CSC Limited,(blank),(blank),Semi independent - Weekly Living Allowances,05-Jul,336.00 
5504972,Hyde Accessible Transport Limited,Education,Children's Services,Transport Of Ola Pupils,05-Jul,"3,000.00 "
5504973,Hyde Accessible Transport Limited,Education,Children's Services,Transport Of Ola Pupils,05-Jul,"2,800.00 "
5504974,STAMFORD CARS UK LTD,Education,Children's Services,Transport Of Pupils,11-Jul,"1,800.00 "
5504976,STAMFORD CARS UK LTD,Education,Children's Services,Transport Of Ola Pupils,11-Jul,"3,300.00 "
5504978,STAMFORD CARS UK LTD,Operations and Neighbourhoods,Operations and Neighbourhoods,Hired Transport,11-Jul,910.00 
5504981,STAMFORD CARS UK LTD,Education,Children's Services,Transport Of Ola Pupils,11-Jul,"2,500.00 "
5504982,STAMFORD CARS UK LTD,Operations and Neighbourhoods,Operations and Neighbourhoods,Hired Transport,11-Jul,"1,135.00 "
5504983,STAMFORD CARS UK LTD,Education,Children's Services,Transport Of Ola Pupils,11-Jul,"2,500.00 "
5504984,STAMFORD CARS UK LTD,Education,Children's Services,Transport Of Ola Pupils,11-Jul,"2,600.00 "
5504985,STAMFORD CARS UK LTD,Operations and Neighbourhoods,Operations and Neighbourhoods,Hired Transport,11-Jul,"1,412.50 "
5504986,Redacted Supplier,Education,Children's Services,Transport Of Pupils,10-Jul,"1,950.00 "
5504987,STAMFORD CARS UK LTD,Operations and Neighbourhoods,Operations and Neighbourhoods,Hired Transport,11-Jul,650.00 
5504988,Redacted Supplier,Education,Children's Services,Transport Of Pupils,10-Jul,"1,950.00 "
5504989,STAMFORD CARS UK LTD,Operations and Neighbourhoods,Operations and Neighbourhoods,Hired Transport,11-Jul,"1,950.00 "
5504990,Redacted Supplier,Education,Children's Services,Transport Of Pupils,10-Jul,"1,950.00 "
5504991,STAMFORD CARS UK LTD,Operations and Neighbourhoods,Operations and Neighbourhoods,Hired Transport,11-Jul,"1,200.00 "
5504992,Redacted Supplier,Education,Children's Services,Transport Of Pupils,10-Jul,"1,300.00 "
5504993,STAMFORD CARS UK LTD,Operations and Neighbourhoods,Operations and Neighbourhoods,Hired Transport,11-Jul,540.00 
5504994,STAMFORD CARS UK LTD,Education,Children's Services,Transport Of Ola Pupils,11-Jul,"2,350.00 "
5504995,Redacted Supplier,Operations and Neighbourhoods,Operations and Neighbourhoods,Hired Transport,10-Jul,"1,350.00 "
5504996,STAMFORD CARS UK LTD,Operations and Neighbourhoods,Operations and Neighbourhoods,Hired Transport,11-Jul,990.00 
5504997,STAMFORD CARS UK LTD,Education,Children's Services,Transport Of Ola Pupils,11-Jul,"2,600.00 "
5504998,Kibble Education and Care Centre,Childrens Services,Children's Services,Childrens Homes Outside Local Authority Fees,28-Jul,"28,650.00 "
5505000,STAMFORD CARS UK LTD,Education,Children's Services,Transport Of Pupils,11-Jul,"1,200.00 "
5505001,STAMFORD CARS UK LTD,Operations and Neighbourhoods,Operations and Neighbourhoods,Hired Transport,11-Jul,"1,500.00 "
5505005,STAMFORD CARS UK LTD,Operations and Neighbourhoods,Operations and Neighbourhoods,Hired Transport,11-Jul,"1,155.00 "
5505006,STAMFORD CARS UK LTD,Education,Children's Services,Transport Of Ola Pupils,11-Jul,"3,080.00 "
5505007,STAMFORD CARS UK LTD,Education,Children's Services,Transport Of Post 16 Pupils,11-Jul,"1,300.00 "
5505009,STAMFORD CARS UK LTD,Education,Children's Services,Transport Of Ola Pupils,11-Jul,"2,400.00 "
5505012,STAMFORD CARS UK LTD,Education,Children's Services,Transport Of Pupils,11-Jul,"1,800.00 "
5505014,STAMFORD CARS UK LTD,Education,Children's Services,Transport Of Pupils,11-Jul,"1,800.00 "
5505015,STAMFORD CARS UK LTD,Education,Children's Services,Transport Of Ola Pupils,11-Jul,"2,200.00 "
5505016,K P DODD CONSTRUCTION LTD,Housing,Director of Place,Mandatory Adaptations Grant (DFG),19-Jul,"3,956.78 "
5505017,STAMFORD CARS UK LTD,Education,Children's Services,Transport Of Ola Pupils,11-Jul,"2,500.00 "
5505018,K P DODD CONSTRUCTION LTD,Housing,Director of Place,Mandatory Adaptations Grant (DFG),07-Jul,"3,049.40 "
5505020,STAMFORD CARS UK LTD,Education,Children's Services,Transport Of Ola Pupils,11-Jul,"2,600.00 "
5505021,STAMFORD CARS UK LTD,Education,Children's Services,Transport Of Ola Pupils,11-Jul,"2,400.00 "
5505022,RedQuadrant Ltd,Hosted Services,Hosted Services,Professional Consultancy Services,02-Aug,"2,187.50 "
5505023,STAMFORD CARS UK LTD,Operations and Neighbourhoods,Operations and Neighbourhoods,Hired Transport,11-Jul,500.00 
5505024,STAMFORD CARS UK LTD,Education,Children's Services,Transport Of Pupils,11-Jul,"1,800.00 "
5505025,STAMFORD CARS UK LTD,Education,Children's Services,Transport Of Pupils,11-Jul,"1,800.00 "
5505027,STAMFORD CARS UK LTD,Operations and Neighbourhoods,Operations and Neighbourhoods,Hired Transport,11-Jul,"1,170.00 "
5505028,STAMFORD CARS UK LTD,Operations and Neighbourhoods,Operations and Neighbourhoods,Hired Transport,11-Jul,"1,100.00 "
5505029,STAMFORD CARS UK LTD,Operations and Neighbourhoods,Operations and Neighbourhoods,Hired Transport,11-Jul,"1,100.00 "
5505030,STAMFORD CARS UK LTD,Operations and Neighbourhoods,Operations and Neighbourhoods,Hired Transport,11-Jul,"1,430.00 "
5505031,STAMFORD CARS UK LTD,Operations and Neighbourhoods,Operations and Neighbourhoods,Hired Transport,11-Jul,525.00 
5505033,STAMFORD CARS UK LTD,Operations and Neighbourhoods,Operations and Neighbourhoods,Hired Transport,13-Jul,"1,600.00 "
5505036,STAMFORD CARS UK LTD,Education,Children's Services,Transport Of Post 16 Pupils,11-Jul,690.00 
5505038,STAMFORD CARS UK LTD,Operations and Neighbourhoods,Operations and Neighbourhoods,Hired Transport,11-Jul,"1,210.00 "
5505040,STAMFORD CARS UK LTD,Operations and Neighbourhoods,Operations and Neighbourhoods,Hired Transport,11-Jul,"1,980.00 "
5505043,Care 4 Every Child Ltd,Childrens Services,Children's Services,Childrens Homes Outside Local Authority Fees,31-Jul,"21,659.04 "
5505044,Redacted Supplier,Education,Children's Services,Transport Of Post 16 Pupils,10-Jul,"2,080.00 "
5505045,Redacted Supplier,Education,Children's Services,Transport Of Ola Pupils,10-Jul,"1,900.00 "
5505046,Redacted Supplier,Education,Children's Services,Transport Of Pupils,10-Jul,"2,700.00 "
5505047,Redacted Supplier,Education,Children's Services,Transport Of Ola Pupils,10-Jul,"2,700.00 "
5505048,Redacted Supplier,Education,Children's Services,Transport Of Ola Pupils,10-Jul,"2,600.00 "
5505049,Care 4 Every Child Ltd,Childrens Services,Children's Services,Childrens Homes Outside Local Authority Fees,31-Jul,"22,969.82 "
5505050,Redacted Supplier,Education,Children's Services,Transport Of Ola Pupils,10-Jul,"3,160.00 "
5505051,Access UK Ltd,Adult Social Care,Adults,Computer Software Maintenance Costs,21-Jul,"3,041.36 "
5505052,Redacted Supplier,Education,Children's Services,Transport Of Pupils,10-Jul,"1,330.00 "
5505053,Redacted Supplier,Education,Children's Services,Transport Of Pupils,10-Jul,"2,100.00 "
5505054,Redacted Supplier,Education,Children's Services,Transport Of Pupils,10-Jul,"1,800.00 "
5505055,CONNEVANS LTD,Education,Children's Services,Educational Equipment,28-Jul,540.00 
